Col. Code,Agency,Check No.,Payee,Month,Day,Year,Purpose,Source,Amount
48,J.F. Drake State,300746,KRISTEN K LECROIX,Oct,7,2010,Instructional Salaries - Tempo,NAT'L SCIENCE FOUNDATION,$240.00
48,J.F. Drake State,300744,JOYCE P LAMAR,Oct,4,2010,Support Personnel Salaries - S,UNRESTRICTED,$220.96
48,J.F. Drake State,300693,ROBBIE LEE AKINS,Oct,1,2010,Support Personnel Salaries - S,UNRESTRICTED,"$1,083.00"
48,J.F. Drake State,300694,THEO NATHAN WALSTON,Oct,1,2010,Support Personnel Salaries - S,ARRA STIMULUS FUNDS,$833.33
48,J.F. Drake State,201451,ACCSPA,Sep,30,2010,In-State Travel,TITLE III,$300.00
48,J.F. Drake State,201452,CDW-G,Sep,30,2010,Materials and Supplies,TITLE III,"$1,423.19"
48,J.F. Drake State,201453,CFGEAR,Sep,30,2010,Materials and Supplies,TECH PREP FUNDS,"$2,185.00"
48,J.F. Drake State,201454,HD SUPPLY,Sep,30,2010,Materials and Supplies,HEALTH SCIENCES GRANT,"$3,234.35"
48,J.F. Drake State,201455,NASPA,Sep,30,2010,Memberships,TITLE III,$375.00
48,J.F. Drake State,201456,BERNEY OFFICE SOLUTIONS,Sep,30,2010,Materials and Supplies,ALLIED HEALTH,"$8,457.43"
48,J.F. Drake State,201457,BERNEY OFFICE SOLUTIONS,Sep,30,2010,Furniture and Equipment,TITLE III,"$12,210.86"
48,J.F. Drake State,201458,BERNEY OFFICE SOLUTIONS,Sep,30,2010,Materials and Supplies,TITLE III,"$4,704.00"
48,J.F. Drake State,201459,JOHNSTONE SUPPLY,Sep,30,2010,Institutional Use,CARL PERKINS FUNDS,"$4,656.45"
48,J.F. Drake State,201460,MSC INDUSTRIAL SUPPLY,Sep,30,2010,Institutional Use,CARL PERKINS FUNDS,"$2,632.32"
48,J.F. Drake State,201461,SEXTON WELDING SUPPLY,Sep,30,2010,Materials and Supplies,TITLE III,"$2,578.24"
48,J.F. Drake State,201462,4IMPRINT,Sep,30,2010,Materials and Supplies,TECH PREP FUNDS,"$4,269.85"
48,J.F. Drake State,100954,GRAINGER,Sep,30,2010,Materials and Supplies,WELDING GRANT,"$2,686.53"
48,J.F. Drake State,100955,ELSEVIER/HESI,Sep,30,2010,Purchases for Resale,UNRESTRICTED,"$1,602.18"
48,J.F. Drake State,100956,ELSEVIER/HESI,Sep,30,2010,Purchases for Resale,AUXILIARY,"$4,876.90"
48,J.F. Drake State,300617,ROBBIE LEE AKINS,Sep,30,2010,Support Personnel Salaries - S,UNRESTRICTED,"$1,224.00"
48,J.F. Drake State,300618,MELANIE K ALLEN,Sep,30,2010,Other Professional Salaries -,UNRESTRICTED,"$4,000.00"
48,J.F. Drake State,300619,BEN BATTLE,Sep,30,2010,Instructional Salaries - Regul,UNRESTRICTED,"$5,306.33"
48,J.F. Drake State,300620,DELICIA C BATTLE,Sep,30,2010,Instructional Salaries - Tempo,UNRESTRICTED,$675.00
48,J.F. Drake State,300621,DAVID G BELTON,Sep,30,2010,Instructional Salaries - Tempo,UNRESTRICTED,$337.50
48,J.F. Drake State,300622,DEAVIANCE FOWLKS BLEVINS,Sep,30,2010,Other Contractual Services,HEALTH SCIENCES GRANT,"$1,087.50"
48,J.F. Drake State,300623,JACQUELINE T BOOKER,Sep,30,2010,Support Personnel Salaries - S,NAT'L SCIENCE FOUNDATION,"$1,918.40"
48,J.F. Drake State,300624,LASHONDA D BROWN,Sep,30,2010,Instructional Salaries - Tempo,UNRESTRICTED,$337.50
48,J.F. Drake State,300625,EMILY J CARPENTER,Sep,30,2010,Instructional Salaries - Tempo,UNRESTRICTED,$337.50
48,J.F. Drake State,300626,KATIE E CHANCE,Sep,30,2010,Support Personnel Salaries - S,TECH PREP FUNDS,$852.00
48,J.F. Drake State,300627,ROGER CHEN,Sep,30,2010,Instructional Salaries - Tempo,UNRESTRICTED,$315.00
48,J.F. Drake State,300627,ROGER CHEN,Sep,30,2010,Other Contractual Services,NAT'L SCIENCE FOUNDATION,"$2,280.00"
48,J.F. Drake State,300629,DEIONE L CRUTCHER,Sep,30,2010,Support Personnel Salaries - S,UNRESTRICTED,$912.00
48,J.F. Drake State,300630,CHRISTINE H DAVIS,Sep,30,2010,Instructional Salaries - Regul,UNRESTRICTED,"$8,581.10"
48,J.F. Drake State,300631,VERNESSA M EDWARDS,Sep,30,2010,Instructional Salaries - Tempo,UNRESTRICTED,$562.50
48,J.F. Drake State,300632,KIMBERLY A EVANS,Sep,30,2010,Instructional Salaries - Tempo,UNRESTRICTED,$506.25
48,J.F. Drake State,300633,MATTIE B FREEMAN,Sep,30,2010,Instructional Salaries - Tempo,UNRESTRICTED,"$2,160.00"
48,J.F. Drake State,300634,JAMEHA L GARDNER,Sep,30,2010,Instructional Salaries - Tempo,UNRESTRICTED,$675.00
48,J.F. Drake State,300635,SYMMETRIS K GOHANNA,Sep,30,2010,Instructional Salaries - Regul,UNRESTRICTED,"$5,823.89"
48,J.F. Drake State,300636,LARDELL GOODLOE JR,Sep,30,2010,Instructional Salaries - Regul,UNRESTRICTED,"$5,009.89"
48,J.F. Drake State,300637,ROBERT N GRISSIM,Sep,30,2010,Instructional Salaries - Tempo,UNRESTRICTED,"$1,125.00"
48,J.F. Drake State,300638,SAMUEL V GUISHARD,Sep,30,2010,Instructional Salaries - Tempo,UNRESTRICTED,"$1,687.50"
48,J.F. Drake State,300639,LARAKESHA C HENLEY,Sep,30,2010,Other Contractual Services,TITLE III,"$1,075.00"
48,J.F. Drake State,300640,DEBORAH HILL,Sep,30,2010,Instructional Salaries - Tempo,UNRESTRICTED,$270.00
48,J.F. Drake State,300641,JOHN DAVID HILLENBERG,Sep,30,2010,Other Contractual Services,TITLE III,$403.13
48,J.F. Drake State,300642,KHALID HOLMES,Sep,30,2010,Instructional Salaries - Tempo,UNRESTRICTED,"$1,125.00"
48,J.F. Drake State,300643,TERESA HOOPER,Sep,30,2010,Instructional Salaries - Tempo,UNRESTRICTED,$480.00
48,J.F. Drake State,300644,CHRISTINE H HUNT,Sep,30,2010,Instructional Salaries - Tempo,UNRESTRICTED,$675.00
48,J.F. Drake State,300645,NEOKA JANE IVEY,Sep,30,2010,Other Contractual Services,TITLE III,"$1,937.50"
48,J.F. Drake State,300646,STEPHANIE JONES BOUNDS,Sep,30,2010,Instructional Salaries - Regul,UNRESTRICTED,"$3,535.00"
48,J.F. Drake State,300647,JUSTIN M KELLY,Sep,30,2010,Instructional Salaries - Tempo,UNRESTRICTED,$675.00
48,J.F. Drake State,300648,TELLUS LANGFORD,Sep,30,2010,Instructional Salaries - Tempo,UNRESTRICTED,"$1,012.50"
48,J.F. Drake State,300649,CASEY D LEWIS,Sep,30,2010,Instructional Salaries - Tempo,UNRESTRICTED,$225.00
48,J.F. Drake State,300650,STEPHANY L STEINFAITH,Sep,30,2010,Instructional Salaries - Tempo,UNRESTRICTED,$337.50
48,J.F. Drake State,300651,TERRY L LUNA,Sep,30,2010,Other Contractual Services,TITLE III,$712.50
48,J.F. Drake State,300652,RODNEY D MARTIN,Sep,30,2010,Other Contractual Services,TITLE III,$950.00
48,J.F. Drake State,300653,DEMETIUS L MCCARTY,Sep,30,2010,Support Personnel Salaries - S,UNRESTRICTED,"$1,968.00"
48,J.F. Drake State,300654,CLINT ALEXANDER MCINTIRE,Sep,30,2010,Other Contractual Services,TITLE III,$771.88
48,J.F. Drake State,300655,MISHIKI A MCINTYRE,Sep,30,2010,Other Contractual Services,TITLE III,$900.00
48,J.F. Drake State,300657,JAIRUS JOVUN MORROW,Sep,30,2010,Other Contractual Services,TITLE III,$112.50
48,J.F. Drake State,300658,KAREN NEIR,Sep,30,2010,Instructional Salaries - Tempo,UNRESTRICTED,"$2,280.00"
48,J.F. Drake State,300659,RICHARD H NEWTON,Sep,30,2010,Other Contractual Services,TITLE III,"$1,168.75"
48,J.F. Drake State,300660,DOROTHY J NOBLE,Sep,30,2010,Instructional Salaries - Tempo,UNRESTRICTED,"$1,687.50"
48,J.F. Drake State,300661,JERROLD DION PHIPPS,Sep,30,2010,Instructional Salaries - Tempo,UNRESTRICTED,"$1,350.00"
48,J.F. Drake State,300662,INODU TONY PIRI,Sep,30,2010,Instructional Salaries - Tempo,UNRESTRICTED,$337.50
48,J.F. Drake State,300663,JAMES W PLEASURE,Sep,30,2010,Instructional Salaries - Tempo,UNRESTRICTED,"$1,012.50"
48,J.F. Drake State,300664,PATRICIA RAMEY,Sep,30,2010,Instructional Salaries - Tempo,UNRESTRICTED,"$3,120.00"
48,J.F. Drake State,300665,LYSCELLE M REYES,Sep,30,2010,Instructional Salaries - Tempo,UNRESTRICTED,$562.50
48,J.F. Drake State,300666,HAZEL L RICHARDSON,Sep,30,2010,Instructional Salaries - Tempo,UNRESTRICTED,$225.00
48,J.F. Drake State,300667,MARTHA J ROBERTS,Sep,30,2010,Support Personnel Salaries - S,UNRESTRICTED,"$4,940.33"
48,J.F. Drake State,300668,RICKY M SHOCKLEY,Sep,30,2010,Other Contractual Services,TITLE III,$706.25
48,J.F. Drake State,300670,COREY ANNA STRAITS,Sep,30,2010,Other Contractual Services,HEALTH SCIENCES GRANT,$506.25
48,J.F. Drake State,300671,DANA L STUCKEY,Sep,30,2010,Instructional Salaries - Tempo,UNRESTRICTED,"$1,350.00"
48,J.F. Drake State,300672,RUSSELL B THOMAS,Sep,30,2010,Other Contractual Services,TITLE III,$987.50
48,J.F. Drake State,300673,ELIZABETH A TUGGLE,Sep,30,2010,Instructional Salaries - Tempo,UNRESTRICTED,"$2,028.00"
48,J.F. Drake State,300675,MELINDA WEST,Sep,30,2010,Instructional Salaries - Tempo,UNRESTRICTED,$555.00
48,J.F. Drake State,300676,DWAYNIA WILKERSON,Sep,30,2010,Other Contractual Services,TITLE III,$700.00
48,J.F. Drake State,300677,BRANDI G WINCHESTER,Sep,30,2010,Instructional Salaries - Tempo,UNRESTRICTED,$675.00
48,J.F. Drake State,300678,BRYAN T WRIGHTS,Sep,30,2010,Instructional Salaries - Tempo,UNRESTRICTED,"$1,125.00"
48,J.F. Drake State,300679,DANIEL W YOCOM,Sep,30,2010,Support Personnel Salaries - S,CAREER COACHES,"$2,559.33"
48,J.F. Drake State,90000341,LYSA AUGUSTIN,Sep,30,2010,Instructional Salaries - Tempo,UNRESTRICTED,$660.00
48,J.F. Drake State,90000342,NELSON E BARNES,Sep,30,2010,Instructional Salaries - Tempo,UNRESTRICTED,"$1,012.50"
48,J.F. Drake State,90000344,HAROLD E BATTS,Sep,30,2010,Other Professional Salaries -,UNRESTRICTED,"$8,649.00"
48,J.F. Drake State,90000346,ANGELA NICOLE BELL,Sep,30,2010,Instructional Salaries - Regul,UNRESTRICTED,"$5,372.00"
48,J.F. Drake State,90000348,TIFFANY M BETTERTON,Sep,30,2010,Instructional Salaries - Tempo,UNRESTRICTED,$817.50
48,J.F. Drake State,90000349,CHERYL BRAWLEY-KELLY,Sep,30,2010,Instructional Salaries - Tempo,UNRESTRICTED,$540.00
48,J.F. Drake State,90000350,BRUCE A BULLUCK,Sep,30,2010,Other Professional Salaries -,UNRESTRICTED,"$5,833.33"
48,J.F. Drake State,90000351,LINDA BURRUSS,Sep,30,2010,Instructional Salaries - Tempo,UNRESTRICTED,"$1,125.00"
48,J.F. Drake State,90000352,KHALILAH BURTON,Sep,30,2010,Instructional Salaries - Tempo,UNRESTRICTED,"$1,012.50"
48,J.F. Drake State,90000352,KHALILAH BURTON,Sep,30,2010,Instructional Salaries - Regul,NAT'L SCIENCE FOUNDATION,$932.25
48,J.F. Drake State,90000352,KHALILAH BURTON,Sep,30,2010,Instructional Salaries - Regul,ARRA STIMULUS FUNDS,"$2,796.75"
48,J.F. Drake State,90000353,SHEEREEN A BURTON,Sep,30,2010,Other Contractual Services,TITLE III,"$1,037.50"
48,J.F. Drake State,90000354,KEMBA CHAMBERS,Sep,30,2010,Other Professional Salaries -,UNRESTRICTED,"$7,360.42"
48,J.F. Drake State,90000355,ADAM CLARK,Sep,30,2010,Instructional Salaries - Regul,UNRESTRICTED,"$4,934.33"
48,J.F. Drake State,90000355,ADAM CLARK,Sep,30,2010,Instructional Salaries - Tempo,UNRESTRICTED,"$1,575.00"
48,J.F. Drake State,90000356,APRIL CLEMENT,Sep,30,2010,Other Professional Salaries -,TITLE III,"$4,000.00"
48,J.F. Drake State,90000357,MONIQUE C COSBY,Sep,30,2010,Support Personnel Salaries - S,UNRESTRICTED,"$3,228.75"
48,J.F. Drake State,90000358,MATTIE D DAVIS,Sep,30,2010,Instructional Salaries - Regul,UNRESTRICTED,"$6,493.56"
48,J.F. Drake State,90000358,MATTIE D DAVIS,Sep,30,2010,Instructional Salaries - Tempo,ALLIED HEALTH,$900.00
48,J.F. Drake State,90000359,MARLO DRAKE,Sep,30,2010,Support Personnel Salaries - S,ARRA STIMULUS FUNDS,"$2,365.69"
48,J.F. Drake State,90000359,MARLO DRAKE,Sep,30,2010,Support Personnel Salaries - S,TITLE III,$788.56
48,J.F. Drake State,90000360,MARTHA W DUBEY,Sep,30,2010,Support Personnel Salaries - S,UNRESTRICTED,"$4,500.00"
48,J.F. Drake State,90000361,GABRIELE DUNSEITH,Sep,30,2010,Instructional Salaries - Tempo,UNRESTRICTED,$495.00
48,J.F. Drake State,90000362,CHRISTIANA A OPARA EGBUJO,Sep,30,2010,Instructional Salaries - Tempo,UNRESTRICTED,$540.00
48,J.F. Drake State,90000363,GAIL E FISCH,Sep,30,2010,Instructional Salaries - Regul,UNRESTRICTED,"$2,687.50"
48,J.F. Drake State,90000364,EDWIN T FORBES,Sep,30,2010,Instructional Salaries - Regul,UNRESTRICTED,"$3,951.42"
48,J.F. Drake State,90000365,BONNIE GARRETT,Sep,30,2010,Instructional Salaries - Tempo,UNRESTRICTED,"$1,125.00"
48,J.F. Drake State,90000366,TIMOTHY RYAN GREEN,Sep,30,2010,Instructional Salaries - Regul,UNRESTRICTED,"$3,823.78"
48,J.F. Drake State,90000366,TIMOTHY RYAN GREEN,Sep,30,2010,Instructional Salaries - Tempo,UNRESTRICTED,"$2,025.00"
48,J.F. Drake State,90000367,CHARLES GROSS,Sep,30,2010,Instructional Salaries - Tempo,UNRESTRICTED,"$1,012.50"
48,J.F. Drake State,90000368,MANELZA CRAWFORD HAMBRICK,Sep,30,2010,Support Personnel Salaries - S,UNRESTRICTED,"$2,411.00"
48,J.F. Drake State,90000369,AUNDREA D HANSON,Sep,30,2010,Instructional Salaries - Tempo,UNRESTRICTED,"$1,350.00"
48,J.F. Drake State,90000370,CAROLYN HENDERSON,Sep,30,2010,Instructional Salaries - Tempo,UNRESTRICTED,"$1,012.50"
48,J.F. Drake State,90000370,CAROLYN HENDERSON,Sep,30,2010,Instructional Salaries - Regul,NAT'L SCIENCE FOUNDATION,$987.85
48,J.F. Drake State,90000370,CAROLYN HENDERSON,Sep,30,2010,Instructional Salaries - Regul,ARRA STIMULUS FUNDS,"$2,963.56"
48,J.F. Drake State,90000371,DEXTER R HENRY,Sep,30,2010,Instructional Salaries - Regul,UNRESTRICTED,"$6,416.89"
48,J.F. Drake State,90000371,DEXTER R HENRY,Sep,30,2010,Instructional Salaries - Tempo,UNRESTRICTED,$562.50
48,J.F. Drake State,90000372,KARL W HENRY SR,Sep,30,2010,Instructional Salaries - Regul,UNRESTRICTED,"$5,546.25"
48,J.F. Drake State,90000372,KARL W HENRY SR,Sep,30,2010,Instructional Salaries - Regul,NAT'L SCIENCE FOUNDATION,"$1,715.42"
48,J.F. Drake State,90000373,DORIS HINTON,Sep,30,2010,Instructional Salaries - Regul,UNRESTRICTED,"$5,416.78"
48,J.F. Drake State,90000373,DORIS HINTON,Sep,30,2010,Instructional Salaries - Regul,ALLIED HEALTH,$787.50
48,J.F. Drake State,90000374,CANDICE HOWELL,Sep,30,2010,Instructional Salaries - Tempo,UNRESTRICTED,$225.00
48,J.F. Drake State,90000375,PATRICIA HUGHES,Sep,30,2010,Administrative Salaries- Sched,UNRESTRICTED,"$7,893.08"
48,J.F. Drake State,90000377,JAN J HYMAN,Sep,30,2010,Support Personnel Salaries - S,UNRESTRICTED,"$1,301.76"
48,J.F. Drake State,90000377,JAN J HYMAN,Sep,30,2010,Support Personnel Salaries - S,ALLIED HEALTH,"$1,216.74"
48,J.F. Drake State,90000379,SARAH J JAMAR,Sep,30,2010,Instructional Salaries - Tempo,UNRESTRICTED,$787.50
48,J.F. Drake State,90000379,SARAH J JAMAR,Sep,30,2010,Other Contractual Services,NAT'L SCIENCE FOUNDATION,"$1,820.00"
48,J.F. Drake State,90000380,DETRIC R JAMES,Sep,30,2010,Support Personnel Salaries - S,ARRA STIMULUS FUNDS,$974.50
48,J.F. Drake State,90000380,DETRIC R JAMES,Sep,30,2010,Support Personnel Salaries - S,TITLE III,"$2,923.50"
48,J.F. Drake State,90000381,DONYALE D JONES,Sep,30,2010,Instructional Salaries - Tempo,UNRESTRICTED,$112.50
48,J.F. Drake State,90000381,DONYALE D JONES,Sep,30,2010,Support Personnel Salaries - S,TITLE III,"$3,303.41"
48,J.F. Drake State,90000382,PETURA M JONES,Sep,30,2010,Instructional Salaries - Tempo,UNRESTRICTED,$900.00
48,J.F. Drake State,90000383,CHERYL P KEMP,Sep,30,2010,Instructional Salaries - Tempo,UNRESTRICTED,"$2,400.00"
48,J.F. Drake State,90000384,PRAVEENA KOMMIDI,Sep,30,2010,Instructional Salaries - Regul,UNRESTRICTED,"$6,345.33"
48,J.F. Drake State,90000384,PRAVEENA KOMMIDI,Sep,30,2010,Instructional Salaries - Tempo,UNRESTRICTED,$337.50
48,J.F. Drake State,90000385,NICHOLAS PAUL KSEPKA,Sep,30,2010,Hourly Wages,UNRESTRICTED,"$1,545.00"
48,J.F. Drake State,90000385,NICHOLAS PAUL KSEPKA,Sep,30,2010,Other Contractual Services,TITLE III,$562.50
48,J.F. Drake State,90000386,HONG THUYDUC LAM,Sep,30,2010,Instructional Salaries - Regul,UNRESTRICTED,"$6,082.67"
48,J.F. Drake State,90000387,JOYCE P LAMAR,Sep,30,2010,Support Personnel Salaries - S,UNRESTRICTED,"$4,419.17"
48,J.F. Drake State,90000388,ANNA LOVELL,Sep,30,2010,Instructional Salaries - Regul,UNRESTRICTED,"$4,230.78"
48,J.F. Drake State,90000389,MICHEAL V MAXTON,Sep,30,2010,Instructional Salaries - Tempo,UNRESTRICTED,$675.00
48,J.F. Drake State,90000390,MUKESHA MBUGUJE,Sep,30,2010,Instructional Salaries - Tempo,UNRESTRICTED,$420.00
48,J.F. Drake State,90000391,HELEN T MCALPINE,Sep,30,2010,Administrative Salaries- Sched,UNRESTRICTED,"$14,266.45"
48,J.F. Drake State,90000391,HELEN T MCALPINE,Sep,30,2010,President's Expense Allowance,UNRESTRICTED,$200.00
48,J.F. Drake State,90000391,HELEN T MCALPINE,Sep,30,2010,Housing Allowance,UNRESTRICTED,"$1,000.00"
48,J.F. Drake State,90000392,JERRY L MCCAULLEY,Sep,30,2010,Instructional Salaries - Tempo,UNRESTRICTED,"$1,800.00"
48,J.F. Drake State,90000393,PATRICK T MCDONALD,Sep,30,2010,Other Contractual Services,TITLE III,"$1,187.50"
48,J.F. Drake State,90000394,SCOTTY MCLAUGHLIN,Sep,30,2010,Instructional Salaries - Regul,UNRESTRICTED,"$7,016.44"
48,J.F. Drake State,90000394,SCOTTY MCLAUGHLIN,Sep,30,2010,Instructional Salaries - Tempo,UNRESTRICTED,$562.50
48,J.F. Drake State,90000395,DEBORAH A MILLING,Sep,30,2010,Instructional Salaries - Regul,UNRESTRICTED,"$4,962.33"
48,J.F. Drake State,90000396,SAMMY J MILTON,Sep,30,2010,Support Personnel Salaries - S,UNRESTRICTED,"$3,452.83"
48,J.F. Drake State,90000397,PREMA A MONTEIRO,Sep,30,2010,Instructional Salaries - Regul,UNRESTRICTED,"$4,823.78"
48,J.F. Drake State,90000398,MARY JO MORAN,Sep,30,2010,Instructional Salaries - Tempo,UNRESTRICTED,"$1,815.00"
48,J.F. Drake State,90000399,BRUCE D MORRISON,Sep,30,2010,Support Personnel Salaries - S,UNRESTRICTED,"$4,196.17"
48,J.F. Drake State,90000400,KATHRYN B NEAL,Sep,30,2010,Other Professional Salaries -,UNRESTRICTED,"$7,905.25"
48,J.F. Drake State,90000402,JENNIFER O'LINGER,Sep,30,2010,Support Personnel Salaries - S,UNRESTRICTED,"$3,228.75"
48,J.F. Drake State,90000404,JENNIFER E PATTERSON,Sep,30,2010,Instructional Salaries - Tempo,UNRESTRICTED,$675.00
48,J.F. Drake State,90000404,JENNIFER E PATTERSON,Sep,30,2010,Instructional Salaries - Regul,UNRESTRICTED,"$4,981.42"
48,J.F. Drake State,90000405,ALBERT B PETERSON II,Sep,30,2010,Instructional Salaries - Tempo,UNRESTRICTED,$364.00
48,J.F. Drake State,90000406,JAMES ANTHONY PLENTY,Sep,30,2010,Instructional Salaries - Tempo,UNRESTRICTED,$787.50
48,J.F. Drake State,90000407,GWENDOLYN D POPE,Sep,30,2010,Instructional Salaries - Regul,UNRESTRICTED,"$5,651.75"
48,J.F. Drake State,90000408,FREDRICK O PRUITT,Sep,30,2010,Instructional Salaries - Regul,UNRESTRICTED,"$4,972.00"
48,J.F. Drake State,90000408,FREDRICK O PRUITT,Sep,30,2010,Instructional Salaries - Tempo,UNRESTRICTED,"$1,350.00"
48,J.F. Drake State,90000409,MICHAEL RADDEN,Sep,30,2010,Instructional Salaries - Tempo,UNRESTRICTED,"$1,012.50"
48,J.F. Drake State,90000410,LORAINE RAGIN,Sep,30,2010,Instructional Salaries - Regul,UNRESTRICTED,"$3,823.78"
48,J.F. Drake State,90000411,ALICE G RAYMOND,Sep,30,2010,Instructional Salaries - Regul,UNRESTRICTED,"$8,079.67"
48,J.F. Drake State,90000412,JOYCE L RENTZ,Sep,30,2010,Instructional Salaries - Regul,UNRESTRICTED,"$6,706.33"
48,J.F. Drake State,90000412,JOYCE L RENTZ,Sep,30,2010,Instructional Salaries - Tempo,UNRESTRICTED,$675.00
48,J.F. Drake State,90000413,JOHN REUTTER III,Sep,30,2010,Other Professional Salaries -,NAT'L SCIENCE FOUNDATION,"$6,616.75"
48,J.F. Drake State,90000414,BARRY E SHELTON,Sep,30,2010,Instructional Salaries - Tempo,UNRESTRICTED,"$1,410.00"
48,J.F. Drake State,90000415,JACQUELINE M SHIVERS,Sep,30,2010,Instructional Salaries - Tempo,UNRESTRICTED,"$1,712.50"
48,J.F. Drake State,90000416,LESLEY SHOTTS,Sep,30,2010,Instructional Salaries - Regul,UNRESTRICTED,"$4,336.17"
48,J.F. Drake State,90000417,PATRICIA GORDON SIMS,Sep,30,2010,Administrative Salaries- Sched,UNRESTRICTED,"$9,245.09"
48,J.F. Drake State,90000418,RYAN E SMITH,Sep,30,2010,Other Professional Salaries -,UNRESTRICTED,"$4,000.00"
48,J.F. Drake State,90000419,DELORIS A SMOTHERS,Sep,30,2010,Instructional Salaries - Tempo,UNRESTRICTED,$337.50
48,J.F. Drake State,90000419,DELORIS A SMOTHERS,Sep,30,2010,Instructional Salaries - Regul,UNRESTRICTED,"$7,261.67"
48,J.F. Drake State,90000420,JULIE P SPURGEON,Sep,30,2010,Support Personnel Salaries - S,UNRESTRICTED,"$1,964.25"
48,J.F. Drake State,90000421,VERLINDSEY B STEWART,Sep,30,2010,Instructional Salaries - Regul,UNRESTRICTED,"$6,616.44"
48,J.F. Drake State,90000422,MONICA SUDEALL-HAWKINS,Sep,30,2010,Instructional Salaries - Tempo,UNRESTRICTED,$90.00
48,J.F. Drake State,90000422,MONICA SUDEALL-HAWKINS,Sep,30,2010,Other Professional Salaries -,UNRESTRICTED,"$4,993.33"
48,J.F. Drake State,90000423,SHANNON SUMMERS,Sep,30,2010,Instructional Salaries - Tempo,UNRESTRICTED,$726.00
48,J.F. Drake State,90000424,DOCQUINN N TAYLOR,Sep,30,2010,Instructional Salaries - Tempo,UNRESTRICTED,$112.50
48,J.F. Drake State,90000424,DOCQUINN N TAYLOR,Sep,30,2010,Other Contractual Services,TITLE III,$700.00
48,J.F. Drake State,90000425,JOY D TORNQUIST,Sep,30,2010,Instructional Salaries - Tempo,UNRESTRICTED,"$2,160.00"
48,J.F. Drake State,90000426,KRISTIN TREADWAY,Sep,30,2010,Other Professional Salaries -,ALLIED HEALTH,"$2,782.25"
48,J.F. Drake State,90000427,JOYLYN ERNA TROTMAN,Sep,30,2010,Other Professional Salaries -,UNRESTRICTED,"$4,465.83"
48,J.F. Drake State,90000428,GILBERT T TURLEY,Sep,30,2010,Other Professional Salaries -,UNRESTRICTED,"$6,450.08"
48,J.F. Drake State,90000429,LETITIA E WALKER,Sep,30,2010,Support Personnel Salaries - S,UNRESTRICTED,"$3,229.42"
48,J.F. Drake State,90000430,THEO NATHAN WALSTON,Sep,30,2010,Support Personnel Salaries - S,ARRA STIMULUS FUNDS,"$2,262.08"
48,J.F. Drake State,90000431,KATINA L WALTON,Sep,30,2010,Instructional Salaries - Tempo,UNRESTRICTED,"$1,228.50"
48,J.F. Drake State,90000432,KRISHALON WILKERSON,Sep,30,2010,Instructional Salaries - Tempo,UNRESTRICTED,"$1,350.00"
48,J.F. Drake State,90000433,RICKY WILLINGHAM,Sep,30,2010,Administrative Salaries- Sched,TITLE III,"$6,886.58"
48,J.F. Drake State,90000434,INA M WILSON,Sep,30,2010,Other Professional Salaries -,TITLE III,"$4,028.57"
48,J.F. Drake State,90000435,GEORGE R WINN,Sep,30,2010,Instructional Salaries - Regul,UNRESTRICTED,"$5,527.33"
48,J.F. Drake State,90000435,GEORGE R WINN,Sep,30,2010,Instructional Salaries - Tempo,UNRESTRICTED,$675.00
48,J.F. Drake State,90000436,JOHNIKA WORD,Sep,30,2010,Support Personnel Salaries - S,UNRESTRICTED,$600.00
48,J.F. Drake State,90000437,ANDRAIN YELDELL,Sep,30,2010,Instructional Salaries - Tempo,UNRESTRICTED,$225.00
48,J.F. Drake State,300689,DONALD ORR,Sep,30,2010,Support Personnel Salaries - S,UNRESTRICTED,"$3,750.17"
48,J.F. Drake State,201442,"CONCORD USA, INC",Sep,29,2010,Materials and Supplies,TITLE III,"$5,695.00"
48,J.F. Drake State,201443,DORIS HINTON,Sep,29,2010,Out-of-State Travel,ALLIED HEALTH,$241.03
48,J.F. Drake State,201444,JANPAK,Sep,29,2010,Materials and Supplies,ALLIED HEALTH,"$1,932.69"
48,J.F. Drake State,201445,LEARNING LABS INC.,Sep,29,2010,Materials and Supplies,TITLE III,"$3,015.00"
48,J.F. Drake State,201446,"MCALPINE, HELEN",Sep,29,2010,In-State Travel,TITLE III,$225.00
48,J.F. Drake State,201447,"OFFICE DEPOT, INC.",Sep,29,2010,Materials and Supplies,ALLIED HEALTH CARRYOVER,$182.99
48,J.F. Drake State,201448,"OFFICE DEPOT, INC.",Sep,29,2010,Materials and Supplies,TITLE III,$161.28
48,J.F. Drake State,201449,SEXTON WELDING SUPPLY,Sep,29,2010,Materials and Supplies,TITLE III,$763.10
48,J.F. Drake State,201450,KRISTIN TREADWAY,Sep,29,2010,Out-of-State Travel,ALLIED HEALTH,$107.46
48,J.F. Drake State,100927,"BURMAX, INC.",Sep,29,2010,Purchases for Resale,UNRESTRICTED,$52.10
48,J.F. Drake State,100928,C & C BUILDING SERVICES,Sep,29,2010,Maintenance and Repairs,PLANT FUNDS,"$3,496.00"
48,J.F. Drake State,100929,CHEVRON CARD SERVICES,Sep,29,2010,Gasoline and Oil - Motor Vehic,UNRESTRICTED,$483.34
48,J.F. Drake State,100930,DAVIS SHERRI,Sep,29,2010,Institutional Use,UNRESTRICTED,"$1,500.00"
48,J.F. Drake State,100931,ELSEVIER/HESI,Sep,29,2010,Purchases for Resale,AUXILIARY,"$1,104.00"
48,J.F. Drake State,100932,ENGINEERED MAINTENANCE,Sep,29,2010,Materials and Supplies,UNRESTRICTED,$59.40
48,J.F. Drake State,100933,GRAINGER,Sep,29,2010,Materials and Supplies,UNRESTRICTED,"$1,344.64"
48,J.F. Drake State,100934,JOHNSTONE SUPPLY,Sep,29,2010,Purchases for Resale,UNRESTRICTED,"$1,219.87"
48,J.F. Drake State,100935,JOHNSTONE SUPPLY,Sep,29,2010,Purchases for Resale,UNRESTRICTED,"$1,219.87"
48,J.F. Drake State,100936,JOHNSTONE SUPPLY,Sep,29,2010,Purchases for Resale,UNRESTRICTED,"$1,219.87"
48,J.F. Drake State,100937,JOHNSTONE SUPPLY,Sep,29,2010,Purchases for Resale,UNRESTRICTED,"$1,219.87"
48,J.F. Drake State,100938,JOHNSTONE SUPPLY,Sep,29,2010,Purchases for Resale,UNRESTRICTED,"$1,219.87"
48,J.F. Drake State,100939,JOHNSTONE SUPPLY,Sep,29,2010,Purchases for Resale,UNRESTRICTED,"$1,219.87"
48,J.F. Drake State,100940,"LANIER,FORD,SHAVER &",Sep,29,2010,Legal Services,UNRESTRICTED,"$4,459.08"
48,J.F. Drake State,100941,"LANIER,FORD,SHAVER &",Sep,29,2010,Legal Services,UNRESTRICTED,$76.00
48,J.F. Drake State,100942,"LANIER,FORD,SHAVER &",Sep,29,2010,Legal Services,UNRESTRICTED,$703.00
48,J.F. Drake State,100943,LOWE'S,Sep,29,2010,Materials and Supplies,PLANT FUNDS,"$2,119.89"
48,J.F. Drake State,100944,"MCGRAW-HILL, INC",Sep,29,2010,Purchases for Resale,UNRESTRICTED,"$4,147.67"
48,J.F. Drake State,100945,MCNEESE GLASS COMPANY,Sep,29,2010,Materials and Supplies,PLANT FUNDS,$691.60
48,J.F. Drake State,100946,MID CITY SUPPLY CO,Sep,29,2010,Materials and Supplies,UNRESTRICTED,$319.00
48,J.F. Drake State,100947,MYRTES DUNN GREEN,Sep,29,2010,Institutional Use,UNRESTRICTED,"$1,500.00"
48,J.F. Drake State,100948,"NORTH AL LAWN CARE,INC",Sep,29,2010,Other Contractual Services,UNRESTRICTED,$819.23
48,J.F. Drake State,100949,PITNEY BOWES,Sep,29,2010,Other Contractual Services,UNRESTRICTED,$657.00
48,J.F. Drake State,100950,SAFETY KLEEN CORPORATION,Sep,29,2010,Other Contractual Services,UNRESTRICTED,$365.16
48,J.F. Drake State,100951,SPEAKIN OUT NEWS,Sep,29,2010,Advertising and Promotions,UNRESTRICTED,$595.35
48,J.F. Drake State,100952,THE ALABAMA LAWNMASTERS,Sep,29,2010,Materials and Supplies,UNRESTRICTED,$643.00
48,J.F. Drake State,100953,4IMPRINT,Sep,29,2010,Purchases for Resale,UNRESTRICTED,"$4,771.42"
48,J.F. Drake State,100915,AL RESTAURANT CLEANERS,Sep,28,2010,Maintenance and Repairs,UNRESTRICTED,$650.00
48,J.F. Drake State,100916,BROOKS LOCK & KEY,Sep,28,2010,Maintenance and Repairs,UNRESTRICTED,$266.00
48,J.F. Drake State,100917,DAVIS SHERRI,Sep,28,2010,Institutional Use,UNRESTRICTED,"$1,500.00"
48,J.F. Drake State,100918,GLIDDEN PROFESSIONAL PAI,Sep,28,2010,Materials and Supplies,PLANT FUNDS,$575.60
48,J.F. Drake State,100919,HUNTSVILLE TIMES,Sep,28,2010,Advertising and Promotions,UNRESTRICTED,$710.00
48,J.F. Drake State,100920,LOWE'S,Sep,28,2010,Materials and Supplies,UNRESTRICTED,"$1,677.24"
48,J.F. Drake State,100921,MCNEESE GLASS COMPANY,Sep,28,2010,Materials and Supplies,UNRESTRICTED,$201.10
48,J.F. Drake State,100922,"OFFICE DEPOT, INC.",Sep,28,2010,Materials and Supplies,UNRESTRICTED,$462.22
48,J.F. Drake State,100923,PENGUIN GROUP INC,Sep,28,2010,Purchases for Resale,UNRESTRICTED,"$1,056.00"
48,J.F. Drake State,100924,ROTO-ROOTER PLUMBERS,Sep,28,2010,Maintenance and Repairs,UNRESTRICTED,$109.00
48,J.F. Drake State,100925,STANLEY STEEMER,Sep,28,2010,Other Contractual Services,UNRESTRICTED,"$1,020.06"
48,J.F. Drake State,100926,SUCCESS MARKETING,Sep,28,2010,Advertising and Promotions,UNRESTRICTED,"$5,232.00"
48,J.F. Drake State,201400,ALA. SUPERCOMPUTER FUND,Sep,27,2010,Materials and Supplies,TITLE III,"$1,373.00"
48,J.F. Drake State,201401,"APPLE COMPUTER, INC.",Sep,27,2010,Institutional Use,CARL PERKINS FUNDS,"$5,104.00"
48,J.F. Drake State,201402,BERNEY OFFICE SOLUTIONS,Sep,27,2010,Materials and Supplies,TITLE III CARRYOVER,$120.00
48,J.F. Drake State,201403,CDW-G,Sep,27,2010,Materials and Supplies,ALLIED HEALTH,"$12,046.80"
48,J.F. Drake State,201403,CDW-G,Sep,27,2010,Institutional Use,CARL PERKINS FUNDS,$792.95
48,J.F. Drake State,201403,CDW-G,Sep,27,2010,Materials and Supplies,TITLE III,"$4,843.00"
48,J.F. Drake State,201404,CDW-G,Sep,27,2010,Materials and Supplies,TITLE III,$680.38
48,J.F. Drake State,201405,CRI,Sep,27,2010,Materials and Supplies,TITLE III,$118.20
48,J.F. Drake State,201406,"DAVIS, MATTIE",Sep,27,2010,Out-of-State Travel,ALLIED HEALTH,$289.10
48,J.F. Drake State,201407,HOTEL ZA ZA HOUSTON,Sep,27,2010,Out-of-State Travel,TITLE III,$728.91
48,J.F. Drake State,201408,HUBERT,Sep,27,2010,Materials and Supplies,TITLE III,$397.14
48,J.F. Drake State,201409,DR. MOHAMMED R. KARIM,Sep,27,2010,Other Contractual Services,NAT'L SCIENCE FOUNDATION,"$3,250.00"
48,J.F. Drake State,201410,MEDCO,Sep,27,2010,Materials and Supplies,ALLIED HEALTH,"$1,910.59"
48,J.F. Drake State,201411,"MILLING, DEBORAH",Sep,27,2010,Out-of-State Travel,ALLIED HEALTH,$603.97
48,J.F. Drake State,201412,"OFFICE DEPOT, INC.",Sep,27,2010,Materials and Supplies,TITLE III,"$2,327.24"
48,J.F. Drake State,201412,"OFFICE DEPOT, INC.",Sep,27,2010,Materials and Supplies,NSF CARRYOVER,$104.60
48,J.F. Drake State,201413,"OFFICE DEPOT, INC.",Sep,27,2010,Materials and Supplies,TITLE III,$928.96
48,J.F. Drake State,201414,"OFFICE DEPOT, INC.",Sep,27,2010,Materials and Supplies,TITLE III,$509.81
48,J.F. Drake State,201415,"OFFICE DEPOT, INC.",Sep,27,2010,Materials and Supplies,TITLE III,$178.54
48,J.F. Drake State,201416,"OFFICE DEPOT, INC.",Sep,27,2010,Materials and Supplies,TITLE III,$219.96
48,J.F. Drake State,201417,"OFFICE DEPOT, INC.",Sep,27,2010,Materials and Supplies,TITLE III CARRYOVER,$474.90
48,J.F. Drake State,201418,"OFFICE DEPOT, INC.",Sep,27,2010,Materials and Supplies,TITLE III,"$4,959.45"
48,J.F. Drake State,201419,"OFFICE DEPOT, INC.",Sep,27,2010,Materials and Supplies,TITLE III,$160.09
48,J.F. Drake State,201421,ROCKHURST UNIVER CONT ED,Sep,27,2010,Out-of-State Travel,TITLE III,$199.00
48,J.F. Drake State,201422,SCRIP-SAFE SECURITY,Sep,27,2010,Materials and Supplies,TITLE III,$234.00
48,J.F. Drake State,201423,"TURLEY, GILBERT T",Sep,27,2010,Out-of-State Travel,TITLE III,"$2,353.41"
48,J.F. Drake State,201424,TURNING TECHNOLOGIES,Sep,27,2010,Materials and Supplies,TITLE III,"$1,695.58"
48,J.F. Drake State,100900,ALBERT'S FLOWERS,Sep,23,2010,Advertising and Promotions,UNRESTRICTED,$116.50
48,J.F. Drake State,100901,AMERICAN TECH. PUBLISHERS,Sep,23,2010,Purchases for Resale,UNRESTRICTED,"$3,586.62"
48,J.F. Drake State,100902,CROWN TROPHY,Sep,23,2010,Advertising and Promotions,UNRESTRICTED,$420.00
48,J.F. Drake State,100903,"DYNAMIC SECURITY, INC.",Sep,23,2010,Other Contractual Services,UNRESTRICTED,"$5,476.38"
48,J.F. Drake State,100904,IAS PROMOTES,Sep,23,2010,Materials and Supplies,UNRESTRICTED,"$1,293.85"
48,J.F. Drake State,100905,LOWE'S,Sep,23,2010,Maintenance and Repairs,PLANT FUNDS,"$1,408.10"
48,J.F. Drake State,100906,PRO-AIR SERVICES,Sep,23,2010,Materials and Supplies,PLANT FUNDS,"$12,153.37"
48,J.F. Drake State,100909,SAM'S CLUB/WALMART,Sep,23,2010,Memberships,UNRESTRICTED,$140.00
48,J.F. Drake State,100910,SCANTRON CORPORATION,Sep,23,2010,Materials and Supplies,HEALTH SCIENCES GRANT,"$8,260.00"
48,J.F. Drake State,100911,SEXTON WELDING SUPPLY,Sep,23,2010,Materials and Supplies,WELDING GRANT,"$1,079.51"
48,J.F. Drake State,100911,SEXTON WELDING SUPPLY,Sep,23,2010,Institutional Use,WELDING GRANT,"$12,882.00"
48,J.F. Drake State,100911,SEXTON WELDING SUPPLY,Sep,23,2010,Purchases for Resale,UNRESTRICTED,"$7,070.00"
48,J.F. Drake State,100912,SOUTHERNLINC WIRELESS,Sep,23,2010,Communications,UNRESTRICTED,$63.60
48,J.F. Drake State,100913,STANLEY STEEMER,Sep,23,2010,Other Contractual Services,UNRESTRICTED,"$3,727.25"
48,J.F. Drake State,100914,VON BRAUN CENTER,Sep,23,2010,Institutional Use,UNRESTRICTED,"$5,823.35"
48,J.F. Drake State,201371,ALABAMA TECHNOLOGY NETWOR,Sep,22,2010,In-State Travel,TITLE III,$175.00
48,J.F. Drake State,201372,"ALLIANT DATA SYSTEM,INC",Sep,22,2010,In-State Travel,TITLE III,"$2,909.41"
48,J.F. Drake State,201373,AMERICAN WELDING SOCIETY,Sep,22,2010,Memberships,TITLE III,$240.00
48,J.F. Drake State,201374,BUSINESS SYSTEMS & CONSUL,Sep,22,2010,Materials and Supplies,TITLE III,"$6,168.00"
48,J.F. Drake State,201375,"CAMCAD TECHNOLOGIES, INC",Sep,22,2010,Materials and Supplies,TITLE III,"$1,200.00"
48,J.F. Drake State,201376,CDW-G,Sep,22,2010,Materials and Supplies,TITLE III,"$6,302.51"
48,J.F. Drake State,201377,CDW-G,Sep,22,2010,Materials and Supplies,TITLE III,"$1,423.19"
48,J.F. Drake State,201378,CDW-G,Sep,22,2010,Materials and Supplies,TITLE III,"$1,731.28"
48,J.F. Drake State,201379,CDW-G,Sep,22,2010,Materials and Supplies,TITLE III,$567.54
48,J.F. Drake State,201380,CFGEAR,Sep,22,2010,Materials and Supplies,TECH PREP FUNDS,"$2,185.00"
48,J.F. Drake State,201381,DORIS HINTON,Sep,22,2010,In-State Travel,TITLE III,$438.00
48,J.F. Drake State,201382,ACCSPA,Sep,22,2010,In-State Travel,TITLE III,$300.00
48,J.F. Drake State,201383,DR. THELMA SCOTT-SKILLMAN,Sep,22,2010,Out-of-State Travel,TITLE III,"$1,200.00"
48,J.F. Drake State,201384,EMW CONSTRUCTION,Sep,22,2010,Improvements Other Than Buildi,TITLE III CARRYOVER,"$15,480.09"
48,J.F. Drake State,201385,HARLAND TECHNOLOGY SERV,Sep,22,2010,Materials and Supplies,TITLE III,$845.00
48,J.F. Drake State,201386,HD SUPPLY,Sep,22,2010,Materials and Supplies,HEALTH SCIENCES GRANT,"$2,596.84"
48,J.F. Drake State,201387,LORAINE RAGIN,Sep,22,2010,In-State Travel,TITLE III,$438.36
48,J.F. Drake State,201388,MAGNA PUBLICATIONS,Sep,22,2010,Subscriptions,TITLE III,$309.00
48,J.F. Drake State,201389,MIMS ENGINEERING,Sep,22,2010,Improvements Other Than Buildi,TITLE III,$731.00
48,J.F. Drake State,201390,ML MARKET LAB,Sep,22,2010,Materials and Supplies,ALLIED HEALTH,$441.20
48,J.F. Drake State,201391,MSC INDUSTRIAL SUPPLY,Sep,22,2010,Materials and Supplies,TITLE III,"$1,596.38"
48,J.F. Drake State,201392,NASPA,Sep,22,2010,Memberships,TITLE III,$375.00
48,J.F. Drake State,201393,"NATIONAL SEMINARS, INC.",Sep,22,2010,Out-of-State Travel,TITLE III,$597.00
48,J.F. Drake State,201394,"OFFICE DEPOT, INC.",Sep,22,2010,Materials and Supplies,TITLE III,$342.38
48,J.F. Drake State,201395,PRAVEENA KOMMIDI,Sep,22,2010,In-State Travel,TITLE III,$651.50
48,J.F. Drake State,201396,SACS/COC ANNUAL MEETING,Sep,22,2010,Out-of-State Travel,TITLE III,"$5,280.00"
48,J.F. Drake State,201397,"SCHOOLCRAFT, INC.",Sep,22,2010,Materials and Supplies,TITLE III,"$1,293.30"
48,J.F. Drake State,201398,"SIMS, PATRICIA G.",Sep,22,2010,Out-of-State Travel,TITLE III,$100.00
48,J.F. Drake State,201399,THOMPSON PUBLISHING GROUP,Sep,22,2010,Subscriptions,TITLE III,$438.50
48,J.F. Drake State,100857,ALABAMA A&M UNIVERITY,Sep,21,2010,Advertising and Promotions,UNRESTRICTED,$600.00
48,J.F. Drake State,100858,AMERICAN TECH. PUBLISHERS,Sep,21,2010,Purchases for Resale,UNRESTRICTED,"$1,484.93"
48,J.F. Drake State,100859,BIRMINGHAM NEWS,Sep,21,2010,Purchases for Resale,UNRESTRICTED,"$3,500.00"
48,J.F. Drake State,100860,C & C BUILDING SERVICES,Sep,21,2010,Maintenance and Repairs,PLANT FUNDS,"$4,956.50"
48,J.F. Drake State,100861,CENGAGE LEARNING,Sep,21,2010,Purchases for Resale,UNRESTRICTED,"$11,028.57"
48,J.F. Drake State,100862,CENGAGE LEARNING,Sep,21,2010,Purchases for Resale,UNRESTRICTED,"$3,014.81"
48,J.F. Drake State,100863,CONDITIONED AIR SOLUTIONS,Sep,21,2010,Maintenance and Repairs,PLANT FUNDS,"$1,280.00"
48,J.F. Drake State,100864,COPELAND CLEANERS,Sep,21,2010,Materials and Supplies,UNRESTRICTED,$200.03
48,J.F. Drake State,100865,AL CONSTITUTION VILLAGE,Sep,21,2010,Advertising and Promotions,UNRESTRICTED,"$1,000.00"
48,J.F. Drake State,100866,ELECTRONIX EXPRESS,Sep,21,2010,Purchases for Resale,UNRESTRICTED,$855.95
48,J.F. Drake State,100867,ELSEVIER/HESI,Sep,21,2010,Purchases for Resale,UNRESTRICTED,$971.65
48,J.F. Drake State,100868,FEDEX,Sep,21,2010,Communications,UNRESTRICTED,$269.57
48,J.F. Drake State,100869,GOODHEART-WILCOX COMPANY,Sep,21,2010,Purchases for Resale,UNRESTRICTED,"$2,154.87"
48,J.F. Drake State,100870,"HUGHES, PATRICIA",Sep,21,2010,Postage,UNRESTRICTED,$18.30
48,J.F. Drake State,100871,GLIDDEN PROFESSIONAL PAI,Sep,21,2010,Maintenance and Repairs,PLANT FUNDS,$182.96
48,J.F. Drake State,100872,K&K CLEANING SERVICES INC,Sep,21,2010,Other Contractual Services,UNRESTRICTED,"$8,505.30"
48,J.F. Drake State,100873,"LANIER,FORD,SHAVER &",Sep,21,2010,Legal Services,UNRESTRICTED,"$5,238.08"
48,J.F. Drake State,100874,"LANIER,FORD,SHAVER &",Sep,21,2010,Legal Services,UNRESTRICTED,"$1,687.97"
48,J.F. Drake State,100875,"LANIER,FORD,SHAVER &",Sep,21,2010,Legal Services,UNRESTRICTED,"$4,200.00"
48,J.F. Drake State,100876,LOOK ADVERTISING INC,Sep,21,2010,Advertising and Promotions,UNRESTRICTED,$350.00
48,J.F. Drake State,100877,LOWE'S,Sep,21,2010,Maintenance and Repairs,PLANT FUNDS,$504.47
48,J.F. Drake State,100878,MCGRAW HILL EDUCATION,Sep,21,2010,Materials and Supplies,ADULT ED,$607.92
48,J.F. Drake State,100879,MCNEESE GLASS COMPANY,Sep,21,2010,Materials and Supplies,UNRESTRICTED,$393.64
48,J.F. Drake State,100880,MID CITY SUPPLY CO,Sep,21,2010,Materials and Supplies,ARMY GRANT,"$1,076.32"
48,J.F. Drake State,100881,MID CITY SUPPLY CO,Sep,21,2010,Materials and Supplies,UNRESTRICTED,$988.80
48,J.F. Drake State,100882,MID CITY SUPPLY CO,Sep,21,2010,Materials and Supplies,UNRESTRICTED,$126.92
48,J.F. Drake State,100883,MOORE MEDICAL CORP,Sep,21,2010,Purchases for Resale,UNRESTRICTED,"$3,443.80"
48,J.F. Drake State,100884,"OFFICE DEPOT, INC.",Sep,21,2010,Materials and Supplies,UNRESTRICTED,$380.23
48,J.F. Drake State,100884,"OFFICE DEPOT, INC.",Sep,21,2010,Purchases for Resale,UNRESTRICTED,$471.34
48,J.F. Drake State,100885,"OFFICE DEPOT, INC.",Sep,21,2010,Purchases for Resale,UNRESTRICTED,$132.18
48,J.F. Drake State,100886,PEARSON,Sep,21,2010,Purchases for Resale,UNRESTRICTED,"$7,145.13"
48,J.F. Drake State,100887,PEARSON,Sep,21,2010,Purchases for Resale,UNRESTRICTED,"$1,576.84"
48,J.F. Drake State,100888,RUTHANNE SZENASI,Sep,21,2010,Other Contractual Services,UNRESTRICTED,$454.65
48,J.F. Drake State,100890,SAM'S CLUB/WALMART,Sep,21,2010,Materials and Supplies,UNRESTRICTED,"$1,000.00"
48,J.F. Drake State,100891,SKT ARCHITECTS,Sep,21,2010,Other Contractual Services,PLANT FUNDS,"$1,970.40"
48,J.F. Drake State,100892,SOUTHERN TOOL STEEL,Sep,21,2010,Materials and Supplies,UNRESTRICTED,"$1,043.00"
48,J.F. Drake State,100893,SUCCESS MARKETING,Sep,21,2010,Advertising and Promotions,UNRESTRICTED,"$23,261.00"
48,J.F. Drake State,100894,SUCCESS MARKETING,Sep,21,2010,Advertising and Promotions,UNRESTRICTED,$525.00
48,J.F. Drake State,100895,SUCCESS MARKETING,Sep,21,2010,Advertising and Promotions,UNRESTRICTED,"$10,717.00"
48,J.F. Drake State,100896,SUCCESS MARKETING,Sep,21,2010,Advertising and Promotions,UNRESTRICTED,$495.00
48,J.F. Drake State,100897,THE ALABAMA LAWNMASTERS,Sep,21,2010,Other Contractual Services,UNRESTRICTED,"$1,847.50"
48,J.F. Drake State,100899,WASTE MANAGEMENT OF NORTH,Sep,21,2010,Other Contractual Services,UNRESTRICTED,"$1,452.86"
48,J.F. Drake State,100827,NCMPR-DISTRICT,Sep,16,2010,Advertising and Promotions,UNRESTRICTED,$160.00
48,J.F. Drake State,100833,AEW,Sep,16,2010,Advertising and Promotions,UNRESTRICTED,$320.00
48,J.F. Drake State,100834,AFFORDABLE SIGNS & BANNER,Sep,16,2010,Materials and Supplies,PLANT FUNDS,"$1,864.25"
48,J.F. Drake State,100835,C & C BUILDING SERVICES,Sep,16,2010,Maintenance and Repairs,PLANT FUNDS,"$7,348.50"
48,J.F. Drake State,100836,C & C BUILDING SERVICES,Sep,16,2010,Maintenance and Repairs,PLANT FUNDS,"$3,760.50"
48,J.F. Drake State,100837,C & C BUILDING SERVICES,Sep,16,2010,Maintenance and Repairs,PLANT FUNDS,"$3,680.00"
48,J.F. Drake State,100838,CDW-G,Sep,16,2010,Materials and Supplies,HEALTH SCIENCES GRANT,"$6,560.28"
48,J.F. Drake State,100839,PETTY CASH,Sep,16,2010,Materials and Supplies,UNRESTRICTED,$371.40
48,J.F. Drake State,100839,PETTY CASH,Sep,16,2010,Maintenance and Repairs,UNRESTRICTED,$37.89
48,J.F. Drake State,100839,PETTY CASH,Sep,16,2010,Purchases for Resale,UNRESTRICTED,$24.24
48,J.F. Drake State,100840,"DYNAMIC SECURITY, INC.",Sep,16,2010,Other Contractual Services,UNRESTRICTED,"$11,337.69"
48,J.F. Drake State,100841,ELSEVIER/HESI,Sep,16,2010,Purchases for Resale,AUXILIARY,"$6,811.58"
48,J.F. Drake State,100842,EVOLVE REACH,Sep,16,2010,Purchases for Resale,AUXILIARY,"$5,155.58"
48,J.F. Drake State,100843,"FIVE-S, INC",Sep,16,2010,Materials and Supplies,PLANT FUNDS,"$5,307.05"
48,J.F. Drake State,100844,FURNITURE ROW,Sep,16,2010,Materials and Supplies,UNRESTRICTED,$176.00
48,J.F. Drake State,100845,HUNTSVILLE TIMES,Sep,16,2010,Advertising and Promotions,UNRESTRICTED,"$2,354.00"
48,J.F. Drake State,100846,HUNTSVILLE TIMES,Sep,16,2010,Other Contractual Services,UNRESTRICTED,$353.00
48,J.F. Drake State,100847,KUDER,Sep,16,2010,Computer Software,CAREER COACHES,"$21,748.75"
48,J.F. Drake State,100848,MCNEESE GLASS COMPANY,Sep,16,2010,Materials and Supplies,UNRESTRICTED,$110.00
48,J.F. Drake State,100850,SAM'S CLUB/WALMART,Sep,16,2010,Institutional Use,UNRESTRICTED,$500.00
48,J.F. Drake State,100851,SIGNS BY TOMORROW,Sep,16,2010,Materials and Supplies,PLANT FUNDS,"$4,590.00"
48,J.F. Drake State,100852,SIGNS BY TOMORROW,Sep,16,2010,Materials and Supplies,PLANT FUNDS,"$3,010.00"
48,J.F. Drake State,100853,SOUTHERNLINC WIRELESS,Sep,16,2010,Communications,UNRESTRICTED,$63.60
48,J.F. Drake State,100854,THE INTEGRITY GROUP,Sep,16,2010,Other Contractual Services,UNRESTRICTED,"$1,125.00"
48,J.F. Drake State,100855,UA HUNTSVILLE OFFICE,Sep,16,2010,Advertising and Promotions,UNRESTRICTED,$100.00
48,J.F. Drake State,100856,UAH HUNTSVILLE COPY,Sep,16,2010,Advertising and Promotions,UNRESTRICTED,"$1,860.00"
48,J.F. Drake State,201160,AL COMMUN COLLEGE SYS,Sep,15,2010,Memberships,TITLE III,$500.00
48,J.F. Drake State,201161,CDW-G,Sep,15,2010,Materials and Supplies,ALLIED HEALTH CARRYOVER,"$2,910.42"
48,J.F. Drake State,201162,CDW-G,Sep,15,2010,Materials and Supplies,ALLIED HEALTH,$530.27
48,J.F. Drake State,201163,CDW-G,Sep,15,2010,Materials and Supplies,ALLIED HEALTH,$629.52
48,J.F. Drake State,201164,WOW! BUSINESS,Sep,15,2010,Materials and Supplies,TITLE III,"$1,399.10"
48,J.F. Drake State,300615,CHRISTINA R SCISSUM,Sep,15,2010,Other Professional Salaries -,TITLE III CARRYOVER,$644.85
48,J.F. Drake State,300615,CHRISTINA R SCISSUM,Sep,15,2010,Other Professional Salaries -,TITLE III,$687.86
48,J.F. Drake State,201153,"ALLIANT DATA SYSTEM,INC",Sep,14,2010,In-State Travel,TITLE III,"$3,000.00"
48,J.F. Drake State,201154,AMERICAN EXPRESS,Sep,14,2010,Out-of-State Travel,TITLE III,$373.30
48,J.F. Drake State,201155,DIABETIC EXPRESS,Sep,14,2010,Materials and Supplies,HEALTH SCIENCES GRANT,"$1,200.83"
48,J.F. Drake State,201156,K-LOG,Sep,14,2010,Materials and Supplies,ALLIED HEALTH,$891.70
48,J.F. Drake State,201157,LOWE'S,Sep,14,2010,Materials and Supplies,TITLE III,"$1,680.00"
48,J.F. Drake State,201158,MEDICAL EDUCATION TECH,Sep,14,2010,Materials and Supplies,HEALTH SCIENCES GRANT,"$53,513.80"
48,J.F. Drake State,201158,MEDICAL EDUCATION TECH,Sep,14,2010,Computer Software,HEALTH SCIENCES GRANT,"$34,220.00"
48,J.F. Drake State,201158,MEDICAL EDUCATION TECH,Sep,14,2010,Furniture and Equipment,HEALTH SCIENCES GRANT,"$133,083.00"
48,J.F. Drake State,201159,"STI ELECTRONICS, INC.",Sep,14,2010,In-State Travel,TITLE III,$600.00
48,J.F. Drake State,100792,OFFICE FURNITURE OUTLET,Sep,14,2010,Materials and Supplies,PLANT FUNDS,"$7,458.00"
48,J.F. Drake State,300612,LAUREN BARNES,Sep,10,2010,Instructional Salaries - Tempo,NAT'L SCIENCE FOUNDATION,$840.00
48,J.F. Drake State,300613,CHARLES GROSS,Sep,10,2010,Instructional Salaries - Tempo,NAT'L SCIENCE FOUNDATION,$480.00
48,J.F. Drake State,300614,PETURA M JONES,Sep,10,2010,Instructional Salaries - Tempo,NAT'L SCIENCE FOUNDATION,$960.00
48,J.F. Drake State,201098,ALABAMA AUTO MANUFACT,Sep,9,2010,Memberships,TITLE III,$300.00
48,J.F. Drake State,201099,ANNA Y LOVELL,Sep,9,2010,In-State Travel,TITLE III,$300.00
48,J.F. Drake State,201100,"BATTS, HAROLD",Sep,9,2010,In-State Travel,TITLE III,$210.00
48,J.F. Drake State,201100,"BATTS, HAROLD",Sep,9,2010,Employee Taxable Per Diem,TITLE III,$30.00
48,J.F. Drake State,201101,CAROLINA BIOLOGICAL,Sep,9,2010,Memberships,TITLE III,$50.00
48,J.F. Drake State,201102,ADAM CLARK,Sep,9,2010,In-State Travel,TITLE III,$415.58
48,J.F. Drake State,201103,COUNTRY INNS & SUITES,Sep,9,2010,Out-of-State Travel,TITLE III,$379.90
48,J.F. Drake State,201104,STEPHANIE JONES BOUNDS,Sep,9,2010,In-State Travel,TITLE III,$446.00
48,J.F. Drake State,201105,LARDELL GOODLOE,Sep,9,2010,In-State Travel,TITLE III,$363.36
48,J.F. Drake State,201106,LRP PUBLICATIONS,Sep,9,2010,Materials and Supplies,TITLE III,$201.80
48,J.F. Drake State,201107,PREMA A MONTEIRO,Sep,9,2010,Out-of-State Travel,TITLE III,$216.71
48,J.F. Drake State,201108,"NEAL, KATHRYN B.",Sep,9,2010,In-State Travel,TITLE III,$633.91
48,J.F. Drake State,201109,RYAN GREEN,Sep,9,2010,In-State Travel,TITLE III,$225.00
48,J.F. Drake State,201110,UAH HUNTSVILLE COPY,Sep,9,2010,Materials and Supplies,TITLE III,"$1,687.00"
48,J.F. Drake State,100778,ACT,Sep,9,2010,Materials and Supplies,UNRESTRICTED,"$1,385.00"
48,J.F. Drake State,100779,BUBBA'S,Sep,9,2010,Advertising and Promotions,UNRESTRICTED,$498.75
48,J.F. Drake State,100780,COMMUNITY COLLEGE WEEK,Sep,9,2010,Subscriptions,UNRESTRICTED,$52.00
48,J.F. Drake State,100781,CTB/MCGRAW-HILL,Sep,9,2010,Materials and Supplies,UNRESTRICTED,"$2,034.21"
48,J.F. Drake State,100782,"DYNAMIC SECURITY, INC.",Sep,9,2010,Other Contractual Services,UNRESTRICTED,"$5,476.38"
48,J.F. Drake State,100783,HUNTSVILLE TIMES,Sep,9,2010,Advertising and Promotions,UNRESTRICTED,$234.80
48,J.F. Drake State,100784,LEADERSHIP ALABAMA,Sep,9,2010,Memberships,UNRESTRICTED,$150.00
48,J.F. Drake State,100786,"MCGRAW-HILL, INC",Sep,9,2010,Purchases for Resale,UNRESTRICTED,"$3,538.48"
48,J.F. Drake State,100787,MID CITY SUPPLY CO,Sep,9,2010,Purchases for Resale,UNRESTRICTED,$158.07
48,J.F. Drake State,100788,PENGUIN GROUP INC,Sep,9,2010,Purchases for Resale,UNRESTRICTED,"$1,098.24"
48,J.F. Drake State,100789,DEPARTMENT OF LABOR,Sep,9,2010,Materials and Supplies,UNRESTRICTED,$150.00
48,J.F. Drake State,100790,VERIZON WIRELESS,Sep,9,2010,Communications,UNRESTRICTED,$824.97
48,J.F. Drake State,100791,WITTICHEN SUPPLY COMPANY,Sep,9,2010,Maintenance and Repairs,UNRESTRICTED,$107.37
48,J.F. Drake State,201093,BERNEY OFFICE SOLUTIONS,Sep,2,2010,Materials and Supplies,TITLE III,$34.53
48,J.F. Drake State,201094,COPELAND CLEANERS,Sep,2,2010,Materials and Supplies,NAT'L SCIENCE FOUNDATION,$124.12
48,J.F. Drake State,201095,HUNTSVILLE TIMES,Sep,2,2010,Materials and Supplies,NAT'L SCIENCE FOUNDATION,"$1,120.95"
48,J.F. Drake State,201096,MOORE MEDICAL CORP,Sep,2,2010,Materials and Supplies,ALLIED HEALTH CARRYOVER,$477.35
48,J.F. Drake State,100750,ACT,Sep,1,2010,Materials and Supplies,UNRESTRICTED,$235.00
48,J.F. Drake State,100751,ALA. SUPERCOMPUTER FUND,Sep,1,2010,Other Contractual Services,UNRESTRICTED,"$13,493.00"
48,J.F. Drake State,100752,AMERICAN HOTEL&LODGING,Sep,1,2010,Purchases for Resale,UNRESTRICTED,"$1,518.40"
48,J.F. Drake State,100753,AT&T LONG DISTANCE SERV.,Sep,1,2010,Communications,UNRESTRICTED,$172.42
48,J.F. Drake State,100754,"BURMAX, INC.",Sep,1,2010,Purchases for Resale,UNRESTRICTED,"$1,277.83"
48,J.F. Drake State,100755,CDW-G,Sep,1,2010,Computer Software,NCCU MENTOR/PROTEGE,"$4,392.70"
48,J.F. Drake State,100755,CDW-G,Sep,1,2010,Computer Software,HP TECH FOR TEACHING,"$1,770.50"
48,J.F. Drake State,100756,CENGAGE LEARNING,Sep,1,2010,Purchases for Resale,UNRESTRICTED,"$67,150.17"
48,J.F. Drake State,100757,CHEVRON CARD SERVICES,Sep,1,2010,Gasoline and Oil - Motor Vehic,UNRESTRICTED,$441.05
48,J.F. Drake State,100758,COLONIAL GRAPHICS GROUP,Sep,1,2010,Advertising and Promotions,UNRESTRICTED,$745.00
48,J.F. Drake State,100759,COPELAND CLEANERS,Sep,1,2010,Materials and Supplies,UNRESTRICTED,$12.67
48,J.F. Drake State,100760,"DYNAMIC SECURITY, INC.",Sep,1,2010,Other Contractual Services,UNRESTRICTED,"$10,952.76"
48,J.F. Drake State,100761,FEDEX,Sep,1,2010,Communications,UNRESTRICTED,$159.73
48,J.F. Drake State,100762,KUDZU PRODUCTION,Sep,1,2010,Other Contractual Services,WELDING GRANT,"$3,337.50"
48,J.F. Drake State,100763,KUDZU PRODUCTION,Sep,1,2010,Other Contractual Services,WELDING GRANT,"$3,337.75"
48,J.F. Drake State,100764,THE LAMAR COMPANIES,Sep,1,2010,Advertising and Promotions,UNRESTRICTED,"$1,500.00"
48,J.F. Drake State,100765,LOOK ADVERTISING INC,Sep,1,2010,Advertising and Promotions,UNRESTRICTED,$350.00
48,J.F. Drake State,100766,LOWE'S,Sep,1,2010,Maintenance and Repairs,PLANT FUNDS,$508.76
48,J.F. Drake State,100767,MID CITY SUPPLY CO,Sep,1,2010,Materials and Supplies,UNRESTRICTED,"$1,327.10"
48,J.F. Drake State,100768,NIGHTINGALE UNIFORM COMPA,Sep,1,2010,Purchases for Resale,UNRESTRICTED,"$1,597.95"
48,J.F. Drake State,100769,"OFFICE DEPOT, INC.",Sep,1,2010,Materials and Supplies,UNRESTRICTED,"$1,336.13"
48,J.F. Drake State,100770,PEARSON,Sep,1,2010,Purchases for Resale,UNRESTRICTED,"$2,130.51"
48,J.F. Drake State,100771,SIGNS BY TOMORROW,Sep,1,2010,Materials and Supplies,PLANT FUNDS,"$2,928.00"
48,J.F. Drake State,201085,AMERICAN WELDING SOCIETY,Sep,1,2010,Memberships,TITLE III,$147.00
48,J.F. Drake State,201086,BUILDING SPECIALTIES CO,Sep,1,2010,Materials and Supplies,TITLE III,$730.10
48,J.F. Drake State,201087,CDW-G,Sep,1,2010,Materials and Supplies,TITLE III CARRYOVER,"$3,147.60"
48,J.F. Drake State,201087,CDW-G,Sep,1,2010,Materials and Supplies,TITLE III,"$1,166.24"
48,J.F. Drake State,201088,CDW-G,Sep,1,2010,Materials and Supplies,TITLE III CARRYOVER,"$4,755.55"
48,J.F. Drake State,201089,CRI,Sep,1,2010,Materials and Supplies,TITLE III,$282.50
48,J.F. Drake State,201090,K-LOG,Sep,1,2010,Materials and Supplies,ALLIED HEALTH,"$2,797.09"
48,J.F. Drake State,201091,"OFFICE DEPOT, INC.",Sep,1,2010,Materials and Supplies,ALLIED HEALTH,"$1,328.97"
48,J.F. Drake State,201092,STUART C. IRBY CO,Sep,1,2010,Materials and Supplies,TITLE III,"$2,940.00"
48,J.F. Drake State,300588,MICHAEL RADDEN,Sep,1,2010,Instructional Salaries - Tempo,UNRESTRICTED,$433.75
48,J.F. Drake State,300581,JACQUELINE T BOOKER,Aug,31,2010,Support Personnel Salaries - S,NAT'L SCIENCE FOUNDATION,"$1,918.40"
48,J.F. Drake State,300525,MELANIE K ALLEN,Aug,31,2010,Other Professional Salaries -,UNRESTRICTED,"$4,000.00"
48,J.F. Drake State,300526,ANGELA NICOLE BELL,Aug,31,2010,Instructional Salaries - Regul,UNRESTRICTED,"$4,870.66"
48,J.F. Drake State,300527,TIFFANY M BETTERTON,Aug,31,2010,Instructional Salaries - Tempo,UNRESTRICTED,$334.38
48,J.F. Drake State,300528,DEAVIANCE FOWLKS BLEVINS,Aug,31,2010,Other Contractual Services,ALLIED HEALTH,$575.00
48,J.F. Drake State,300529,CHERYL BRAWLEY-KELLY,Aug,31,2010,Instructional Salaries - Tempo,UNRESTRICTED,$321.00
48,J.F. Drake State,300530,BRUCE A BULLUCK,Aug,31,2010,Other Professional Salaries -,UNRESTRICTED,"$3,000.00"
48,J.F. Drake State,300531,ROGER CHEN,Aug,31,2010,Instructional Salaries - Tempo,UNRESTRICTED,$733.75
48,J.F. Drake State,300531,ROGER CHEN,Aug,31,2010,Other Contractual Services,NAT'L SCIENCE FOUNDATION,"$1,040.00"
48,J.F. Drake State,300532,MONIQUE C COSBY,Aug,31,2010,Support Personnel Salaries - S,UNRESTRICTED,"$2,352.38"
48,J.F. Drake State,300533,EDWIN T FORBES,Aug,31,2010,Instructional Salaries - Regul,UNRESTRICTED,"$8,836.38"
48,J.F. Drake State,300534,MATTIE B FREEMAN,Aug,31,2010,Instructional Salaries - Tempo,UNRESTRICTED,"$1,444.50"
48,J.F. Drake State,300535,LARDELL GOODLOE JR,Aug,31,2010,Instructional Salaries - Regul,UNRESTRICTED,"$6,855.00"
48,J.F. Drake State,300535,LARDELL GOODLOE JR,Aug,31,2010,Instructional Salaries - Tempo,UNRESTRICTED,"$3,542.00"
48,J.F. Drake State,300536,TIMOTHY RYAN GREEN,Aug,31,2010,Instructional Salaries - Regul,UNRESTRICTED,"$3,542.00"
48,J.F. Drake State,300537,ROBERT N GRISSIM,Aug,31,2010,Instructional Salaries - Tempo,UNRESTRICTED,$733.75
48,J.F. Drake State,300538,ALIREZA HASSANZADEH,Aug,31,2010,Other Contractual Services,NAT'L SCIENCE FOUNDATION,$300.00
48,J.F. Drake State,300539,LARAKESHA C HENLEY,Aug,31,2010,Other Contractual Services,TITLE III,$765.63
48,J.F. Drake State,300540,JOHN DAVID HILLENBERG,Aug,31,2010,Other Contractual Services,TITLE III,$237.50
48,J.F. Drake State,300541,DORIS HINTON,Aug,31,2010,Instructional Salaries - Regul,UNRESTRICTED,"$5,023.00"
48,J.F. Drake State,300542,TOBY R HOLLOWAY,Aug,31,2010,Instructional Salaries - Tempo,UNRESTRICTED,$848.13
48,J.F. Drake State,300543,KHALID HOLMES,Aug,31,2010,Instructional Salaries - Tempo,UNRESTRICTED,"$1,402.50"
48,J.F. Drake State,300544,TERESA HOOPER,Aug,31,2010,Instructional Salaries - Tempo,UNRESTRICTED,$428.00
48,J.F. Drake State,300545,CANDICE HOWELL,Aug,31,2010,Instructional Salaries - Tempo,UNRESTRICTED,$450.00
48,J.F. Drake State,300546,NEOKA JANE IVEY,Aug,31,2010,Other Contractual Services,TITLE III,"$1,050.00"
48,J.F. Drake State,300547,QUASONYA D JOHNSON,Aug,31,2010,Other Contractual Services,TITLE III,$437.50
48,J.F. Drake State,300548,STEPHANIE JONES BOUNDS,Aug,31,2010,Instructional Salaries - Regul,UNRESTRICTED,"$7,773.38"
48,J.F. Drake State,300549,EDITH YALITZA LAFONTAINE,Aug,31,2010,Instructional Salaries - Tempo,UNRESTRICTED,"$1,268.75"
48,J.F. Drake State,300550,JOYCE P LAMAR,Aug,31,2010,Hourly Wages,UNRESTRICTED,"$4,419.00"
48,J.F. Drake State,300551,ANNA LOVELL,Aug,31,2010,Instructional Salaries - Regul,UNRESTRICTED,"$3,918.66"
48,J.F. Drake State,300552,PATRICK T MCDONALD,Aug,31,2010,Other Contractual Services,TITLE III,$950.00
48,J.F. Drake State,300553,CLINT ALEXANDER MCINTIRE,Aug,31,2010,Other Contractual Services,TITLE III,$712.50
48,J.F. Drake State,300554,SAMMY J MILTON,Aug,31,2010,Support Personnel Salaries - S,UNRESTRICTED,"$3,452.87"
48,J.F. Drake State,300555,JOHN MOORE,Aug,31,2010,Instructional Salaries - Tempo,UNRESTRICTED,$450.00
48,J.F. Drake State,300556,MARY JO MORAN,Aug,31,2010,Instructional Salaries - Tempo,UNRESTRICTED,$762.38
48,J.F. Drake State,300557,KAREN NEIR,Aug,31,2010,Instructional Salaries - Tempo,UNRESTRICTED,"$1,926.00"
48,J.F. Drake State,300558,RICHARD H NEWTON,Aug,31,2010,Other Contractual Services,TITLE III,$712.50
48,J.F. Drake State,300559,DONALD ORR,Aug,31,2010,Support Personnel Salaries - S,UNRESTRICTED,"$3,601.25"
48,J.F. Drake State,300560,ANTONIO L PATTERSON,Aug,31,2010,Support Personnel Salaries - S,UNRESTRICTED,$231.00
48,J.F. Drake State,300561,WILLIE C PATTON,Aug,31,2010,Instructional Salaries - Tempo,UNRESTRICTED,$733.75
48,J.F. Drake State,300562,JAMES ANTHONY PLENTY,Aug,31,2010,Instructional Salaries - Tempo,UNRESTRICTED,$450.00
48,J.F. Drake State,300563,FREDRICK O PRUITT,Aug,31,2010,Instructional Salaries - Regul,UNRESTRICTED,"$4,470.66"
48,J.F. Drake State,300563,FREDRICK O PRUITT,Aug,31,2010,Instructional Salaries - Tempo,UNRESTRICTED,$150.00
48,J.F. Drake State,300564,WELDON RAGLAND,Aug,31,2010,Instructional Salaries - Tempo,UNRESTRICTED,"$1,268.75"
48,J.F. Drake State,300565,PATRICIA RAMEY,Aug,31,2010,Instructional Salaries - Tempo,UNRESTRICTED,$909.50
48,J.F. Drake State,300566,MARTHA J ROBERTS,Aug,31,2010,Support Personnel Salaries - S,UNRESTRICTED,"$4,940.33"
48,J.F. Drake State,300567,BARRY E SHELTON,Aug,31,2010,Instructional Salaries - Tempo,UNRESTRICTED,$615.25
48,J.F. Drake State,300568,RICKY M SHOCKLEY,Aug,31,2010,Other Contractual Services,TITLE III,$675.00
48,J.F. Drake State,300569,LESLEY SHOTTS,Aug,31,2010,Instructional Salaries - Regul,UNRESTRICTED,"$4,190.50"
48,J.F. Drake State,300571,SHANNON SUMMERS,Aug,31,2010,Instructional Salaries - Tempo,UNRESTRICTED,$880.00
48,J.F. Drake State,300572,RUSSELL B THOMAS,Aug,31,2010,Other Contractual Services,TITLE III,$950.00
48,J.F. Drake State,300573,DYANTHA E TOLBERT,Aug,31,2010,Support Personnel Salaries - S,UNRESTRICTED,"$1,220.80"
48,J.F. Drake State,300574,JOY D TORNQUIST,Aug,31,2010,Instructional Salaries - Tempo,UNRESTRICTED,"$2,407.50"
48,J.F. Drake State,300575,ELIZABETH A TUGGLE,Aug,31,2010,Instructional Salaries - Tempo,UNRESTRICTED,"$2,470.00"
48,J.F. Drake State,300576,THEO NATHAN WALSTON,Aug,31,2010,Support Personnel Salaries - S,ARRA STIMULUS FUNDS,"$3,020.95"
48,J.F. Drake State,300577,MELINDA WEST,Aug,31,2010,Instructional Salaries - Tempo,UNRESTRICTED,$548.38
48,J.F. Drake State,300578,DWAYNIA WILKERSON,Aug,31,2010,Other Contractual Services,TITLE III,$420.00
48,J.F. Drake State,300579,JULIE WILLIAMS,Aug,31,2010,Instructional Salaries - Tempo,UNRESTRICTED,$867.50
48,J.F. Drake State,300580,DANIEL W YOCOM,Aug,31,2010,Support Personnel Salaries - S,CAREER COACHES,"$1,285.71"
48,J.F. Drake State,90000261,ROBBIE LEE AKINS,Aug,31,2010,Support Personnel Salaries - S,UNRESTRICTED,"$2,136.00"
48,J.F. Drake State,90000262,LYSA AUGUSTIN,Aug,31,2010,Instructional Salaries - Tempo,UNRESTRICTED,"$1,160.50"
48,J.F. Drake State,90000263,CAROLYN AVRITTE,Aug,31,2010,Instructional Salaries - Tempo,UNRESTRICTED,$347.75
48,J.F. Drake State,90000264,NELSON E BARNES,Aug,31,2010,Instructional Salaries - Tempo,UNRESTRICTED,"$1,268.75"
48,J.F. Drake State,90000266,HAROLD E BATTS,Aug,31,2010,Other Professional Salaries -,UNRESTRICTED,"$8,649.00"
48,J.F. Drake State,90000267,LINDA BURRUSS,Aug,31,2010,Instructional Salaries - Tempo,UNRESTRICTED,"$1,402.50"
48,J.F. Drake State,90000268,KHALILAH BURTON,Aug,31,2010,Instructional Salaries - Regul,UNRESTRICTED,"$4,470.66"
48,J.F. Drake State,90000268,KHALILAH BURTON,Aug,31,2010,Instructional Salaries - Tempo,UNRESTRICTED,"$1,001.25"
48,J.F. Drake State,90000268,KHALILAH BURTON,Aug,31,2010,Instructional Salaries - Regul,NAT'L SCIENCE FOUNDATION,$904.44
48,J.F. Drake State,90000268,KHALILAH BURTON,Aug,31,2010,Instructional Salaries - Regul,ARRA STIMULUS FUNDS,"$2,713.32"
48,J.F. Drake State,90000269,SHEEREEN A BURTON,Aug,31,2010,Other Contractual Services,TITLE III,"$1,206.25"
48,J.F. Drake State,90000270,KEMBA CHAMBERS,Aug,31,2010,Other Professional Salaries -,UNRESTRICTED,"$7,360.38"
48,J.F. Drake State,90000271,ADAM CLARK,Aug,31,2010,Instructional Salaries - Regul,UNRESTRICTED,"$4,433.00"
48,J.F. Drake State,90000271,ADAM CLARK,Aug,31,2010,Instructional Salaries - Tempo,UNRESTRICTED,$300.00
48,J.F. Drake State,90000272,APRIL CLEMENT,Aug,31,2010,Other Professional Salaries -,TITLE III,"$4,000.00"
48,J.F. Drake State,90000273,MATTIE D DAVIS,Aug,31,2010,Instructional Salaries - Regul,UNRESTRICTED,"$5,123.00"
48,J.F. Drake State,90000274,MARLO DRAKE,Aug,31,2010,Support Personnel Salaries - S,ARRA STIMULUS FUNDS,"$2,309.82"
48,J.F. Drake State,90000274,MARLO DRAKE,Aug,31,2010,Support Personnel Salaries - S,TITLE III,$769.94
48,J.F. Drake State,90000275,MARTHA W DUBEY,Aug,31,2010,Support Personnel Salaries - S,UNRESTRICTED,"$4,500.00"
48,J.F. Drake State,90000276,GABRIELE DUNSEITH,Aug,31,2010,Instructional Salaries - Tempo,UNRESTRICTED,$386.54
48,J.F. Drake State,90000277,CHRISTIANA A OPARA EGBUJO,Aug,31,2010,Instructional Salaries - Tempo,UNRESTRICTED,$695.50
48,J.F. Drake State,90000278,GAIL E FISCH,Aug,31,2010,Instructional Salaries - Regul,UNRESTRICTED,"$5,978.50"
48,J.F. Drake State,90000279,BONNIE GARRETT,Aug,31,2010,Instructional Salaries - Tempo,UNRESTRICTED,"$1,402.50"
48,J.F. Drake State,90000280,CHARLES GROSS,Aug,31,2010,Instructional Salaries - Tempo,UNRESTRICTED,$450.00
48,J.F. Drake State,90000281,MANELZA CRAWFORD HAMBRICK,Aug,31,2010,Support Personnel Salaries - S,UNRESTRICTED,"$2,411.00"
48,J.F. Drake State,90000282,AUNDREA D HANSON,Aug,31,2010,Instructional Salaries - Tempo,UNRESTRICTED,$867.50
48,J.F. Drake State,90000283,CAROLYN HENDERSON,Aug,31,2010,Instructional Salaries - Regul,UNRESTRICTED,"$4,885.00"
48,J.F. Drake State,90000283,CAROLYN HENDERSON,Aug,31,2010,Instructional Salaries - Tempo,UNRESTRICTED,$867.50
48,J.F. Drake State,90000284,DEXTER R HENRY,Aug,31,2010,Instructional Salaries - Regul,UNRESTRICTED,"$5,951.34"
48,J.F. Drake State,90000284,DEXTER R HENRY,Aug,31,2010,Instructional Salaries - Tempo,UNRESTRICTED,$733.75
48,J.F. Drake State,90000285,KARL W HENRY SR,Aug,31,2010,Instructional Salaries - Regul,UNRESTRICTED,"$6,627.34"
48,J.F. Drake State,90000286,PATRICIA HUGHES,Aug,31,2010,Administrative Salaries- Sched,UNRESTRICTED,"$7,747.62"
48,J.F. Drake State,90000287,PAMELA MICHELLE HUMPHREY,Aug,31,2010,Instructional Salaries - Tempo,UNRESTRICTED,$700.88
48,J.F. Drake State,90000288,JAN J HYMAN,Aug,31,2010,Support Personnel Salaries - S,UNRESTRICTED,"$2,262.01"
48,J.F. Drake State,90000290,SARAH J JAMAR,Aug,31,2010,Instructional Salaries - Tempo,UNRESTRICTED,$867.50
48,J.F. Drake State,90000290,SARAH J JAMAR,Aug,31,2010,Other Contractual Services,NAT'L SCIENCE FOUNDATION,"$1,140.00"
48,J.F. Drake State,90000291,DETRIC R JAMES,Aug,31,2010,Support Personnel Salaries - S,ARRA STIMULUS FUNDS,$974.50
48,J.F. Drake State,90000291,DETRIC R JAMES,Aug,31,2010,Support Personnel Salaries - S,TITLE III,"$2,923.50"
48,J.F. Drake State,90000292,DONYALE D JONES,Aug,31,2010,Support Personnel Salaries - S,TITLE III,"$3,303.38"
48,J.F. Drake State,90000293,PETURA M JONES,Aug,31,2010,Instructional Salaries - Tempo,UNRESTRICTED,"$1,402.50"
48,J.F. Drake State,90000294,CHERYL P KEMP,Aug,31,2010,Instructional Salaries - Tempo,UNRESTRICTED,"$2,140.00"
48,J.F. Drake State,90000295,PRAVEENA KOMMIDI,Aug,31,2010,Instructional Salaries - Regul,UNRESTRICTED,"$5,624.00"
48,J.F. Drake State,90000296,NICHOLAS PAUL KSEPKA,Aug,31,2010,Hourly Wages,UNRESTRICTED,"$1,560.00"
48,J.F. Drake State,90000297,HONG THUYDUC LAM,Aug,31,2010,Instructional Salaries - Regul,UNRESTRICTED,"$5,261.34"
48,J.F. Drake State,90000298,KRISTEN K LECROIX,Aug,31,2010,Instructional Salaries - Tempo,UNRESTRICTED,$450.00
48,J.F. Drake State,90000299,MICHEAL V MAXTON,Aug,31,2010,Instructional Salaries - Tempo,UNRESTRICTED,$867.50
48,J.F. Drake State,90000300,MUKESHA MBUGUJE,Aug,31,2010,Instructional Salaries - Tempo,UNRESTRICTED,$929.56
48,J.F. Drake State,90000301,HELEN T MCALPINE,Aug,31,2010,Administrative Salaries- Sched,UNRESTRICTED,"$14,266.45"
48,J.F. Drake State,90000301,HELEN T MCALPINE,Aug,31,2010,President's Expense Allowance,UNRESTRICTED,$200.00
48,J.F. Drake State,90000301,HELEN T MCALPINE,Aug,31,2010,Housing Allowance,UNRESTRICTED,"$1,000.00"
48,J.F. Drake State,90000302,DEMETIUS L MCCARTY,Aug,31,2010,Support Personnel Salaries - S,UNRESTRICTED,"$2,244.00"
48,J.F. Drake State,90000304,JERRY L MCCAULLEY,Aug,31,2010,Instructional Salaries - Tempo,UNRESTRICTED,$450.00
48,J.F. Drake State,90000305,SCOTTY MCLAUGHLIN,Aug,31,2010,Instructional Salaries - Regul,UNRESTRICTED,"$6,535.00"
48,J.F. Drake State,90000305,SCOTTY MCLAUGHLIN,Aug,31,2010,Instructional Salaries - Tempo,UNRESTRICTED,$300.00
48,J.F. Drake State,90000306,DEBORAH A MILLING,Aug,31,2010,Instructional Salaries - Regul,UNRESTRICTED,"$11,097.37"
48,J.F. Drake State,90000307,PREMA A MONTEIRO,Aug,31,2010,Instructional Salaries - Regul,UNRESTRICTED,"$3,249.00"
48,J.F. Drake State,90000308,BRUCE D MORRISON,Aug,31,2010,Support Personnel Salaries - S,UNRESTRICTED,"$4,047.25"
48,J.F. Drake State,90000309,KATHRYN B NEAL,Aug,31,2010,Other Professional Salaries -,UNRESTRICTED,"$7,905.25"
48,J.F. Drake State,90000311,JENNIFER O'LINGER,Aug,31,2010,Support Personnel Salaries - S,UNRESTRICTED,"$3,154.25"
48,J.F. Drake State,90000312,JENNIFER E PATTERSON,Aug,31,2010,Instructional Salaries - Tempo,UNRESTRICTED,$867.50
48,J.F. Drake State,90000312,JENNIFER E PATTERSON,Aug,31,2010,Other Contractual Services,TITLE III,$120.00
48,J.F. Drake State,90000313,ALBERT B PETERSON II,Aug,31,2010,Instructional Salaries - Tempo,UNRESTRICTED,$468.00
48,J.F. Drake State,90000314,GWENDOLYN D POPE,Aug,31,2010,Instructional Salaries - Regul,UNRESTRICTED,"$12,642.75"
48,J.F. Drake State,90000315,KARRIE PRATT,Aug,31,2010,Instructional Salaries - Tempo,UNRESTRICTED,$321.00
48,J.F. Drake State,90000316,MICHAEL RADDEN,Aug,31,2010,Instructional Salaries - Tempo,UNRESTRICTED,$433.75
48,J.F. Drake State,90000317,LORAINE RAGIN,Aug,31,2010,Instructional Salaries - Regul,UNRESTRICTED,"$3,542.00"
48,J.F. Drake State,90000318,ALICE G RAYMOND,Aug,31,2010,Instructional Salaries - Regul,UNRESTRICTED,"$7,523.34"
48,J.F. Drake State,90000319,JOYCE L RENTZ,Aug,31,2010,Instructional Salaries - Regul,UNRESTRICTED,"$6,251.00"
48,J.F. Drake State,90000319,JOYCE L RENTZ,Aug,31,2010,Instructional Salaries - Tempo,UNRESTRICTED,$867.50
48,J.F. Drake State,90000320,JOHN REUTTER III,Aug,31,2010,Instructional Salaries - Tempo,UNRESTRICTED,$867.50
48,J.F. Drake State,90000320,JOHN REUTTER III,Aug,31,2010,Other Professional Salaries -,NAT'L SCIENCE FOUNDATION,"$6,616.75"
48,J.F. Drake State,90000321,JACQUELINE M SHIVERS,Aug,31,2010,Instructional Salaries - Tempo,UNRESTRICTED,"$2,281.25"
48,J.F. Drake State,90000322,PATRICIA GORDON SIMS,Aug,31,2010,Administrative Salaries- Sched,UNRESTRICTED,"$9,245.05"
48,J.F. Drake State,90000323,RYAN E SMITH,Aug,31,2010,Other Professional Salaries -,UNRESTRICTED,"$4,000.00"
48,J.F. Drake State,90000324,DELORIS A SMOTHERS,Aug,31,2010,Instructional Salaries - Regul,UNRESTRICTED,"$6,227.34"
48,J.F. Drake State,90000325,JULIE P SPURGEON,Aug,31,2010,Support Personnel Salaries - S,ARRA STIMULUS FUNDS,"$1,889.87"
48,J.F. Drake State,90000326,VERLINDSEY B STEWART,Aug,31,2010,Instructional Salaries - Regul,UNRESTRICTED,"$6,135.00"
48,J.F. Drake State,90000327,MONICA SUDEALL-HAWKINS,Aug,31,2010,Other Professional Salaries -,UNRESTRICTED,"$4,993.37"
48,J.F. Drake State,90000328,RICHARD M SWAIM,Aug,31,2010,Instructional Salaries - Tempo,UNRESTRICTED,$733.75
48,J.F. Drake State,90000329,DOCQUINN N TAYLOR,Aug,31,2010,Instructional Salaries - Tempo,UNRESTRICTED,$150.00
48,J.F. Drake State,90000330,KRISTIN TREADWAY,Aug,31,2010,Support Personnel Salaries - S,ALLIED HEALTH,"$2,707.83"
48,J.F. Drake State,90000331,JOYLYN ERNA TROTMAN,Aug,31,2010,Other Professional Salaries -,UNRESTRICTED,"$4,465.87"
48,J.F. Drake State,90000332,GILBERT T TURLEY,Aug,31,2010,Instructional Salaries - Tempo,UNRESTRICTED,$450.00
48,J.F. Drake State,90000332,GILBERT T TURLEY,Aug,31,2010,Other Professional Salaries -,UNRESTRICTED,"$6,450.12"
48,J.F. Drake State,90000333,LETITIA E WALKER,Aug,31,2010,Support Personnel Salaries - S,UNRESTRICTED,"$3,229.38"
48,J.F. Drake State,90000334,KATINA L WALTON,Aug,31,2010,Instructional Salaries - Tempo,UNRESTRICTED,"$1,827.00"
48,J.F. Drake State,90000335,KRISHALON WILKERSON,Aug,31,2010,Instructional Salaries - Tempo,UNRESTRICTED,$450.00
48,J.F. Drake State,90000336,RICKY WILLINGHAM,Aug,31,2010,Other Professional Salaries -,TITLE III,"$5,416.67"
48,J.F. Drake State,90000337,INA M WILSON,Aug,31,2010,Other Professional Salaries -,TITLE III,"$4,166.67"
48,J.F. Drake State,90000338,GEORGE R WINN,Aug,31,2010,Instructional Salaries - Regul,UNRESTRICTED,"$5,123.00"
48,J.F. Drake State,90000338,GEORGE R WINN,Aug,31,2010,Instructional Salaries - Tempo,UNRESTRICTED,$450.00
48,J.F. Drake State,90000339,JOHNIKA WORD,Aug,31,2010,Support Personnel Salaries - S,UNRESTRICTED,"$1,266.00"
48,J.F. Drake State,90000340,ANDRAIN YELDELL,Aug,31,2010,Instructional Salaries - Tempo,UNRESTRICTED,$300.00
48,J.F. Drake State,201058,ALABAMA CARD SYSTEMS,Aug,30,2010,Materials and Supplies,TITLE III CARRYOVER,"$1,707.00"
48,J.F. Drake State,201059,AMERICAN EXPRESS,Aug,30,2010,Out-of-State Travel,TITLE III,$197.40
48,J.F. Drake State,201060,BERNEY OFFICE SOLUTIONS,Aug,30,2010,Materials and Supplies,TITLE III CARRYOVER,$80.00
48,J.F. Drake State,201060,BERNEY OFFICE SOLUTIONS,Aug,30,2010,Materials and Supplies,TITLE III,$525.87
48,J.F. Drake State,201061,BUBBA'S,Aug,30,2010,Materials and Supplies,NAT'L SCIENCE FOUNDATION,$485.00
48,J.F. Drake State,201062,KHALILAH V. BURTON,Aug,30,2010,Out-of-State Travel,TITLE III,$120.35
48,J.F. Drake State,201063,CAROLINA BIOLOGICAL,Aug,30,2010,Materials and Supplies,NSF CARRYOVER,$59.12
48,J.F. Drake State,201064,KEMBA CHAMBERS,Aug,30,2010,Out-of-State Travel,TITLE III,$100.97
48,J.F. Drake State,201065,CRI,Aug,30,2010,Materials and Supplies,TITLE III,$236.40
48,J.F. Drake State,201066,DAIGGER LAB SUPPLIES,Aug,30,2010,Materials and Supplies,NAT'L SCIENCE FOUNDATION,"$1,102.05"
48,J.F. Drake State,201067,GARBER CONSTRUCTION,Aug,30,2010,Alterations,TITLE III CARRYOVER,"$4,960.00"
48,J.F. Drake State,201068,GOODHEART-WILCOX COMPANY,Aug,30,2010,Subscriptions,TITLE III,$286.02
48,J.F. Drake State,201069,HBCU LIBRARY ALLIANCE,Aug,30,2010,In-State Travel,TITLE III,$150.00
48,J.F. Drake State,201070,"HENRY, DEXTER",Aug,30,2010,Out-of-State Travel,TITLE III,$414.00
48,J.F. Drake State,201071,INSIGHT MEDIA,Aug,30,2010,Materials and Supplies,ALLIED HEALTH,$348.74
48,J.F. Drake State,201072,JANPAK,Aug,30,2010,Materials and Supplies,ALLIED HEALTH,"$1,932.69"
48,J.F. Drake State,201073,THUY LAM,Aug,30,2010,In-State Travel,ALLIED HEALTH,$141.46
48,J.F. Drake State,201073,THUY LAM,Aug,30,2010,Employee Taxable Per Diem,ALLIED HEALTH,$11.25
48,J.F. Drake State,201074,LEADERSHIP ALABAMA,Aug,30,2010,Memberships,TITLE III,$150.00
48,J.F. Drake State,201075,"OFFICE DEPOT, INC.",Aug,30,2010,Materials and Supplies,TITLE III CARRYOVER,$275.24
48,J.F. Drake State,201076,"POPE, GWENDOLYN M.",Aug,30,2010,Out-of-State Travel,TITLE III,$237.36
48,J.F. Drake State,201077,"RAYMOND, ALICE",Aug,30,2010,Out-of-State Travel,ALLIED HEALTH,"$1,404.61"
48,J.F. Drake State,201078,RIVERSIDE PUB,Aug,30,2010,Materials and Supplies,TITLE III CARRYOVER,$987.80
48,J.F. Drake State,201079,SCIENCE KIT BOREAL LAB,Aug,30,2010,Materials and Supplies,NSF CARRYOVER,"$1,591.98"
48,J.F. Drake State,201080,SENTRY TECHNOLOGY CORP.,Aug,30,2010,Materials and Supplies,ALLIED HEALTH,"$1,313.41"
48,J.F. Drake State,201081,"SIMS, PATRICIA G.",Aug,30,2010,Out-of-State Travel,TITLE III,$113.37
48,J.F. Drake State,201082,SNEAD STATE COMM COLLEGE,Aug,30,2010,Memberships,TITLE III,$100.00
48,J.F. Drake State,201083,"SUDEALL, MONICA",Aug,30,2010,In-State Travel,TITLE III,$532.00
48,J.F. Drake State,201084,RICKY WILLINGHAM,Aug,30,2010,Out-of-State Travel,TITLE III,$555.99
48,J.F. Drake State,100716,ACT,Aug,13,2010,Materials and Supplies,UNRESTRICTED,"$1,270.00"
48,J.F. Drake State,100717,AMERICAN TECH. PUBLISHERS,Aug,13,2010,Purchases for Resale,UNRESTRICTED,"$1,471.20"
48,J.F. Drake State,100718,AVIZENT,Aug,13,2010,Insurance and Bonding,UNRESTRICTED,$58.33
48,J.F. Drake State,100719,"BURMAX, INC.",Aug,13,2010,Purchases for Resale,UNRESTRICTED,"$9,694.36"
48,J.F. Drake State,100720,ROBERTO BURTON,Aug,13,2010,Other Contractual Services,UNRESTRICTED,$100.00
48,J.F. Drake State,100721,SCOTTSBORO DAILY SENTINEL,Aug,13,2010,Advertising and Promotions,UNRESTRICTED,$790.00
48,J.F. Drake State,100723,"DYNAMIC SECURITY, INC.",Aug,13,2010,Other Contractual Services,UNRESTRICTED,"$5,465.46"
48,J.F. Drake State,100724,ELIZABETH TUGGLE,Aug,13,2010,In-State Travel,,$225.00
48,J.F. Drake State,100725,ELSEVIER/HESI,Aug,13,2010,Purchases for Resale,UNRESTRICTED,"$3,000.11"
48,J.F. Drake State,100726,ESCO INSTITUTE,Aug,13,2010,Purchases for Resale,UNRESTRICTED,"$1,198.50"
48,J.F. Drake State,100727,GAIL FISCH,Aug,13,2010,In-State Travel,,$368.54
48,J.F. Drake State,100728,GOODHEART-WILCOX COMPANY,Aug,13,2010,Purchases for Resale,UNRESTRICTED,"$7,218.73"
48,J.F. Drake State,100729,HUNTSVILLE TIMES,Aug,13,2010,Advertising and Promotions,UNRESTRICTED,"$2,220.44"
48,J.F. Drake State,100730,GLIDDEN PROFESSIONAL PAI,Aug,13,2010,Maintenance and Repairs,PLANT FUNDS,$76.13
48,J.F. Drake State,100731,INDUSTRIAL PRESS,Aug,13,2010,Purchases for Resale,UNRESTRICTED,$810.43
48,J.F. Drake State,100732,J. A. MAJORS COMPANY,Aug,13,2010,Purchases for Resale,UNRESTRICTED,"$6,141.73"
48,J.F. Drake State,100733,KERMIT ELLIOTT,Aug,13,2010,In-State Travel,,$328.54
48,J.F. Drake State,100734,KOORSEN PROTECTION SERVIC,Aug,13,2010,Maintenance and Repairs,UNRESTRICTED,$315.00
48,J.F. Drake State,100735,LOWE'S,Aug,13,2010,Materials and Supplies,UNRESTRICTED,$0.00
48,J.F. Drake State,100736,MCGRAW HILL EDUCATION,Aug,13,2010,Purchases for Resale,UNRESTRICTED,"$44,344.06"
48,J.F. Drake State,100737,PARADIGM PUBLISHING,Aug,13,2010,Purchases for Resale,UNRESTRICTED,"$1,413.36"
48,J.F. Drake State,100738,PEARSON,Aug,13,2010,Purchases for Resale,UNRESTRICTED,"$82,160.62"
48,J.F. Drake State,100739,POCKET NURSE,Aug,13,2010,Purchases for Resale,UNRESTRICTED,$847.41
48,J.F. Drake State,100740,RANDALL A SCHRIMSHER,Aug,13,2010,Rent - Facilities,UNRESTRICTED,"$6,250.00"
48,J.F. Drake State,100741,"SMITH, RYAN",Aug,13,2010,In-State Travel,,$300.00
48,J.F. Drake State,100741,"SMITH, RYAN",Aug,13,2010,In-State Travel,UNRESTRICTED,$394.41
48,J.F. Drake State,100742,SOUTHERNLINC WIRELESS,Aug,13,2010,Communications,UNRESTRICTED,$63.60
48,J.F. Drake State,100743,THE INTEGRITY GROUP,Aug,13,2010,Other Contractual Services,UNRESTRICTED,$675.00
48,J.F. Drake State,100744,LAFAYE A. THURMON,Aug,13,2010,Other Contractual Services,UNRESTRICTED,$100.00
48,J.F. Drake State,100745,UPS,Aug,13,2010,Freight,UNRESTRICTED,$4.46
48,J.F. Drake State,100746,WASTE MANAGEMENT OF NORTH,Aug,13,2010,Other Contractual Services,UNRESTRICTED,$711.78
48,J.F. Drake State,100747,COMMUNITY COLLEGE PRESS,Aug,13,2010,Materials and Supplies,UNRESTRICTED,$102.00
48,J.F. Drake State,100749,W W NORTON,Aug,13,2010,Purchases for Resale,UNRESTRICTED,$821.85
48,J.F. Drake State,300490,DANA MOORE,Aug,12,2010,Other Professional Salaries -,TITLE III,"$16,216.88"
48,J.F. Drake State,8201002,AT&T,Aug,6,2010,Communications,UNRESTRICTED,"$4,613.55"
48,J.F. Drake State,8201004,COMCAST,Aug,6,2010,Communications,UNRESTRICTED,$79.19
48,J.F. Drake State,8201005,COOK'S PEST CONTROL,Aug,6,2010,Communications,UNRESTRICTED,$386.00
48,J.F. Drake State,8201006,HUNTSVILLE UTILITIES,Aug,6,2010,Water and Sewer,UNRESTRICTED,$833.94
48,J.F. Drake State,8201006,HUNTSVILLE UTILITIES,Aug,6,2010,Electricity,UNRESTRICTED,"$21,050.31"
48,J.F. Drake State,8201006,HUNTSVILLE UTILITIES,Aug,6,2010,Gas and Heating Fuel,UNRESTRICTED,"$1,705.38"
48,J.F. Drake State,8201006,HUNTSVILLE UTILITIES,Aug,6,2010,Electricity,ARMY GRANT,"$3,173.59"
48,J.F. Drake State,8201006,HUNTSVILLE UTILITIES,Aug,6,2010,Gas and Heating Fuel,ARMY GRANT,$7.00
48,J.F. Drake State,8201006,HUNTSVILLE UTILITIES,Aug,6,2010,Electricity,PLANT FUNDS,$992.23
48,J.F. Drake State,8201007,WOW! BUSINESS,Aug,6,2010,Communications,UNRESTRICTED,$104.68
48,J.F. Drake State,8201008,PITNEY BOWES,Aug,6,2010,Postage,UNRESTRICTED,"$1,200.00"
48,J.F. Drake State,100704,AT&T LONG DISTANCE SERV.,Aug,5,2010,Communications,UNRESTRICTED,$156.59
48,J.F. Drake State,100705,C. C. DICKSON COMPANY,Aug,5,2010,Maintenance and Repairs,UNRESTRICTED,$169.60
48,J.F. Drake State,100706,CTB/MCGRAW-HILL,Aug,5,2010,Materials and Supplies,ADULT ED,$918.78
48,J.F. Drake State,100707,"DYNAMIC SECURITY, INC.",Aug,5,2010,Other Contractual Services,UNRESTRICTED,"$10,952.76"
48,J.F. Drake State,100708,KOORSEN PROTECTION SERVIC,Aug,5,2010,Maintenance and Repairs,UNRESTRICTED,$260.00
48,J.F. Drake State,100709,THE LAMAR COMPANIES,Aug,5,2010,Advertising and Promotions,UNRESTRICTED,"$1,500.00"
48,J.F. Drake State,100710,"MCALPINE, HELEN",Aug,5,2010,Advertising and Promotions,UNRESTRICTED,$47.28
48,J.F. Drake State,100711,MID CITY SUPPLY CO,Aug,5,2010,Materials and Supplies,UNRESTRICTED,"$1,156.76"
48,J.F. Drake State,100712,SEXTON WELDING SUPPLY,Aug,5,2010,Materials and Supplies,UNRESTRICTED,$312.25
48,J.F. Drake State,100713,VERIZON WIRELESS,Aug,5,2010,Communications,UNRESTRICTED,$709.77
48,J.F. Drake State,201004,CERTIFICATION PARTNERS,Aug,5,2010,Memberships,TITLE III,$700.00
48,J.F. Drake State,201005,J.B.PRINCE CO,Aug,5,2010,Materials and Supplies,TITLE III CARRYOVER,$153.23
48,J.F. Drake State,201006,"OFFICE DEPOT, INC.",Aug,5,2010,Materials and Supplies,ALLIED HEALTH,"$1,657.41"
48,J.F. Drake State,100714,LOWE'S,Aug,5,2010,Materials and Supplies,UNRESTRICTED,$487.67
48,J.F. Drake State,100715,LOWE'S,Aug,5,2010,Materials and Supplies,UNRESTRICTED,$37.08
48,J.F. Drake State,200999,AMERICAN EXPRESS,Aug,4,2010,Out-of-State Travel,TITLE III,$614.80
48,J.F. Drake State,201000,DONALD BURTON,Aug,4,2010,In-State Travel,CAREER COACHES,$46.60
48,J.F. Drake State,201001,APRIL CLEMENT,Aug,4,2010,Out-of-State Travel,TITLE III,$89.21
48,J.F. Drake State,201002,MELANIE ALLEN,Aug,4,2010,In-State Travel,TITLE III,$194.00
48,J.F. Drake State,201003,"OFFICE DEPOT, INC.",Aug,4,2010,Materials and Supplies,ALLIED HEALTH CARRYOVER,"$2,037.91"
48,J.F. Drake State,100697,RUTHANNE SZENASI,Aug,3,2010,Other Contractual Services,UNRESTRICTED,$417.45
48,J.F. Drake State,100698,SEXTON WELDING SUPPLY,Aug,3,2010,Materials and Supplies,UNRESTRICTED,"$1,004.48"
48,J.F. Drake State,100699,SUCCESS MARKETING,Aug,3,2010,Advertising and Promotions,UNRESTRICTED,"$3,578.86"
48,J.F. Drake State,100700,SUCCESS MARKETING,Aug,3,2010,Advertising and Promotions,UNRESTRICTED,"$1,000.00"
48,J.F. Drake State,100701,SUCCESS MARKETING,Aug,3,2010,Advertising and Promotions,UNRESTRICTED,"$1,300.00"
48,J.F. Drake State,100702,UPS,Aug,3,2010,Freight,UNRESTRICTED,$149.85
48,J.F. Drake State,100703,WASTE MANAGEMENT OF NORTH,Aug,3,2010,Other Contractual Services,UNRESTRICTED,$399.97
48,J.F. Drake State,200985,BERNEY OFFICE SOLUTIONS,Aug,2,2010,Materials and Supplies,TITLE III,$15.44
48,J.F. Drake State,200986,CDW-G,Aug,2,2010,Materials and Supplies,TITLE III,$915.66
48,J.F. Drake State,200987,KEMBA CHAMBERS,Aug,2,2010,Out-of-State Travel,TITLE III,$126.78
48,J.F. Drake State,200988,DORIS HINTON,Aug,2,2010,In-State Travel,ALLIED HEALTH,$61.00
48,J.F. Drake State,200989,FOLLET SOFTWARE COMPANY,Aug,2,2010,Materials and Supplies,TITLE III,$395.00
48,J.F. Drake State,200990,"FORBES, ED",Aug,2,2010,Out-of-State Travel,TITLE III,$513.97
48,J.F. Drake State,200991,NATEF,Aug,2,2010,Materials and Supplies,TITLE III,$82.00
48,J.F. Drake State,200992,"OFFICE DEPOT, INC.",Aug,2,2010,Materials and Supplies,TITLE III,$44.49
48,J.F. Drake State,200992,"OFFICE DEPOT, INC.",Aug,2,2010,Materials and Supplies,ALLIED HEALTH,"$1,311.59"
48,J.F. Drake State,200993,JENNIFER OLINGER,Aug,2,2010,In-State Travel,TITLE III,$48.20
48,J.F. Drake State,200994,RESOURCE CENTER,Aug,2,2010,In-State Travel,TITLE III,$225.00
48,J.F. Drake State,200995,SACS,Aug,2,2010,Out-of-State Travel,TITLE III,"$2,500.00"
48,J.F. Drake State,200996,DELORIS SMOTHERS,Aug,2,2010,Out-of-State Travel,TITLE III,$306.37
48,J.F. Drake State,200997,RICKY WILLINGHAM,Aug,2,2010,In-State Travel,TITLE III,$48.20
48,J.F. Drake State,200998,RUSSELL WINN,Aug,2,2010,Out-of-State Travel,TITLE III,$437.84
48,J.F. Drake State,300322,ROBBIE LEE AKINS,Jul,30,2010,Support Personnel Salaries - S,UNRESTRICTED,"$2,028.00"
48,J.F. Drake State,300323,MELANIE K ALLEN,Jul,30,2010,Other Professional Salaries -,UNRESTRICTED,"$4,000.00"
48,J.F. Drake State,300324,LYSA AUGUSTIN,Jul,30,2010,Instructional Salaries - Tempo,UNRESTRICTED,$599.50
48,J.F. Drake State,300325,CAROLYN AVRITTE,Jul,30,2010,Instructional Salaries - Tempo,UNRESTRICTED,"$1,096.75"
48,J.F. Drake State,300327,HAROLD E BATTS,Jul,30,2010,Other Professional Salaries -,UNRESTRICTED,"$8,649.00"
48,J.F. Drake State,300328,ANGELA NICOLE BELL,Jul,30,2010,Instructional Salaries - Regul,UNRESTRICTED,"$4,870.67"
48,J.F. Drake State,300329,TIFFANY M BETTERTON,Jul,30,2010,Instructional Salaries - Tempo,UNRESTRICTED,$909.50
48,J.F. Drake State,300330,DEAVIANCE FOWLKS BLEVINS,Jul,30,2010,Other Contractual Services,ALLIED HEALTH,$950.00
48,J.F. Drake State,300331,JACQUELINE T BOOKER,Jul,30,2010,Support Personnel Salaries - S,NAT'L SCIENCE FOUNDATION,"$2,005.60"
48,J.F. Drake State,300332,CHERYL BRAWLEY-KELLY,Jul,30,2010,Instructional Salaries - Tempo,UNRESTRICTED,$401.25
48,J.F. Drake State,300333,LINDA BURRUSS,Jul,30,2010,Instructional Salaries - Tempo,UNRESTRICTED,"$1,402.50"
48,J.F. Drake State,300334,DONALD A BURTON JR,Jul,30,2010,Support Personnel Salaries - S,CAREER COACHES,"$2,484.00"
48,J.F. Drake State,300335,KHALILAH BURTON,Jul,30,2010,Instructional Salaries - Regul,UNRESTRICTED,"$4,470.67"
48,J.F. Drake State,300335,KHALILAH BURTON,Jul,30,2010,Instructional Salaries - Tempo,UNRESTRICTED,"$1,001.25"
48,J.F. Drake State,300335,KHALILAH BURTON,Jul,30,2010,Instructional Salaries - Regul,NAT'L SCIENCE FOUNDATION,$904.46
48,J.F. Drake State,300335,KHALILAH BURTON,Jul,30,2010,Instructional Salaries - Regul,ARRA STIMULUS FUNDS,"$2,713.38"
48,J.F. Drake State,300336,KEMBA CHAMBERS,Jul,30,2010,Other Professional Salaries -,UNRESTRICTED,"$7,360.42"
48,J.F. Drake State,300337,ROGER CHEN,Jul,30,2010,Instructional Salaries - Tempo,UNRESTRICTED,$733.75
48,J.F. Drake State,300337,ROGER CHEN,Jul,30,2010,Other Contractual Services,NAT'L SCIENCE FOUNDATION,"$1,620.00"
48,J.F. Drake State,300338,ADAM CLARK,Jul,30,2010,Instructional Salaries - Regul,UNRESTRICTED,"$4,433.00"
48,J.F. Drake State,300338,ADAM CLARK,Jul,30,2010,Instructional Salaries - Tempo,UNRESTRICTED,$300.00
48,J.F. Drake State,300339,APRIL CLEMENT,Jul,30,2010,Support Personnel Salaries - S,TECH PREP FUNDS,$769.96
48,J.F. Drake State,300339,APRIL CLEMENT,Jul,30,2010,Support Personnel Salaries - S,NAT'L SCIENCE FOUNDATION,"$2,309.88"
48,J.F. Drake State,300341,MATTIE D DAVIS,Jul,30,2010,Instructional Salaries - Regul,UNRESTRICTED,"$5,123.00"
48,J.F. Drake State,300342,MOSTAFA DOKHANIAN,Jul,30,2010,Other Contractual Services,NAT'L SCIENCE FOUNDATION,"$8,125.00"
48,J.F. Drake State,300343,MARLO DRAKE,Jul,30,2010,Support Personnel Salaries - S,ARRA STIMULUS FUNDS,"$2,309.88"
48,J.F. Drake State,300343,MARLO DRAKE,Jul,30,2010,Support Personnel Salaries - S,TITLE III,$769.96
48,J.F. Drake State,300344,MARTHA W DUBEY,Jul,30,2010,Support Personnel Salaries - S,UNRESTRICTED,"$4,500.00"
48,J.F. Drake State,300345,GABRIELE DUNSEITH,Jul,30,2010,Instructional Salaries - Tempo,UNRESTRICTED,$508.25
48,J.F. Drake State,300346,CHRISTIANA A OPARA EGBUJO,Jul,30,2010,Instructional Salaries - Tempo,UNRESTRICTED,"$1,551.50"
48,J.F. Drake State,300347,GAIL E FISCH,Jul,30,2010,Instructional Salaries - Regul,UNRESTRICTED,"$5,978.50"
48,J.F. Drake State,300348,EDWIN T FORBES,Jul,30,2010,Instructional Salaries - Regul,UNRESTRICTED,"$8,836.42"
48,J.F. Drake State,300349,MATTIE B FREEMAN,Jul,30,2010,Instructional Salaries - Tempo,UNRESTRICTED,"$1,926.00"
48,J.F. Drake State,300350,BONNIE GARRETT,Jul,30,2010,Instructional Salaries - Tempo,UNRESTRICTED,"$1,402.50"
48,J.F. Drake State,300351,LARDELL GOODLOE JR,Jul,30,2010,Instructional Salaries - Tempo,UNRESTRICTED,"$3,542.00"
48,J.F. Drake State,300352,TIMOTHY RYAN GREEN,Jul,30,2010,Instructional Salaries - Regul,UNRESTRICTED,"$3,542.00"
48,J.F. Drake State,300353,ROBERT N GRISSIM,Jul,30,2010,Instructional Salaries - Tempo,UNRESTRICTED,$733.75
48,J.F. Drake State,300354,CHARLES GROSS,Jul,30,2010,Instructional Salaries - Tempo,UNRESTRICTED,$450.00
48,J.F. Drake State,300355,MANELZA CRAWFORD HAMBRICK,Jul,30,2010,Support Personnel Salaries - S,UNRESTRICTED,"$2,411.00"
48,J.F. Drake State,300356,AUNDREA D HANSON,Jul,30,2010,Instructional Salaries - Tempo,UNRESTRICTED,$867.50
48,J.F. Drake State,300357,ALIREZA HASSANZADEH,Jul,30,2010,Other Contractual Services,NAT'L SCIENCE FOUNDATION,$960.00
48,J.F. Drake State,300358,CAROLYN HENDERSON,Jul,30,2010,Instructional Salaries - Regul,UNRESTRICTED,"$4,885.00"
48,J.F. Drake State,300358,CAROLYN HENDERSON,Jul,30,2010,Instructional Salaries - Tempo,UNRESTRICTED,$867.50
48,J.F. Drake State,300359,LARAKESHA C HENLEY,Jul,30,2010,Other Contractual Services,TITLE III,$869.38
48,J.F. Drake State,300360,DEXTER R HENRY,Jul,30,2010,Instructional Salaries - Regul,UNRESTRICTED,"$5,951.33"
48,J.F. Drake State,300360,DEXTER R HENRY,Jul,30,2010,Instructional Salaries - Tempo,UNRESTRICTED,$733.75
48,J.F. Drake State,300361,KARL W HENRY SR,Jul,30,2010,Instructional Salaries - Regul,UNRESTRICTED,"$6,627.33"
48,J.F. Drake State,300362,JOHN DAVID HILLENBERG,Jul,30,2010,Other Contractual Services,TITLE III,$381.25
48,J.F. Drake State,300363,DORIS HINTON,Jul,30,2010,Instructional Salaries - Regul,UNRESTRICTED,"$5,023.00"
48,J.F. Drake State,300364,TOBY R HOLLOWAY,Jul,30,2010,Instructional Salaries - Tempo,UNRESTRICTED,"$1,268.75"
48,J.F. Drake State,300365,KHALID HOLMES,Jul,30,2010,Instructional Salaries - Tempo,UNRESTRICTED,"$1,402.50"
48,J.F. Drake State,300366,TERESA HOOPER,Jul,30,2010,Instructional Salaries - Tempo,UNRESTRICTED,$722.25
48,J.F. Drake State,300367,CANDICE HOWELL,Jul,30,2010,Instructional Salaries - Tempo,UNRESTRICTED,$450.00
48,J.F. Drake State,300368,PATRICIA HUGHES,Jul,30,2010,Administrative Salaries- Sched,UNRESTRICTED,"$7,747.58"
48,J.F. Drake State,300369,PAMELA MICHELLE HUMPHREY,Jul,30,2010,Instructional Salaries - Tempo,UNRESTRICTED,"$1,001.25"
48,J.F. Drake State,300370,JAN J HYMAN,Jul,30,2010,Support Personnel Salaries - S,UNRESTRICTED,"$2,262.09"
48,J.F. Drake State,300371,NEOKA JANE IVEY,Jul,30,2010,Other Contractual Services,TITLE III,"$1,025.00"
48,J.F. Drake State,300372,SARAH J JAMAR,Jul,30,2010,Instructional Salaries - Tempo,UNRESTRICTED,$867.50
48,J.F. Drake State,300372,SARAH J JAMAR,Jul,30,2010,Other Contractual Services,NAT'L SCIENCE FOUNDATION,"$1,520.00"
48,J.F. Drake State,300373,DETRIC R JAMES,Jul,30,2010,Support Personnel Salaries - S,ARRA STIMULUS FUNDS,$974.50
48,J.F. Drake State,300373,DETRIC R JAMES,Jul,30,2010,Support Personnel Salaries - S,TITLE III,"$2,923.50"
48,J.F. Drake State,300374,QUASONYA D JOHNSON,Jul,30,2010,Other Contractual Services,TITLE III,$750.00
48,J.F. Drake State,300375,DONYALE D JONES,Jul,30,2010,Support Personnel Salaries - S,TITLE III,"$3,303.42"
48,J.F. Drake State,300376,PETURA M JONES,Jul,30,2010,Instructional Salaries - Tempo,UNRESTRICTED,"$1,402.50"
48,J.F. Drake State,300377,STEPHANIE JONES BOUNDS,Jul,30,2010,Instructional Salaries - Regul,UNRESTRICTED,"$7,773.42"
48,J.F. Drake State,300378,CHERYL P KEMP,Jul,30,2010,Instructional Salaries - Tempo,UNRESTRICTED,"$2,140.00"
48,J.F. Drake State,300379,PRAVEENA KOMMIDI,Jul,30,2010,Instructional Salaries - Regul,UNRESTRICTED,"$5,624.00"
48,J.F. Drake State,300380,NICHOLAS PAUL KSEPKA,Jul,30,2010,Hourly Wages,UNRESTRICTED,"$1,560.00"
48,J.F. Drake State,300381,EDITH YALITZA LAFONTAINE,Jul,30,2010,Instructional Salaries - Tempo,UNRESTRICTED,"$1,268.75"
48,J.F. Drake State,300382,HONG THUYDUC LAM,Jul,30,2010,Instructional Salaries - Regul,UNRESTRICTED,"$5,261.33"
48,J.F. Drake State,300383,JOYCE P LAMAR,Jul,30,2010,Hourly Wages,UNRESTRICTED,"$4,419.00"
48,J.F. Drake State,300384,KRISTEN K LECROIX,Jul,30,2010,Instructional Salaries - Tempo,UNRESTRICTED,$450.00
48,J.F. Drake State,300385,ANNA LOVELL,Jul,30,2010,Instructional Salaries - Regul,UNRESTRICTED,"$3,918.67"
48,J.F. Drake State,300386,MICHEAL V MAXTON,Jul,30,2010,Instructional Salaries - Tempo,UNRESTRICTED,$867.50
48,J.F. Drake State,300387,MUKESHA MBUGUJE,Jul,30,2010,Instructional Salaries - Tempo,UNRESTRICTED,"$2,086.50"
48,J.F. Drake State,300388,HELEN T MCALPINE,Jul,30,2010,Administrative Salaries- Sched,UNRESTRICTED,"$14,266.45"
48,J.F. Drake State,300388,HELEN T MCALPINE,Jul,30,2010,President's Expense Allowance,UNRESTRICTED,$200.00
48,J.F. Drake State,300388,HELEN T MCALPINE,Jul,30,2010,Housing Allowance,UNRESTRICTED,"$1,000.00"
48,J.F. Drake State,300389,DEMETIUS L MCCARTY,Jul,30,2010,Support Personnel Salaries - S,UNRESTRICTED,"$2,028.00"
48,J.F. Drake State,300390,JERRY L MCCAULLEY,Jul,30,2010,Instructional Salaries - Tempo,UNRESTRICTED,$450.00
48,J.F. Drake State,300391,PATRICK T MCDONALD,Jul,30,2010,Instructional Salaries - Tempo,NAT'L SCIENCE FOUNDATION,$850.00
48,J.F. Drake State,300392,CLINT ALEXANDER MCINTIRE,Jul,30,2010,Other Contractual Services,TITLE III,$890.63
48,J.F. Drake State,300393,SCOTTY MCLAUGHLIN,Jul,30,2010,Instructional Salaries - Regul,UNRESTRICTED,"$6,535.00"
48,J.F. Drake State,300393,SCOTTY MCLAUGHLIN,Jul,30,2010,Instructional Salaries - Tempo,UNRESTRICTED,$300.00
48,J.F. Drake State,300394,DEBORAH A MILLING,Jul,30,2010,Instructional Salaries - Regul,UNRESTRICTED,"$11,097.33"
48,J.F. Drake State,300395,SAMMY J MILTON,Jul,30,2010,Support Personnel Salaries - S,UNRESTRICTED,"$3,452.83"
48,J.F. Drake State,300396,PREMA A MONTEIRO,Jul,30,2010,Instructional Salaries - Regul,UNRESTRICTED,"$3,249.00"
48,J.F. Drake State,300397,DANA MOORE,Jul,30,2010,Other Professional Salaries -,TITLE III,"$8,649.00"
48,J.F. Drake State,300398,JOHN MOORE,Jul,30,2010,Instructional Salaries - Tempo,UNRESTRICTED,$450.00
48,J.F. Drake State,300399,MARY JO MORAN,Jul,30,2010,Instructional Salaries - Tempo,UNRESTRICTED,"$1,631.75"
48,J.F. Drake State,300400,BRUCE D MORRISON,Jul,30,2010,Support Personnel Salaries - S,UNRESTRICTED,"$4,047.25"
48,J.F. Drake State,300401,KATHRYN B NEAL,Jul,30,2010,Other Professional Salaries -,UNRESTRICTED,"$7,905.25"
48,J.F. Drake State,300402,KAREN NEIR,Jul,30,2010,Instructional Salaries - Tempo,UNRESTRICTED,"$2,273.75"
48,J.F. Drake State,300403,RICHARD H NEWTON,Jul,30,2010,Other Contractual Services,TITLE III,$862.50
48,J.F. Drake State,300404,JENNIFER O'LINGER,Jul,30,2010,Support Personnel Salaries - S,UNRESTRICTED,"$3,154.25"
48,J.F. Drake State,300405,DONALD ORR,Jul,30,2010,Support Personnel Salaries - S,UNRESTRICTED,"$3,601.25"
48,J.F. Drake State,300406,JENNIFER E PATTERSON,Jul,30,2010,Instructional Salaries - Tempo,UNRESTRICTED,$867.50
48,J.F. Drake State,300406,JENNIFER E PATTERSON,Jul,30,2010,Other Contractual Services,TITLE III,$440.00
48,J.F. Drake State,300407,WILLIE C PATTON,Jul,30,2010,Instructional Salaries - Tempo,UNRESTRICTED,$733.75
48,J.F. Drake State,300408,ALBERT B PETERSON II,Jul,30,2010,Instructional Salaries - Tempo,UNRESTRICTED,$520.00
48,J.F. Drake State,300409,JAMES ANTHONY PLENTY,Jul,30,2010,Instructional Salaries - Tempo,UNRESTRICTED,$450.00
48,J.F. Drake State,300410,GWENDOLYN D POPE,Jul,30,2010,Instructional Salaries - Regul,UNRESTRICTED,"$12,642.75"
48,J.F. Drake State,300411,KARRIE PRATT,Jul,30,2010,Instructional Salaries - Tempo,UNRESTRICTED,$642.00
48,J.F. Drake State,300412,FREDRICK O PRUITT,Jul,30,2010,Instructional Salaries - Regul,UNRESTRICTED,"$4,470.67"
48,J.F. Drake State,300412,FREDRICK O PRUITT,Jul,30,2010,Instructional Salaries - Tempo,UNRESTRICTED,$150.00
48,J.F. Drake State,300413,MICHAEL RADDEN,Jul,30,2010,Instructional Salaries - Tempo,UNRESTRICTED,$433.75
48,J.F. Drake State,300414,LORAINE RAGIN,Jul,30,2010,Instructional Salaries - Tempo,UNRESTRICTED,"$3,542.00"
48,J.F. Drake State,300415,WELDON RAGLAND,Jul,30,2010,Instructional Salaries - Tempo,UNRESTRICTED,"$1,268.75"
48,J.F. Drake State,300416,ALICE G RAYMOND,Jul,30,2010,Instructional Salaries - Regul,UNRESTRICTED,"$7,523.33"
48,J.F. Drake State,300417,JOYCE L RENTZ,Jul,30,2010,Instructional Salaries - Tempo,UNRESTRICTED,$867.50
48,J.F. Drake State,300417,JOYCE L RENTZ,Jul,30,2010,Instructional Salaries - Regul,UNRESTRICTED,"$6,251.00"
48,J.F. Drake State,300418,JOHN REUTTER III,Jul,30,2010,Instructional Salaries - Tempo,UNRESTRICTED,$867.50
48,J.F. Drake State,300418,JOHN REUTTER III,Jul,30,2010,Other Professional Salaries -,NAT'L SCIENCE FOUNDATION,"$6,616.75"
48,J.F. Drake State,300419,CHERILYN ROOKS,Jul,30,2010,Instructional Salaries - Tempo,UNRESTRICTED,$682.13
48,J.F. Drake State,300420,CHRISTINA R SCISSUM,Jul,30,2010,Other Professional Salaries -,TITLE III,"$4,012.50"
48,J.F. Drake State,300421,BARRY E SHELTON,Jul,30,2010,Instructional Salaries - Tempo,UNRESTRICTED,"$1,738.75"
48,J.F. Drake State,300422,JACQUELINE M SHIVERS,Jul,30,2010,Instructional Salaries - Tempo,UNRESTRICTED,"$1,518.75"
48,J.F. Drake State,300423,RICKY M SHOCKLEY,Jul,30,2010,Other Contractual Services,TITLE III,$400.00
48,J.F. Drake State,300424,LESLEY SHOTTS,Jul,30,2010,Instructional Salaries - Regul,UNRESTRICTED,"$4,190.50"
48,J.F. Drake State,300425,PATRICIA GORDON SIMS,Jul,30,2010,Administrative Salaries- Sched,UNRESTRICTED,"$9,245.09"
48,J.F. Drake State,300427,RYAN E SMITH,Jul,30,2010,Other Professional Salaries -,UNRESTRICTED,"$4,000.00"
48,J.F. Drake State,300428,DELORIS A SMOTHERS,Jul,30,2010,Instructional Salaries - Regul,UNRESTRICTED,"$6,227.33"
48,J.F. Drake State,300429,JULIE P SPURGEON,Jul,30,2010,Support Personnel Salaries - S,ARRA STIMULUS FUNDS,"$1,889.83"
48,J.F. Drake State,300430,VERLINDSEY B STEWART,Jul,30,2010,Instructional Salaries - Regul,UNRESTRICTED,"$6,135.00"
48,J.F. Drake State,300431,MONICA SUDEALL-HAWKINS,Jul,30,2010,Other Professional Salaries -,UNRESTRICTED,"$4,993.33"
48,J.F. Drake State,300432,SHANNON SUMMERS,Jul,30,2010,Instructional Salaries - Tempo,UNRESTRICTED,$616.00
48,J.F. Drake State,300433,RICHARD M SWAIM,Jul,30,2010,Instructional Salaries - Tempo,UNRESTRICTED,$733.75
48,J.F. Drake State,300434,DOCQUINN N TAYLOR,Jul,30,2010,Instructional Salaries - Tempo,UNRESTRICTED,$150.00
48,J.F. Drake State,300435,RUSSELL B THOMAS,Jul,30,2010,Other Contractual Services,TITLE III,$950.00
48,J.F. Drake State,300435,RUSSELL B THOMAS,Jul,30,2010,Instructional Salaries - Tempo,NAT'L SCIENCE FOUNDATION,$175.00
48,J.F. Drake State,300436,DYANTHA E TOLBERT,Jul,30,2010,Support Personnel Salaries - S,UNRESTRICTED,"$1,656.80"
48,J.F. Drake State,300437,JOY D TORNQUIST,Jul,30,2010,Instructional Salaries - Tempo,UNRESTRICTED,"$2,300.50"
48,J.F. Drake State,300438,KRISTIN TREADWAY,Jul,30,2010,Support Personnel Salaries - S,ALLIED HEALTH,"$2,707.83"
48,J.F. Drake State,300439,JOYLYN ERNA TROTMAN,Jul,30,2010,Other Professional Salaries -,UNRESTRICTED,"$4,465.83"
48,J.F. Drake State,300440,ELIZABETH A TUGGLE,Jul,30,2010,Instructional Salaries - Tempo,UNRESTRICTED,"$1,716.00"
48,J.F. Drake State,300441,GILBERT T TURLEY,Jul,30,2010,Instructional Salaries - Tempo,UNRESTRICTED,$450.00
48,J.F. Drake State,300441,GILBERT T TURLEY,Jul,30,2010,Other Professional Salaries -,UNRESTRICTED,"$6,450.08"
48,J.F. Drake State,300442,LETITIA E WALKER,Jul,30,2010,Support Personnel Salaries - S,UNRESTRICTED,"$3,229.42"
48,J.F. Drake State,300443,THEO NATHAN WALSTON,Jul,30,2010,Support Personnel Salaries - S,ARRA STIMULUS FUNDS,"$3,020.91"
48,J.F. Drake State,300444,KATINA L WALTON,Jul,30,2010,Instructional Salaries - Tempo,UNRESTRICTED,"$1,029.00"
48,J.F. Drake State,300445,MELINDA WEST,Jul,30,2010,Instructional Salaries - Tempo,UNRESTRICTED,$521.63
48,J.F. Drake State,300446,DWAYNIA WILKERSON,Jul,30,2010,Other Contractual Services,TITLE III,$865.00
48,J.F. Drake State,300447,KRISHALON WILKERSON,Jul,30,2010,Instructional Salaries - Tempo,UNRESTRICTED,$450.00
48,J.F. Drake State,300448,JULIE WILLIAMS,Jul,30,2010,Instructional Salaries - Tempo,UNRESTRICTED,$867.50
48,J.F. Drake State,300449,RICKY WILLINGHAM,Jul,30,2010,Other Professional Salaries -,TITLE III,"$5,416.67"
48,J.F. Drake State,300450,INA M WILSON,Jul,30,2010,Other Professional Salaries -,TITLE III,"$4,166.67"
48,J.F. Drake State,300451,GEORGE R WINN,Jul,30,2010,Instructional Salaries - Regul,UNRESTRICTED,"$5,123.00"
48,J.F. Drake State,300451,GEORGE R WINN,Jul,30,2010,Instructional Salaries - Tempo,UNRESTRICTED,$450.00
48,J.F. Drake State,300452,JOHNIKA WORD,Jul,30,2010,Support Personnel Salaries - S,UNRESTRICTED,"$1,973.40"
48,J.F. Drake State,300453,ANDRAIN YELDELL,Jul,30,2010,Instructional Salaries - Tempo,UNRESTRICTED,$300.00
48,J.F. Drake State,300283,MARTHA J ROBERTS,Jul,30,2010,Support Personnel Salaries - S,UNRESTRICTED,"$4,940.33"
48,J.F. Drake State,300460,MICHAEL RADDEN,Jul,30,2010,Instructional Salaries - Tempo,UNRESTRICTED,$433.75
48,J.F. Drake State,300461,NELSON E BARNES,Jul,30,2010,Instructional Salaries - Tempo,UNRESTRICTED,"$1,268.75"
48,J.F. Drake State,200972,AMERICAN EXPRESS,Jul,28,2010,Out-of-State Travel,TITLE III,$624.80
48,J.F. Drake State,200973,CAROLINA BIOLOGICAL,Jul,28,2010,Materials and Supplies,NAT'L SCIENCE FOUNDATION,$713.80
48,J.F. Drake State,200973,CAROLINA BIOLOGICAL,Jul,28,2010,Materials and Supplies,TITLE III CARRYOVER,$27.50
48,J.F. Drake State,200974,CDW-G,Jul,28,2010,Materials and Supplies,TITLE III CARRYOVER,$36.96
48,J.F. Drake State,200974,CDW-G,Jul,28,2010,Materials and Supplies,ALLIED HEALTH,"$2,941.74"
48,J.F. Drake State,200975,ENGINEERED MAINTENACE SER,Jul,28,2010,Materials and Supplies,TITLE III,$940.28
48,J.F. Drake State,200976,ENTERPRISE RENTAL CAR,Jul,28,2010,In-State Travel,TITLE III,$280.80
48,J.F. Drake State,200977,FOLLET SOFTWARE COMPANY,Jul,28,2010,Materials and Supplies,TITLE III,$564.00
48,J.F. Drake State,200978,MOORE MEDICAL CORP,Jul,28,2010,Materials and Supplies,ALLIED HEALTH,"$3,712.80"
48,J.F. Drake State,200979,"OFFICE DEPOT, INC.",Jul,28,2010,Materials and Supplies,TITLE III CARRYOVER,$943.68
48,J.F. Drake State,200979,"OFFICE DEPOT, INC.",Jul,28,2010,Materials and Supplies,ALLIED HEALTH,$715.08
48,J.F. Drake State,200979,"OFFICE DEPOT, INC.",Jul,28,2010,Materials and Supplies,TITLE III,"$1,309.50"
48,J.F. Drake State,200980,PASCO,Jul,28,2010,Materials and Supplies,NAT'L SCIENCE FOUNDATION,"$1,038.00"
48,J.F. Drake State,200981,PRAVEENA KOMMIDI,Jul,28,2010,In-State Travel,TITLE III,$101.05
48,J.F. Drake State,200982,PRESIDENTS ROUND TABLE,Jul,28,2010,In-State Travel,TITLE III,$750.00
48,J.F. Drake State,200983,SCANTRON CORPORATION,Jul,28,2010,Materials and Supplies,ALLIED HEALTH,$445.54
48,J.F. Drake State,200984,4IMPRINT,Jul,28,2010,Materials and Supplies,NAT'L SCIENCE FOUNDATION,"$6,326.90"
48,J.F. Drake State,100673,AFFORDABLE SIGNS & BANNER,Jul,27,2010,Advertising and Promotions,UNRESTRICTED,$635.00
48,J.F. Drake State,100674,AT&T LONG DISTANCE SERV.,Jul,27,2010,Communications,UNRESTRICTED,$235.47
48,J.F. Drake State,100675,BUILDING SPECIALTIES CO,Jul,27,2010,Materials and Supplies,PLANT FUNDS,"$3,832.50"
48,J.F. Drake State,100676,C & C BUILDING SERVICES,Jul,27,2010,Maintenance and Repairs,PLANT FUNDS,"$4,738.00"
48,J.F. Drake State,100677,CHEVRON CARD SERVICES,Jul,27,2010,Gasoline and Oil - Motor Vehic,UNRESTRICTED,$731.55
48,J.F. Drake State,100679,"DYNAMIC SECURITY, INC.",Jul,27,2010,Other Contractual Services,UNRESTRICTED,"$22,396.92"
48,J.F. Drake State,100680,EVOLVE REACH,Jul,27,2010,Purchases for Resale,AUXILIARY,"$4,774.44"
48,J.F. Drake State,100681,EVOLVE REACH,Jul,27,2010,Purchases for Resale,AUXILIARY,"$4,069.52"
48,J.F. Drake State,100682,FEDEX,Jul,27,2010,Communications,UNRESTRICTED,$201.68
48,J.F. Drake State,100683,HIGHLANDS OCCUPATIONAL ME,Jul,27,2010,Purchases for Resale,AUXILIARY,$880.00
48,J.F. Drake State,100684,KEYPLUS SCHOOL PRODUCTS,Jul,27,2010,Institutional Use,UNRESTRICTED,"$1,926.50"
48,J.F. Drake State,100685,KEYPLUS SCHOOL PRODUCTS,Jul,27,2010,Institutional Use,UNRESTRICTED,"$8,298.87"
48,J.F. Drake State,100687,MID CITY SUPPLY CO,Jul,27,2010,Materials and Supplies,UNRESTRICTED,$493.00
48,J.F. Drake State,100688,MONACO PICTURES,Jul,27,2010,Advertising and Promotions,UNRESTRICTED,$650.00
48,J.F. Drake State,100689,"OFFICE DEPOT, INC.",Jul,27,2010,Purchases for Resale,UNRESTRICTED,$525.00
48,J.F. Drake State,100690,RANDALL A SCHRIMSHER,Jul,27,2010,Rent - Facilities,UNRESTRICTED,"$6,250.00"
48,J.F. Drake State,100691,SAM'S CLUB/WALMART,Jul,27,2010,Purchases for Resale,UNRESTRICTED,$350.00
48,J.F. Drake State,100693,SOUTHERNLINC WIRELESS,Jul,27,2010,Communications,UNRESTRICTED,$87.45
48,J.F. Drake State,100694,UAH HUNTSVILLE COPY,Jul,27,2010,Advertising and Promotions,UNRESTRICTED,$132.00
48,J.F. Drake State,100665,CUSTOMER COMMUNICATIONS,Jul,23,2010,Memberships,TITLE III,$208.00
48,J.F. Drake State,100668,KUDZU PRODUCTION,Jul,23,2010,Other Contractual Services,WELDING GRANT,"$2,600.00"
48,J.F. Drake State,100669,KUDZU PRODUCTION,Jul,23,2010,Other Contractual Services,WELDING GRANT,"$3,337.50"
48,J.F. Drake State,100671,UNIVERSITY OF ALABAMA,Jul,23,2010,Other Contractual Services,UNRESTRICTED,$500.00
48,J.F. Drake State,200961,KHALILAH V. BURTON,Jul,22,2010,Out-of-State Travel,TITLE III,$97.37
48,J.F. Drake State,200962,CDW-G,Jul,22,2010,Materials and Supplies,ALLIED HEALTH,"$54,251.45"
48,J.F. Drake State,200963,CRI,Jul,22,2010,Materials and Supplies,TITLE III CARRYOVER,$350.00
48,J.F. Drake State,200963,CRI,Jul,22,2010,Materials and Supplies,TITLE III,$656.31
48,J.F. Drake State,200964,"DAVIS, MATTIE",Jul,22,2010,In-State Travel,ALLIED HEALTH,$195.00
48,J.F. Drake State,200964,"DAVIS, MATTIE",Jul,22,2010,Employee Taxable Per Diem,ALLIED HEALTH,$11.25
48,J.F. Drake State,200965,EBSCO PUBLISHING,Jul,22,2010,Materials and Supplies,TITLE III,$590.67
48,J.F. Drake State,200966,"HENRY, KARL W. SR.",Jul,22,2010,Out-of-State Travel,TITLE III,$32.00
48,J.F. Drake State,200967,HUNTSVILLE TIMES,Jul,22,2010,Materials and Supplies,NAT'L SCIENCE FOUNDATION,"$1,716.00"
48,J.F. Drake State,200968,LIBRARICA LLC,Jul,22,2010,Materials and Supplies,TITLE III,$473.04
48,J.F. Drake State,200969,LYRASIS,Jul,22,2010,Memberships,TITLE III,$660.00
48,J.F. Drake State,200970,"OFFICE DEPOT, INC.",Jul,22,2010,Materials and Supplies,TITLE III CARRYOVER,$560.81
48,J.F. Drake State,200971,RESOURCE CENTER,Jul,22,2010,In-State Travel,TITLE III,$675.00
48,J.F. Drake State,100632,AMERICAN COUNCIL EDU,Jul,21,2010,Materials and Supplies,UNRESTRICTED,"$1,420.00"
48,J.F. Drake State,100633,AL.COM,Jul,21,2010,Advertising and Promotions,UNRESTRICTED,"$2,000.00"
48,J.F. Drake State,100635,BROOKS LOCK & KEY,Jul,21,2010,Other Contractual Services,UNRESTRICTED,$297.50
48,J.F. Drake State,100637,C & C BUILDING SERVICES,Jul,21,2010,Maintenance and Repairs,PLANT FUNDS,"$2,392.00"
48,J.F. Drake State,100638,COPELAND CLEANERS,Jul,21,2010,Materials and Supplies,UNRESTRICTED,$16.80
48,J.F. Drake State,100639,EDUCAUSE,Jul,21,2010,Other Contractual Services,UNRESTRICTED,$40.00
48,J.F. Drake State,100640,EVOLVE REACH,Jul,21,2010,Purchases for Resale,AUXILIARY,"$5,894.52"
48,J.F. Drake State,100641,EVOLVE REACH,Jul,21,2010,Purchases for Resale,AUXILIARY,"$2,161.09"
48,J.F. Drake State,100642,HOUGHTON MIFFLIN COMPANY,Jul,21,2010,Materials and Supplies,UNRESTRICTED,"$2,379.30"
48,J.F. Drake State,100643,HUNTSVILLE TIMES,Jul,21,2010,Advertising and Promotions,UNRESTRICTED,"$1,739.75"
48,J.F. Drake State,100644,THE LAMAR COMPANIES,Jul,21,2010,Advertising and Promotions,UNRESTRICTED,"$1,500.00"
48,J.F. Drake State,100645,"LAMAR, JOYCE",Jul,21,2010,Institutional Use,UNRESTRICTED,$68.98
48,J.F. Drake State,100646,"LANIER,FORD,SHAVER &",Jul,21,2010,Legal Services,UNRESTRICTED,"$3,341.02"
48,J.F. Drake State,100647,"LANIER,FORD,SHAVER &",Jul,21,2010,Legal Services,UNRESTRICTED,"$1,136.82"
48,J.F. Drake State,100648,LOOK ADVERTISING INC,Jul,21,2010,Advertising and Promotions,UNRESTRICTED,$350.00
48,J.F. Drake State,100649,LOWE'S,Jul,21,2010,Maintenance and Repairs,PLANT FUNDS,$96.47
48,J.F. Drake State,100649,LOWE'S,Jul,21,2010,Materials and Supplies,UNRESTRICTED,$820.30
48,J.F. Drake State,100650,MULLINS FIVE POINTS RENTA,Jul,21,2010,Maintenance and Repairs,UNRESTRICTED,$348.50
48,J.F. Drake State,100652,"OFFICE DEPOT, INC.",Jul,21,2010,Purchases for Resale,UNRESTRICTED,"$1,598.00"
48,J.F. Drake State,100652,"OFFICE DEPOT, INC.",Jul,21,2010,Materials and Supplies,UNRESTRICTED,"$1,897.37"
48,J.F. Drake State,100653,PARKWAY SCRUBS,Jul,21,2010,Purchases for Resale,UNRESTRICTED,"$1,520.44"
48,J.F. Drake State,100654,SAFETY KLEEN CORPORATION,Jul,21,2010,Other Contractual Services,UNRESTRICTED,$531.61
48,J.F. Drake State,100655,SCHINDLER ELEVATOR CORP,Jul,21,2010,Other Contractual Services,UNRESTRICTED,$966.87
48,J.F. Drake State,100656,SIEMENS PRODUCT LIFECYCLE,Jul,21,2010,Other Contractual Services,UNRESTRICTED,$684.10
48,J.F. Drake State,100657,"SMITH, RYAN",Jul,21,2010,In-State Travel,UNRESTRICTED,$96.27
48,J.F. Drake State,100658,SOUTHERLAND PHOTO INC,Jul,21,2010,Materials and Supplies,UNRESTRICTED,$386.80
48,J.F. Drake State,100660,TRANE COMPANY,Jul,21,2010,Maintenance and Repairs,UNRESTRICTED,"$2,186.10"
48,J.F. Drake State,100661,UPS,Jul,21,2010,Freight,UNRESTRICTED,$43.80
48,J.F. Drake State,100662,WASTE MANAGEMENT OF NORTH,Jul,21,2010,Other Contractual Services,UNRESTRICTED,"$1,104.49"
48,J.F. Drake State,100663,WITTICHEN SUPPLY COMPANY,Jul,21,2010,Maintenance and Repairs,PLANT FUNDS,$332.32
48,J.F. Drake State,200945,BEST BOOKS,Jul,21,2010,Books,TITLE III,"$23,628.80"
48,J.F. Drake State,200946,ADAM CLARK,Jul,21,2010,In-State Travel,TITLE III,$296.44
48,J.F. Drake State,200946,ADAM CLARK,Jul,21,2010,Employee Taxable Per Diem,TITLE III,$30.00
48,J.F. Drake State,200949,ENTERPRISE RENT-A-CAR,Jul,21,2010,Out-of-State Travel,TITLE III,$462.86
48,J.F. Drake State,200950,INA WILSON,Jul,21,2010,Out-of-State Travel,TITLE III,$925.89
48,J.F. Drake State,200951,DR. MOHAMMED R. KARIM,Jul,21,2010,Other Contractual Services,NAT'L SCIENCE FOUNDATION,"$3,250.00"
48,J.F. Drake State,200952,"MCLAUGHLIN, SCOTTY",Jul,21,2010,Out-of-State Travel,TITLE III,$298.99
48,J.F. Drake State,200953,MSC INDUSTRIAL SUPPLY,Jul,21,2010,Materials and Supplies,TITLE III,"$2,111.19"
48,J.F. Drake State,200954,"RAYMOND, ALICE",Jul,21,2010,In-State Travel,ALLIED HEALTH CARRYOVER,$194.00
48,J.F. Drake State,200954,"RAYMOND, ALICE",Jul,21,2010,Employee Taxable Per Diem,ALLIED HEALTH CARRYOVER,$11.25
48,J.F. Drake State,200955,RESOURCE CENTER,Jul,21,2010,In-State Travel,TITLE III,$675.00
48,J.F. Drake State,200956,"SIMS, PATRICIA G.",Jul,21,2010,Out-of-State Travel,TITLE III,$178.46
48,J.F. Drake State,200957,"SUDEALL, MONICA",Jul,21,2010,In-State Travel,TITLE III,$300.00
48,J.F. Drake State,200958,"TROTMAN, JOYLYN",Jul,21,2010,In-State Travel,TITLE III,$150.00
48,J.F. Drake State,200959,4IMPRINT,Jul,21,2010,Materials and Supplies,NAT'L SCIENCE FOUNDATION,"$3,163.45"
48,J.F. Drake State,200960,4IMPRINT,Jul,21,2010,Materials and Supplies,NAT'L SCIENCE FOUNDATION,"$3,163.45"
48,J.F. Drake State,7200005,COOK'S PEST CONTROL,Jul,15,2010,Communications,UNRESTRICTED,$386.00
48,J.F. Drake State,7201002,AT&T,Jul,15,2010,Communications,UNRESTRICTED,"$4,753.40"
48,J.F. Drake State,7201004,COMCAST,Jul,15,2010,Communications,UNRESTRICTED,$79.19
48,J.F. Drake State,7201006,HUNTSVILLE UTILITIES,Jul,15,2010,Water and Sewer,UNRESTRICTED,"$2,902.58"
48,J.F. Drake State,7201006,HUNTSVILLE UTILITIES,Jul,15,2010,Electricity,UNRESTRICTED,"$16,508.59"
48,J.F. Drake State,7201006,HUNTSVILLE UTILITIES,Jul,15,2010,Gas and Heating Fuel,UNRESTRICTED,$644.82
48,J.F. Drake State,7201006,HUNTSVILLE UTILITIES,Jul,15,2010,Electricity,ARMY GRANT,"$2,999.56"
48,J.F. Drake State,7201006,HUNTSVILLE UTILITIES,Jul,15,2010,Gas and Heating Fuel,ARMY GRANT,$7.00
48,J.F. Drake State,7201006,HUNTSVILLE UTILITIES,Jul,15,2010,Electricity,PLANT FUNDS,$737.95
48,J.F. Drake State,7201007,WOW! BUSINESS,Jul,15,2010,Communications,UNRESTRICTED,$104.68
48,J.F. Drake State,7201008,PITNEY BOWES,Jul,15,2010,Postage,UNRESTRICTED,"$1,200.00"
48,J.F. Drake State,200891,AACUBO,Jul,12,2010,In-State Travel,TITLE III,$450.00
48,J.F. Drake State,200892,AFRICAN AMERICAN PUBLISHE,Jul,12,2010,Subscriptions,TITLE III,$381.00
48,J.F. Drake State,200893,"BLACKBOARD, INC",Jul,12,2010,Out-of-State Travel,TITLE III,"$1,740.00"
48,J.F. Drake State,200894,CARIBE ROYALE,Jul,12,2010,Out-of-State Travel,TITLE III,$580.46
48,J.F. Drake State,200895,LEADERSHIP HUNTSVILLE,Jul,12,2010,Memberships,TITLE III,"$3,325.00"
48,J.F. Drake State,200896,LYRASIS,Jul,12,2010,In-State Travel,TITLE III,$220.00
48,J.F. Drake State,200897,MARRIOTT DENVER CITY CTR,Jul,12,2010,Out-of-State Travel,TITLE III,$868.27
48,J.F. Drake State,200898,NASFAA,Jul,12,2010,Out-of-State Travel,TITLE III,$525.00
48,J.F. Drake State,200899,SOCIETY FOR HUMAN RESOURC,Jul,12,2010,Memberships,TITLE III,$150.00
48,J.F. Drake State,200854,WOW! BUSINESS,Jul,8,2010,Materials and Supplies,TITLE III,"$1,104.19"
48,J.F. Drake State,300272,DEAVIANCE FOWLKS BLEVINS,Jul,8,2010,Other Contractual Services,TITLE III,"$1,037.50"
48,J.F. Drake State,300273,LINDA BURRUSS,Jul,8,2010,Instructional Salaries - Tempo,NAT'L SCIENCE FOUNDATION,"$1,920.00"
48,J.F. Drake State,300275,JOHN C CORDA,Jul,8,2010,Instructional Salaries - Tempo,NAT'L SCIENCE FOUNDATION,"$1,920.00"
48,J.F. Drake State,300276,JOHN DAVID HILLENBERG,Jul,8,2010,Other Contractual Services,TITLE III,$546.88
48,J.F. Drake State,300277,PATRICK T MCDONALD,Jul,8,2010,Instructional Salaries - Tempo,NAT'L SCIENCE FOUNDATION,$400.00
48,J.F. Drake State,300278,LYNEVE JOY POMPEY,Jul,8,2010,Instructional Salaries - Tempo,NAT'L SCIENCE FOUNDATION,$365.63
48,J.F. Drake State,300279,RUSSELL B THOMAS,Jul,8,2010,Instructional Salaries - Tempo,NAT'L SCIENCE FOUNDATION,$293.75
48,J.F. Drake State,300280,MISHA WHITE,Jul,8,2010,Instructional Salaries - Tempo,NAT'L SCIENCE FOUNDATION,$800.00
48,J.F. Drake State,300281,KRISHALON WILKERSON,Jul,8,2010,Instructional Salaries - Tempo,NAT'L SCIENCE FOUNDATION,"$1,920.00"
48,J.F. Drake State,300282,DEBORA P WINTERS,Jul,8,2010,Instructional Salaries - Tempo,NAT'L SCIENCE FOUNDATION,"$1,920.00"
48,J.F. Drake State,200845,KEMBA CHAMBERS,Jul,7,2010,Out-of-State Travel,TITLE III,$146.80
48,J.F. Drake State,200846,MARTHA DUBEY,Jul,7,2010,In-State Travel,TITLE III,$417.44
48,J.F. Drake State,200847,"POPE, GWENDOLYN M.",Jul,7,2010,Out-of-State Travel,CARL PERKINS FUNDS,$300.00
48,J.F. Drake State,200848,"RAYMOND, ALICE",Jul,7,2010,Out-of-State Travel,ALLIED HEALTH,"$1,219.96"
48,J.F. Drake State,200849,"RENTZ, JOYCE L.",Jul,7,2010,Out-of-State Travel,TITLE III,$556.53
48,J.F. Drake State,200850,DR. JOHN REUTTER,Jul,7,2010,Out-of-State Travel,NAT'L SCIENCE FOUNDATION,"$1,172.24"
48,J.F. Drake State,200851,RICKY WILLINGHAM,Jul,7,2010,Out-of-State Travel,TITLE III,$150.00
48,J.F. Drake State,200852,CDW-G,Jul,7,2010,Materials and Supplies,ALLIED HEALTH CARRYOVER,"$19,993.75"
48,J.F. Drake State,200853,NORTHEAST ALABAMA STATE C,Jul,7,2010,In-State Travel,TITLE III,"$2,000.00"
48,J.F. Drake State,100531,VISION BEAUTY DIST,Jul,6,2010,Purchases for Resale,UNRESTRICTED,$664.15
48,J.F. Drake State,100532,DR. TOMESA SMITH,Jul,6,2010,In-State Travel,HP TECH FOR TEACHING,$300.00
48,J.F. Drake State,100533,EVOLVE REACH,Jul,6,2010,Purchases for Resale,AUXILIARY,$624.00
48,J.F. Drake State,100534,GRAYBAR,Jul,6,2010,Materials and Supplies,UNRESTRICTED,$461.55
48,J.F. Drake State,100535,LAKE GUNTERSVILLE STATE,Jul,6,2010,In-State Travel,HP TECH FOR TEACHING,$791.00
48,J.F. Drake State,100536,MID CITY SUPPLY CO,Jul,6,2010,Purchases for Resale,UNRESTRICTED,$158.07
48,J.F. Drake State,100538,JENNIFER OLINGER,Jul,6,2010,In-State Travel,HP TECH FOR TEACHING,$440.00
48,J.F. Drake State,100539,PITNEY BOWES,Jul,6,2010,Other Contractual Services,UNRESTRICTED,$657.00
48,J.F. Drake State,100540,VERIZON WIRELESS,Jul,6,2010,Communications,UNRESTRICTED,$687.63
48,J.F. Drake State,100541,"WOODY ANDERSON FORD, INC.",Jul,6,2010,Maintenance and Repairs,UNRESTRICTED,$856.24
48,J.F. Drake State,200836,AMERICAN EXPRESS,Jul,2,2010,Out-of-State Travel,ALLIED HEALTH,"$1,801.20"
48,J.F. Drake State,200837,DONALD BURTON,Jul,2,2010,In-State Travel,CAREER COACHES,$46.25
48,J.F. Drake State,200838,CDW-G,Jul,2,2010,Materials and Supplies,TITLE III,$268.92
48,J.F. Drake State,200838,CDW-G,Jul,2,2010,Materials and Supplies,TITLE III CARRYOVER,"$2,304.93"
48,J.F. Drake State,200839,EMBASSY SUITES,Jul,2,2010,Out-of-State Travel,ALLIED HEALTH,"$2,504.88"
48,J.F. Drake State,200840,"OFFICE DEPOT, INC.",Jul,2,2010,Materials and Supplies,TITLE III,$273.35
48,J.F. Drake State,200840,"OFFICE DEPOT, INC.",Jul,2,2010,Materials and Supplies,TITLE III CARRYOVER,$204.79
48,J.F. Drake State,200841,PROFESSIONAL SALES CO,Jul,2,2010,Materials and Supplies,TITLE III,"$7,160.00"
48,J.F. Drake State,200842,SACJTC,Jul,2,2010,Memberships,TITLE III,$100.00
48,J.F. Drake State,200843,SAM'S CLUB/WALMART,Jul,2,2010,Materials and Supplies,TITLE III CARRYOVER,$44.24
48,J.F. Drake State,200844,KRISTIN TREADWAY,Jul,2,2010,In-State Travel,CAREER COACHES,$208.45
48,J.F. Drake State,100480,ACT,Jun,30,2010,Materials and Supplies,UNRESTRICTED,$640.00
48,J.F. Drake State,100481,AFFORDABLE SIGNS & BANNER,Jun,30,2010,Materials and Supplies,PLANT FUNDS,$559.60
48,J.F. Drake State,100482,ALABAMA BALLOON CO,Jun,30,2010,Materials and Supplies,UNRESTRICTED,$80.00
48,J.F. Drake State,100483,"ALLIANT DATA SYSTEM,INC",Jun,30,2010,Other Contractual Services,UNRESTRICTED,"$13,891.50"
48,J.F. Drake State,100484,ALZHEIMER'S ASSOCIATION,Jun,30,2010,Advertising and Promotions,UNRESTRICTED,"$1,000.00"
48,J.F. Drake State,100485,AMERICAN EXPRESS,Jun,30,2010,Out-of-State Travel,UNRESTRICTED,$502.30
48,J.F. Drake State,100487,BROOKS LOCK & KEY,Jun,30,2010,Maintenance and Repairs,UNRESTRICTED,"$1,873.00"
48,J.F. Drake State,100488,"BURMAX, INC.",Jun,30,2010,Purchases for Resale,UNRESTRICTED,"$1,841.84"
48,J.F. Drake State,100489,C & C BUILDING SERVICES,Jun,30,2010,Maintenance and Repairs,PLANT FUNDS,"$2,006.50"
48,J.F. Drake State,100490,C. C. DICKSON COMPANY,Jun,30,2010,Maintenance and Repairs,UNRESTRICTED,$200.17
48,J.F. Drake State,100491,HUNTSVILLE MADISON COUNTY,Jun,30,2010,Memberships,UNRESTRICTED,$649.00
48,J.F. Drake State,100492,CHEVRON CARD SERVICES,Jun,30,2010,Gasoline and Oil - Motor Vehic,UNRESTRICTED,$491.01
48,J.F. Drake State,100493,CONDITIONED AIR SOLUTIONS,Jun,30,2010,Maintenance and Repairs,UNRESTRICTED,$578.00
48,J.F. Drake State,100494,COOK'S PEST CONTROL,Jun,30,2010,Other Contractual Services,ARMY GRANT,$140.00
48,J.F. Drake State,100495,COPELAND CLEANERS,Jun,30,2010,Materials and Supplies,UNRESTRICTED,$178.18
48,J.F. Drake State,100496,DONNIE RAY NEELEY,Jun,30,2010,Purchases for Resale,AUXILIARY,$95.00
48,J.F. Drake State,100497,PETTY CASH,Jun,30,2010,Materials and Supplies,UNRESTRICTED,$160.02
48,J.F. Drake State,100497,PETTY CASH,Jun,30,2010,Institutional Use,UNRESTRICTED,$85.34
48,J.F. Drake State,100497,PETTY CASH,Jun,30,2010,Advertising and Promotions,UNRESTRICTED,$9.71
48,J.F. Drake State,100497,PETTY CASH,Jun,30,2010,Maintenance and Repairs,UNRESTRICTED,$42.70
48,J.F. Drake State,100498,"DYNAMIC SECURITY, INC.",Jun,30,2010,Other Contractual Services,UNRESTRICTED,"$10,947.30"
48,J.F. Drake State,100499,EVOLVE REACH,Jun,30,2010,Purchases for Resale,AUXILIARY,$145.34
48,J.F. Drake State,100500,GAIL FISCH,Jun,30,2010,In-State Travel,UNRESTRICTED,$282.99
48,J.F. Drake State,100501,GIFTS OF HEALTH,Jun,30,2010,Purchases for Resale,UNRESTRICTED,$537.50
48,J.F. Drake State,100502,GOODHEART-WILCOX COMPANY,Jun,30,2010,Purchases for Resale,UNRESTRICTED,$535.12
48,J.F. Drake State,100503,HILTON SAN DIEGO/AIRPORT,Jun,30,2010,Out-of-State Travel,UNRESTRICTED,$459.00
48,J.F. Drake State,100504,CHAMBER OF COMMERCE,Jun,30,2010,Advertising and Promotions,UNRESTRICTED,$710.00
48,J.F. Drake State,100505,"IMDIVERSITY, INC",Jun,30,2010,Memberships,UNRESTRICTED,$133.34
48,J.F. Drake State,100506,IT'S COMPANY,Jun,30,2010,Purchases for Resale,UNRESTRICTED,"$1,315.00"
48,J.F. Drake State,100507,"JOSSEY-BASS, INC., PUBLIS",Jun,30,2010,In-State Travel,UNRESTRICTED,$649.00
48,J.F. Drake State,100508,KUDZU PRODUCTION,Jun,30,2010,Advertising and Promotions,UNRESTRICTED,$855.00
48,J.F. Drake State,100509,"LANIER,FORD,SHAVER &",Jun,30,2010,Legal Services,UNRESTRICTED,"$5,222.02"
48,J.F. Drake State,100510,LOOK ADVERTISING INC,Jun,30,2010,Advertising and Promotions,UNRESTRICTED,"$1,060.00"
48,J.F. Drake State,100511,LOWE'S,Jun,30,2010,Materials and Supplies,UNRESTRICTED,$531.60
48,J.F. Drake State,100511,LOWE'S,Jun,30,2010,Maintenance and Repairs,PLANT FUNDS,"$1,523.42"
48,J.F. Drake State,100512,LOWE'S,Jun,30,2010,Materials and Supplies,UNRESTRICTED,"$1,247.11"
48,J.F. Drake State,100513,LOWE'S,Jun,30,2010,Materials and Supplies,UNRESTRICTED,$120.32
48,J.F. Drake State,100514,MEDALLICA ART CO,Jun,30,2010,Institutional Use,UNRESTRICTED,"$1,076.55"
48,J.F. Drake State,100515,MONACO PICTURES,Jun,30,2010,Advertising and Promotions,UNRESTRICTED,$650.00
48,J.F. Drake State,100516,MULLINS FIVE POINTS RENTA,Jun,30,2010,Materials and Supplies,PLANT FUNDS,"$3,058.00"
48,J.F. Drake State,100516,MULLINS FIVE POINTS RENTA,Jun,30,2010,Materials and Supplies,UNRESTRICTED,$66.00
48,J.F. Drake State,100517,"OFFICE DEPOT, INC.",Jun,30,2010,Materials and Supplies,UNRESTRICTED,$531.09
48,J.F. Drake State,100518,PARADIGM PUBLISHING,Jun,30,2010,Purchases for Resale,UNRESTRICTED,"$1,626.30"
48,J.F. Drake State,100519,PEARSON,Jun,30,2010,Purchases for Resale,UNRESTRICTED,$515.98
48,J.F. Drake State,100520,PEARSON EDUCATION CTR,Jun,30,2010,Purchases for Resale,UNRESTRICTED,"$1,091.05"
48,J.F. Drake State,100521,PIPING PLUS,Jun,30,2010,Maintenance and Repairs,UNRESTRICTED,$158.60
48,J.F. Drake State,100522,RANDALL A SCHRIMSHER,Jun,30,2010,Rent - Facilities,UNRESTRICTED,"$6,250.00"
48,J.F. Drake State,100523,ROSETTA STONE,Jun,30,2010,In-State Travel,ADULT ED,$539.00
48,J.F. Drake State,100524,SERVICE STEEL INCORP,Jun,30,2010,Materials and Supplies,PLANT FUNDS,"$1,552.00"
48,J.F. Drake State,100525,SEXTON WELDING SUPPLY,Jun,30,2010,Materials and Supplies,UNRESTRICTED,"$2,398.00"
48,J.F. Drake State,100526,SPEAKIN OUT NEWS,Jun,30,2010,Advertising and Promotions,UNRESTRICTED,$567.00
48,J.F. Drake State,100527,STEWART ELECTRIC CO,Jun,30,2010,Materials and Supplies,UNRESTRICTED,$338.45
48,J.F. Drake State,100528,STUART B. CONSULTANTS INC,Jun,30,2010,Other Contractual Services,UNRESTRICTED,"$2,157.00"
48,J.F. Drake State,100529,SUCCESS MARKETING,Jun,30,2010,Advertising and Promotions,UNRESTRICTED,"$9,000.00"
48,J.F. Drake State,100530,WASTE MANAGEMENT OF NORTH,Jun,30,2010,Other Contractual Services,UNRESTRICTED,$667.28
48,J.F. Drake State,300222,MATTIE B FREEMAN,Jun,30,2010,Instructional Salaries - Tempo,UNRESTRICTED,"$1,926.00"
48,J.F. Drake State,300223,TIMOTHY RYAN GREEN,Jun,30,2010,Instructional Salaries - Regul,UNRESTRICTED,"$3,542.00"
48,J.F. Drake State,300224,ROBERT N GRISSIM,Jun,30,2010,Instructional Salaries - Tempo,UNRESTRICTED,$733.75
48,J.F. Drake State,300225,TOBY R HOLLOWAY,Jun,30,2010,Instructional Salaries - Tempo,UNRESTRICTED,"$1,268.75"
48,J.F. Drake State,300226,KHALID HOLMES,Jun,30,2010,Instructional Salaries - Tempo,UNRESTRICTED,"$1,402.50"
48,J.F. Drake State,300228,STEPHANIE JONES BOUNDS,Jun,30,2010,Instructional Salaries - Regul,UNRESTRICTED,"$4,295.00"
48,J.F. Drake State,300229,EDITH YALITZA LAFONTAINE,Jun,30,2010,Instructional Salaries - Tempo,UNRESTRICTED,"$1,268.75"
48,J.F. Drake State,300230,ANNA LOVELL,Jun,30,2010,Instructional Salaries - Regul,UNRESTRICTED,"$3,918.67"
48,J.F. Drake State,300231,JOHN MOORE,Jun,30,2010,Instructional Salaries - Tempo,UNRESTRICTED,$450.00
48,J.F. Drake State,300232,DYANTHA E TOLBERT,Jun,30,2010,Support Personnel Salaries - S,UNRESTRICTED,"$1,482.40"
48,J.F. Drake State,300233,THEO NATHAN WALSTON,Jun,30,2010,Support Personnel Salaries - S,ARRA STIMULUS FUNDS,"$3,020.91"
48,J.F. Drake State,300234,MELINDA WEST,Jun,30,2010,Instructional Salaries - Tempo,UNRESTRICTED,$508.25
48,J.F. Drake State,300235,JULIE WILLIAMS,Jun,30,2010,Instructional Salaries - Tempo,UNRESTRICTED,$867.50
48,J.F. Drake State,90013263,ROBBIE LEE AKINS,Jun,30,2010,Support Personnel Salaries - S,UNRESTRICTED,"$2,136.00"
48,J.F. Drake State,90013264,LYSA AUGUSTIN,Jun,30,2010,Instructional Salaries - Tempo,UNRESTRICTED,$478.50
48,J.F. Drake State,90013265,CAROLYN AVRITTE,Jun,30,2010,Instructional Salaries - Tempo,UNRESTRICTED,$695.50
48,J.F. Drake State,90013266,NELSON E BARNES,Jun,30,2010,Instructional Salaries - Tempo,UNRESTRICTED,"$1,268.75"
48,J.F. Drake State,90013268,HAROLD E BATTS,Jun,30,2010,Other Professional Salaries -,UNRESTRICTED,"$8,649.00"
48,J.F. Drake State,90013270,ANGELA NICOLE BELL,Jun,30,2010,Instructional Salaries - Regul,UNRESTRICTED,"$4,870.67"
48,J.F. Drake State,90013272,JACQUELINE T BOOKER,Jun,30,2010,Support Personnel Salaries - S,NAT'L SCIENCE FOUNDATION,"$2,180.00"
48,J.F. Drake State,90013273,LINDA BURRUSS,Jun,30,2010,Instructional Salaries - Tempo,UNRESTRICTED,"$1,402.50"
48,J.F. Drake State,90013274,DONALD A BURTON JR,Jun,30,2010,Support Personnel Salaries - S,CAREER COACHES,"$2,484.00"
48,J.F. Drake State,90013275,KHALILAH BURTON,Jun,30,2010,Instructional Salaries - Regul,UNRESTRICTED,"$4,470.67"
48,J.F. Drake State,90013275,KHALILAH BURTON,Jun,30,2010,Instructional Salaries - Tempo,UNRESTRICTED,"$1,001.25"
48,J.F. Drake State,90013276,KEMBA CHAMBERS,Jun,30,2010,Other Professional Salaries -,UNRESTRICTED,"$7,360.42"
48,J.F. Drake State,90013277,JOSHUA CHAMPION,Jun,30,2010,Support Personnel Salaries - S,UNRESTRICTED,$290.00
48,J.F. Drake State,90013278,ADAM CLARK,Jun,30,2010,Instructional Salaries - Regul,UNRESTRICTED,"$4,433.00"
48,J.F. Drake State,90013278,ADAM CLARK,Jun,30,2010,Instructional Salaries - Tempo,UNRESTRICTED,$300.00
48,J.F. Drake State,90013279,APRIL CLEMENT,Jun,30,2010,Support Personnel Salaries - S,TECH PREP FUNDS,$769.96
48,J.F. Drake State,90013279,APRIL CLEMENT,Jun,30,2010,Support Personnel Salaries - S,NAT'L SCIENCE FOUNDATION,"$2,309.88"
48,J.F. Drake State,90013280,MATTIE D DAVIS,Jun,30,2010,Instructional Salaries - Regul,UNRESTRICTED,"$5,123.00"
48,J.F. Drake State,90013281,MARLO DRAKE,Jun,30,2010,Support Personnel Salaries - S,ARRA STIMULUS FUNDS,"$2,309.88"
48,J.F. Drake State,90013281,MARLO DRAKE,Jun,30,2010,Support Personnel Salaries - S,TITLE III,$769.96
48,J.F. Drake State,90013282,MARTHA W DUBEY,Jun,30,2010,Support Personnel Salaries - S,UNRESTRICTED,"$4,500.00"
48,J.F. Drake State,90013283,CHRISTIANA A OPARA EGBUJO,Jun,30,2010,Instructional Salaries - Tempo,UNRESTRICTED,$695.50
48,J.F. Drake State,90013284,GAIL E FISCH,Jun,30,2010,Instructional Salaries - Regul,UNRESTRICTED,"$3,416.00"
48,J.F. Drake State,90013285,EDWIN T FORBES,Jun,30,2010,Instructional Salaries - Regul,UNRESTRICTED,"$4,885.00"
48,J.F. Drake State,90013286,BONNIE GARRETT,Jun,30,2010,Instructional Salaries - Tempo,UNRESTRICTED,"$1,402.50"
48,J.F. Drake State,90013287,CHARLES GROSS,Jun,30,2010,Instructional Salaries - Tempo,UNRESTRICTED,$450.00
48,J.F. Drake State,90013288,MANELZA CRAWFORD HAMBRICK,Jun,30,2010,Support Personnel Salaries - S,UNRESTRICTED,"$2,411.00"
48,J.F. Drake State,90013289,AUNDREA D HANSON,Jun,30,2010,Instructional Salaries - Tempo,UNRESTRICTED,$867.50
48,J.F. Drake State,90013290,CAROLYN HENDERSON,Jun,30,2010,Instructional Salaries - Regul,UNRESTRICTED,"$4,885.00"
48,J.F. Drake State,90013290,CAROLYN HENDERSON,Jun,30,2010,Instructional Salaries - Tempo,UNRESTRICTED,$867.50
48,J.F. Drake State,90013291,DEXTER R HENRY,Jun,30,2010,Instructional Salaries - Regul,UNRESTRICTED,"$5,951.33"
48,J.F. Drake State,90013291,DEXTER R HENRY,Jun,30,2010,Instructional Salaries - Tempo,UNRESTRICTED,$733.75
48,J.F. Drake State,90013292,KARL W HENRY SR,Jun,30,2010,Instructional Salaries - Regul,UNRESTRICTED,"$6,627.33"
48,J.F. Drake State,90013293,DORIS HINTON,Jun,30,2010,Instructional Salaries - Regul,UNRESTRICTED,"$5,023.00"
48,J.F. Drake State,90013294,PATRICIA HUGHES,Jun,30,2010,Administrative Salaries- Sched,UNRESTRICTED,"$7,747.58"
48,J.F. Drake State,90013296,PAMELA MICHELLE HUMPHREY,Jun,30,2010,Instructional Salaries - Tempo,UNRESTRICTED,"$1,001.25"
48,J.F. Drake State,90013297,JAN J HYMAN,Jun,30,2010,Support Personnel Salaries - S,UNRESTRICTED,"$2,262.09"
48,J.F. Drake State,90013299,SARAH J JAMAR,Jun,30,2010,Instructional Salaries - Tempo,UNRESTRICTED,$867.50
48,J.F. Drake State,90013300,DETRIC R JAMES,Jun,30,2010,Support Personnel Salaries - S,ARRA STIMULUS FUNDS,$974.50
48,J.F. Drake State,90013300,DETRIC R JAMES,Jun,30,2010,Support Personnel Salaries - S,TITLE III,"$2,923.50"
48,J.F. Drake State,90013301,DONYALE D JONES,Jun,30,2010,Support Personnel Salaries - S,TITLE III,"$3,303.42"
48,J.F. Drake State,90013302,PETURA M JONES,Jun,30,2010,Instructional Salaries - Tempo,UNRESTRICTED,"$1,402.50"
48,J.F. Drake State,90013303,CHERYL P KEMP,Jun,30,2010,Instructional Salaries - Tempo,UNRESTRICTED,"$2,140.00"
48,J.F. Drake State,90013304,PRAVEENA KOMMIDI,Jun,30,2010,Instructional Salaries - Regul,UNRESTRICTED,"$5,624.00"
48,J.F. Drake State,90013305,NICHOLAS PAUL KSEPKA,Jun,30,2010,Hourly Wages,UNRESTRICTED,"$1,650.00"
48,J.F. Drake State,90013306,HONG THUYDUC LAM,Jun,30,2010,Instructional Salaries - Regul,UNRESTRICTED,"$5,261.33"
48,J.F. Drake State,90013307,KRISTEN K LECROIX,Jun,30,2010,Instructional Salaries - Tempo,UNRESTRICTED,$450.00
48,J.F. Drake State,90013308,MICHEAL V MAXTON,Jun,30,2010,Instructional Salaries - Tempo,UNRESTRICTED,$867.50
48,J.F. Drake State,90013309,MUKESHA MBUGUJE,Jun,30,2010,Instructional Salaries - Tempo,UNRESTRICTED,$802.50
48,J.F. Drake State,90013310,HELEN T MCALPINE,Jun,30,2010,Administrative Salaries- Sched,UNRESTRICTED,"$14,266.45"
48,J.F. Drake State,90013310,HELEN T MCALPINE,Jun,30,2010,President's Expense Allowance,UNRESTRICTED,$200.00
48,J.F. Drake State,90013310,HELEN T MCALPINE,Jun,30,2010,Housing Allowance,UNRESTRICTED,"$1,000.00"
48,J.F. Drake State,90013311,DEMETIUS L MCCARTY,Jun,30,2010,Support Personnel Salaries - S,UNRESTRICTED,"$2,076.00"
48,J.F. Drake State,90013313,JERRY L MCCAULLEY,Jun,30,2010,Instructional Salaries - Tempo,UNRESTRICTED,$450.00
48,J.F. Drake State,90013314,SCOTTY MCLAUGHLIN,Jun,30,2010,Instructional Salaries - Regul,UNRESTRICTED,"$6,535.00"
48,J.F. Drake State,90013314,SCOTTY MCLAUGHLIN,Jun,30,2010,Instructional Salaries - Tempo,UNRESTRICTED,$300.00
48,J.F. Drake State,90013315,DEBORAH A MILLING,Jun,30,2010,Instructional Salaries - Regul,UNRESTRICTED,"$6,135.00"
48,J.F. Drake State,90013316,SAMMY J MILTON,Jun,30,2010,Support Personnel Salaries - S,UNRESTRICTED,"$3,452.83"
48,J.F. Drake State,90013317,PREMA A MONTEIRO,Jun,30,2010,Instructional Salaries - Regul,UNRESTRICTED,"$3,249.00"
48,J.F. Drake State,90013318,DANA MOORE,Jun,30,2010,Other Professional Salaries -,TITLE III,"$8,649.00"
48,J.F. Drake State,90013319,MARY JO MORAN,Jun,30,2010,Instructional Salaries - Tempo,UNRESTRICTED,$147.13
48,J.F. Drake State,90013320,BRUCE D MORRISON,Jun,30,2010,Support Personnel Salaries - S,UNRESTRICTED,"$4,047.25"
48,J.F. Drake State,90013321,KATHRYN B NEAL,Jun,30,2010,Other Professional Salaries -,UNRESTRICTED,"$7,905.25"
48,J.F. Drake State,90013323,KAREN NEIR,Jun,30,2010,Instructional Salaries - Tempo,UNRESTRICTED,"$2,033.00"
48,J.F. Drake State,90013324,JENNIFER O'LINGER,Jun,30,2010,Support Personnel Salaries - S,UNRESTRICTED,"$3,154.25"
48,J.F. Drake State,90013325,DONALD ORR,Jun,30,2010,Support Personnel Salaries - S,UNRESTRICTED,"$3,601.25"
48,J.F. Drake State,90013326,JENNIFER E PATTERSON,Jun,30,2010,Instructional Salaries - Tempo,UNRESTRICTED,$867.50
48,J.F. Drake State,90013327,WILLIE C PATTON,Jun,30,2010,Instructional Salaries - Tempo,UNRESTRICTED,$733.75
48,J.F. Drake State,90013328,ALBERT B PETERSON II,Jun,30,2010,Instructional Salaries - Tempo,UNRESTRICTED,$312.00
48,J.F. Drake State,90013329,JAMES ANTHONY PLENTY,Jun,30,2010,Instructional Salaries - Tempo,UNRESTRICTED,$450.00
48,J.F. Drake State,90013330,GWENDOLYN D POPE,Jun,30,2010,Instructional Salaries - Regul,UNRESTRICTED,"$6,991.00"
48,J.F. Drake State,90013331,KARRIE PRATT,Jun,30,2010,Instructional Salaries - Tempo,UNRESTRICTED,$428.00
48,J.F. Drake State,90013332,FREDRICK O PRUITT,Jun,30,2010,Instructional Salaries - Regul,UNRESTRICTED,"$4,470.67"
48,J.F. Drake State,90013332,FREDRICK O PRUITT,Jun,30,2010,Instructional Salaries - Tempo,UNRESTRICTED,$150.00
48,J.F. Drake State,90013333,MICHAEL RADDEN,Jun,30,2010,Instructional Salaries - Tempo,UNRESTRICTED,$433.75
48,J.F. Drake State,90013334,LORAINE RAGIN,Jun,30,2010,Instructional Salaries - Tempo,UNRESTRICTED,"$3,542.00"
48,J.F. Drake State,90013335,WELDON RAGLAND,Jun,30,2010,Instructional Salaries - Tempo,UNRESTRICTED,"$1,268.75"
48,J.F. Drake State,90013336,ALICE G RAYMOND,Jun,30,2010,Instructional Salaries - Regul,UNRESTRICTED,"$7,523.33"
48,J.F. Drake State,90013337,JOYCE L RENTZ,Jun,30,2010,Instructional Salaries - Tempo,UNRESTRICTED,$867.50
48,J.F. Drake State,90013337,JOYCE L RENTZ,Jun,30,2010,Instructional Salaries - Regul,UNRESTRICTED,"$6,251.00"
48,J.F. Drake State,90013338,JOHN REUTTER III,Jun,30,2010,Instructional Salaries - Tempo,UNRESTRICTED,$867.50
48,J.F. Drake State,90013338,JOHN REUTTER III,Jun,30,2010,Other Professional Salaries -,NAT'L SCIENCE FOUNDATION,"$6,616.75"
48,J.F. Drake State,90013339,CHERILYN ROOKS,Jun,30,2010,Instructional Salaries - Tempo,UNRESTRICTED,$989.75
48,J.F. Drake State,90013340,CHRISTINA R SCISSUM,Jun,30,2010,Other Professional Salaries -,TITLE III,"$4,012.50"
48,J.F. Drake State,90013341,BARRY E SHELTON,Jun,30,2010,Instructional Salaries - Tempo,UNRESTRICTED,$588.50
48,J.F. Drake State,90013342,JACQUELINE M SHIVERS,Jun,30,2010,Instructional Salaries - Tempo,UNRESTRICTED,"$1,118.75"
48,J.F. Drake State,90013343,PATRICIA GORDON SIMS,Jun,30,2010,Administrative Salaries- Sched,UNRESTRICTED,"$9,245.09"
48,J.F. Drake State,90013344,RYAN E SMITH,Jun,30,2010,Other Professional Salaries -,UNRESTRICTED,"$4,000.00"
48,J.F. Drake State,90013345,DELORIS A SMOTHERS,Jun,30,2010,Instructional Salaries - Regul,UNRESTRICTED,"$6,227.33"
48,J.F. Drake State,90013346,JULIE P SPURGEON,Jun,30,2010,Support Personnel Salaries - S,ARRA STIMULUS FUNDS,"$1,889.83"
48,J.F. Drake State,90013347,VERLINDSEY B STEWART,Jun,30,2010,Instructional Salaries - Regul,UNRESTRICTED,"$6,135.00"
48,J.F. Drake State,90013348,MONICA SUDEALL-HAWKINS,Jun,30,2010,Other Professional Salaries -,UNRESTRICTED,"$4,993.33"
48,J.F. Drake State,90013349,SHANNON SUMMERS,Jun,30,2010,Instructional Salaries - Tempo,UNRESTRICTED,$550.00
48,J.F. Drake State,90013350,RICHARD M SWAIM,Jun,30,2010,Instructional Salaries - Tempo,UNRESTRICTED,$733.75
48,J.F. Drake State,90013351,DOCQUINN N TAYLOR,Jun,30,2010,Instructional Salaries - Tempo,UNRESTRICTED,$150.00
48,J.F. Drake State,90013352,JOY D TORNQUIST,Jun,30,2010,Instructional Salaries - Tempo,UNRESTRICTED,"$2,300.50"
48,J.F. Drake State,90013353,KRISTIN TREADWAY,Jun,30,2010,Support Personnel Salaries - S,ALLIED HEALTH,"$2,707.83"
48,J.F. Drake State,90013354,JOYLYN ERNA TROTMAN,Jun,30,2010,Other Professional Salaries -,UNRESTRICTED,"$4,465.83"
48,J.F. Drake State,90013355,ELIZABETH A TUGGLE,Jun,30,2010,Instructional Salaries - Tempo,UNRESTRICTED,"$1,170.00"
48,J.F. Drake State,90013356,GILBERT T TURLEY,Jun,30,2010,Instructional Salaries - Tempo,UNRESTRICTED,$450.00
48,J.F. Drake State,90013356,GILBERT T TURLEY,Jun,30,2010,Other Professional Salaries -,UNRESTRICTED,"$6,450.08"
48,J.F. Drake State,90013357,LETITIA E WALKER,Jun,30,2010,Support Personnel Salaries - S,UNRESTRICTED,"$3,229.42"
48,J.F. Drake State,90013358,KATINA L WALTON,Jun,30,2010,Instructional Salaries - Tempo,UNRESTRICTED,$661.50
48,J.F. Drake State,90013359,KRISHALON WILKERSON,Jun,30,2010,Instructional Salaries - Tempo,UNRESTRICTED,$450.00
48,J.F. Drake State,90013360,RICKY WILLINGHAM,Jun,30,2010,Other Professional Salaries -,TITLE III,"$5,416.67"
48,J.F. Drake State,90013361,INA M WILSON,Jun,30,2010,Other Professional Salaries -,TITLE III,"$4,166.67"
48,J.F. Drake State,90013362,GEORGE R WINN,Jun,30,2010,Instructional Salaries - Regul,UNRESTRICTED,"$5,123.00"
48,J.F. Drake State,90013362,GEORGE R WINN,Jun,30,2010,Instructional Salaries - Tempo,UNRESTRICTED,$450.00
48,J.F. Drake State,90013363,JOHNIKA WORD,Jun,30,2010,Support Personnel Salaries - S,UNRESTRICTED,"$2,019.00"
48,J.F. Drake State,90013364,ANDRAIN YELDELL,Jun,30,2010,Instructional Salaries - Tempo,UNRESTRICTED,$300.00
48,J.F. Drake State,300236,MELANIE K ALLEN,Jun,30,2010,Other Professional Salaries -,UNRESTRICTED,"$1,476.92"
48,J.F. Drake State,300237,KHALILAH BURTON,Jun,30,2010,Instructional Salaries - Regul,NAT'L SCIENCE FOUNDATION,$904.46
48,J.F. Drake State,300237,KHALILAH BURTON,Jun,30,2010,Instructional Salaries - Regul,ARRA STIMULUS FUNDS,"$2,713.38"
48,J.F. Drake State,300238,GAIL E FISCH,Jun,30,2010,Instructional Salaries - Regul,UNRESTRICTED,"$2,562.50"
48,J.F. Drake State,300239,EDWIN T FORBES,Jun,30,2010,Instructional Salaries - Regul,UNRESTRICTED,"$3,951.42"
48,J.F. Drake State,300240,LARDELL GOODLOE JR,Jun,30,2010,Instructional Salaries - Tempo,UNRESTRICTED,"$3,542.00"
48,J.F. Drake State,300241,STEPHANIE JONES BOUNDS,Jun,30,2010,Instructional Salaries - Regul,UNRESTRICTED,"$3,478.42"
48,J.F. Drake State,300242,JOYCE P LAMAR,Jun,30,2010,Hourly Wages,UNRESTRICTED,"$4,105.50"
48,J.F. Drake State,300243,DEBORAH A MILLING,Jun,30,2010,Instructional Salaries - Regul,UNRESTRICTED,"$4,962.33"
48,J.F. Drake State,300244,GWENDOLYN D POPE,Jun,30,2010,Instructional Salaries - Regul,UNRESTRICTED,"$5,651.75"
48,J.F. Drake State,300245,MICHAEL RADDEN,Jun,30,2010,Instructional Salaries - Tempo,UNRESTRICTED,$433.75
48,J.F. Drake State,300246,PATRICIA RAMEY,Jun,30,2010,Instructional Salaries - Tempo,UNRESTRICTED,$662.06
48,J.F. Drake State,300247,MARTHA J ROBERTS,Jun,30,2010,Support Personnel Salaries - S,UNRESTRICTED,"$3,613.45"
48,J.F. Drake State,300248,LESLEY SHOTTS,Jun,30,2010,Instructional Salaries - Regul,UNRESTRICTED,"$4,190.50"
48,J.F. Drake State,300257,DEAVIANCE FOWLKS BLEVINS,Jun,30,2010,Other Contractual Services,TITLE III,"$1,000.00"
48,J.F. Drake State,300258,ROGER CHEN,Jun,30,2010,Other Contractual Services,NAT'L SCIENCE FOUNDATION,"$1,900.00"
48,J.F. Drake State,300259,ALIREZA HASSANZADEH,Jun,30,2010,Other Contractual Services,NAT'L SCIENCE FOUNDATION,$560.00
48,J.F. Drake State,300260,LARAKESHA C HENLEY,Jun,30,2010,Other Contractual Services,TITLE III,$653.13
48,J.F. Drake State,300261,NEOKA JANE IVEY,Jun,30,2010,Other Contractual Services,TITLE III,$906.25
48,J.F. Drake State,300262,SARAH J JAMAR,Jun,30,2010,Other Contractual Services,NAT'L SCIENCE FOUNDATION,"$1,340.00"
48,J.F. Drake State,300263,QUASONYA D JOHNSON,Jun,30,2010,Other Contractual Services,TITLE III,$750.00
48,J.F. Drake State,300264,PATRICK T MCDONALD,Jun,30,2010,Other Contractual Services,TITLE III,$412.50
48,J.F. Drake State,300265,CLINT ALEXANDER MCINTIRE,Jun,30,2010,Other Contractual Services,TITLE III,$712.50
48,J.F. Drake State,300266,RICHARD H NEWTON,Jun,30,2010,Other Contractual Services,TITLE III,$862.50
48,J.F. Drake State,300267,JENNIFER E PATTERSON,Jun,30,2010,Other Contractual Services,TITLE III,$280.00
48,J.F. Drake State,300268,RICKY M SHOCKLEY,Jun,30,2010,Other Contractual Services,TITLE III,$525.00
48,J.F. Drake State,300270,RUSSELL B THOMAS,Jun,30,2010,Other Contractual Services,TITLE III,$300.00
48,J.F. Drake State,300271,DWAYNIA WILKERSON,Jun,30,2010,Other Contractual Services,TITLE III,$270.00
48,J.F. Drake State,300287,CANDICE HOWELL,Jun,30,2010,Instructional Salaries - Tempo,UNRESTRICTED,$450.00
48,J.F. Drake State,200823,BERNEY OFFICE SOLUTIONS,Jun,28,2010,Materials and Supplies,TITLE III,$7.78
48,J.F. Drake State,200824,KEMBA CHAMBERS,Jun,28,2010,In-State Travel,TITLE III,$150.00
48,J.F. Drake State,200825,GARBER CONSTRUCTION,Jun,28,2010,Alterations,TITLE III CARRYOVER,"$28,735.00"
48,J.F. Drake State,200826,LIBRARICA LLC,Jun,28,2010,Subscriptions,TITLE III,$495.00
48,J.F. Drake State,200827,MIDWEST LIBRARY SERVICE,Jun,28,2010,Materials and Supplies,TITLE III,"$4,928.89"
48,J.F. Drake State,200828,"OFFICE DEPOT, INC.",Jun,28,2010,Materials and Supplies,TITLE III,"$1,143.84"
48,J.F. Drake State,200828,"OFFICE DEPOT, INC.",Jun,28,2010,Materials and Supplies,NSF CARRYOVER,$283.45
48,J.F. Drake State,200829,SEXTON WELDING SUPPLY,Jun,28,2010,Materials and Supplies,CARL PERKINS FUNDS,$380.25
48,J.F. Drake State,200830,"SIMS, PATRICIA G.",Jun,28,2010,In-State Travel,TITLE III,$225.00
48,J.F. Drake State,200831,THE BATH & KITCHEN SHOP,Jun,28,2010,Materials and Supplies,TITLE III CARRYOVER,"$2,338.00"
48,J.F. Drake State,200832,GIL TURLEY,Jun,28,2010,In-State Travel,TITLE III,$678.67
48,J.F. Drake State,200833,TUSCALOOSA LIBRARY BINDER,Jun,28,2010,Books,TITLE III,"$1,885.30"
48,J.F. Drake State,200834,RICKY WILLINGHAM,Jun,28,2010,In-State Travel,TITLE III,$419.00
48,J.F. Drake State,200810,ALACRAO,Jun,21,2010,In-State Travel,TITLE III,$195.00
48,J.F. Drake State,200811,"BATTLE, BEN (JR)",Jun,21,2010,In-State Travel,TITLE III,$247.50
48,J.F. Drake State,200812,NICOLE BELL,Jun,21,2010,In-State Travel,TITLE III,$426.17
48,J.F. Drake State,200813,ENTERPRISE RENT-A-CAR,Jun,21,2010,Out-of-State Travel,TITLE III,$863.90
48,J.F. Drake State,200814,KEITO CHARTER BUS SERV,Jun,21,2010,Materials and Supplies,NAT'L SCIENCE FOUNDATION,"$2,350.00"
48,J.F. Drake State,200815,WOW! BUSINESS,Jun,21,2010,Materials and Supplies,TITLE III,"$1,455.67"
48,J.F. Drake State,200816,MIKE'S MERCHANDISE,Jun,21,2010,Books,TITLE III,$600.00
48,J.F. Drake State,200817,PREMIER EXHIBITION,Jun,21,2010,Materials and Supplies,NAT'L SCIENCE FOUNDATION,"$1,850.00"
48,J.F. Drake State,200818,DR. JOHN REUTTER,Jun,21,2010,Out-of-State Travel,NAT'L SCIENCE FOUNDATION,"$2,900.00"
48,J.F. Drake State,200819,DR. JOHN REUTTER,Jun,21,2010,Out-of-State Travel,NAT'L SCIENCE FOUNDATION,$696.00
48,J.F. Drake State,200820,STEPHANIE JONES BOUNDS,Jun,21,2010,In-State Travel,TITLE III,$225.00
48,J.F. Drake State,200821,TELLUS SCIENCE MUSEUM,Jun,21,2010,Materials and Supplies,NAT'L SCIENCE FOUNDATION,$800.00
48,J.F. Drake State,200822,UNIVERSITY OF ALABAMA,Jun,21,2010,In-State Travel,TITLE III,"$2,700.00"
48,J.F. Drake State,100426,ACT,Jun,17,2010,Materials and Supplies,UNRESTRICTED,"$3,230.00"
48,J.F. Drake State,100427,ALBERT'S FLOWERS,Jun,17,2010,Institutional Use,UNRESTRICTED,$506.50
48,J.F. Drake State,100428,BARNES & NOBLE BOOKSTORES,Jun,17,2010,Purchases for Resale,UNRESTRICTED,"$1,940.40"
48,J.F. Drake State,100429,"BATTLE, BEN (JR)",Jun,17,2010,Purchases for Resale,UNRESTRICTED,$125.79
48,J.F. Drake State,100430,C & C BUILDING SERVICES,Jun,17,2010,Maintenance and Repairs,PLANT FUNDS,"$15,464.55"
48,J.F. Drake State,100430,C & C BUILDING SERVICES,Jun,17,2010,Other Contractual Services,UNRESTRICTED,$443.70
48,J.F. Drake State,100431,CENGAGE LEARNING,Jun,17,2010,Purchases for Resale,UNRESTRICTED,$311.56
48,J.F. Drake State,100432,CENGAGE LEARNING,Jun,17,2010,Purchases for Resale,UNRESTRICTED,"$1,312.34"
48,J.F. Drake State,100433,CERTIFICATION PARTNERS,Jun,17,2010,Purchases for Resale,UNRESTRICTED,"$1,281.30"
48,J.F. Drake State,100434,"CERTIPORT, INC",Jun,17,2010,Materials and Supplies,UNRESTRICTED,$753.60
48,J.F. Drake State,100435,DISPLAY SALES,Jun,17,2010,Institutional Use,UNRESTRICTED,"$2,083.00"
48,J.F. Drake State,100436,"DYNAMIC SECURITY, INC.",Jun,17,2010,Other Contractual Services,UNRESTRICTED,"$6,011.46"
48,J.F. Drake State,100437,GRAYBAR,Jun,17,2010,Materials and Supplies,WELDING GRANT,"$5,253.29"
48,J.F. Drake State,100438,HILLS LAWN MOWER SALES AN,Jun,17,2010,Furniture and Equipment,UNRESTRICTED,"$2,878.88"
48,J.F. Drake State,100438,HILLS LAWN MOWER SALES AN,Jun,17,2010,Materials and Supplies,UNRESTRICTED,"$2,595.67"
48,J.F. Drake State,100439,HOUGHTON MIFFLIN COMPANY,Jun,17,2010,Materials and Supplies,ADULT ED,$232.95
48,J.F. Drake State,100440,GLIDDEN PROFESSIONAL PAI,Jun,17,2010,Maintenance and Repairs,PLANT FUNDS,$152.19
48,J.F. Drake State,100441,THE LAMAR COMPANIES,Jun,17,2010,Advertising and Promotions,UNRESTRICTED,"$1,500.00"
48,J.F. Drake State,100442,LOWE'S,Jun,17,2010,Materials and Supplies,UNRESTRICTED,$744.77
48,J.F. Drake State,100443,LOWE'S,Jun,17,2010,Maintenance and Repairs,PLANT FUNDS,$164.73
48,J.F. Drake State,100444,NIGHTINGALE UNIFORM COMPA,Jun,17,2010,Purchases for Resale,UNRESTRICTED,$414.95
48,J.F. Drake State,100445,PEARSON,Jun,17,2010,Purchases for Resale,UNRESTRICTED,"$2,799.96"
48,J.F. Drake State,100446,PEARSON,Jun,17,2010,Purchases for Resale,UNRESTRICTED,"$2,031.06"
48,J.F. Drake State,100447,POCKET NURSE,Jun,17,2010,Purchases for Resale,UNRESTRICTED,$687.89
48,J.F. Drake State,100448,PRO-AIR SERVICES,Jun,17,2010,Maintenance and Repairs,PLANT FUNDS,"$3,849.00"
48,J.F. Drake State,100449,PRO-AIR SERVICES,Jun,17,2010,Materials and Supplies,PLANT FUNDS,"$14,675.00"
48,J.F. Drake State,100450,SEXTON WELDING SUPPLY,Jun,17,2010,Materials and Supplies,WELDING GRANT,"$14,750.96"
48,J.F. Drake State,100451,"SMITH, RYAN",Jun,17,2010,Employee Taxable Per Diem,ADULT ED,$11.25
48,J.F. Drake State,100452,SOUTHERNLINC WIRELESS,Jun,17,2010,Communications,UNRESTRICTED,$15.90
48,J.F. Drake State,100453,"THOMAS ELECTRIC, INC",Jun,17,2010,Maintenance and Repairs,PLANT FUNDS,"$2,955.00"
48,J.F. Drake State,100454,UPS,Jun,17,2010,Freight,UNRESTRICTED,$139.74
48,J.F. Drake State,300214,AVA D FARR,Jun,16,2010,Instructional Salaries - Tempo,UNRESTRICTED,$160.50
48,J.F. Drake State,200321,CAROLINA BIOLOGICAL,Jun,15,2010,Materials and Supplies,NAT'L SCIENCE FOUNDATION,"$2,221.55"
48,J.F. Drake State,200322,CAROLINA BIOLOGICAL,Jun,15,2010,Materials and Supplies,TITLE III,$119.90
48,J.F. Drake State,200323,CAROLINA BIOLOGICAL,Jun,15,2010,Materials and Supplies,TITLE III,$71.00
48,J.F. Drake State,200324,CAROLINA BIOLOGICAL,Jun,15,2010,Materials and Supplies,TITLE III,$169.51
48,J.F. Drake State,200325,CDW-G,Jun,15,2010,Materials and Supplies,TITLE III CARRYOVER,"$3,390.10"
48,J.F. Drake State,200326,DECATUR CONTAINER SALES,Jun,15,2010,Materials and Supplies,TITLE III,"$2,845.00"
48,J.F. Drake State,200327,ENTERPRISE RENT-A-CAR,Jun,15,2010,Out-of-State Travel,TITLE III,$721.00
48,J.F. Drake State,200328,FERGUSON,Jun,15,2010,Materials and Supplies,TITLE III,$483.75
48,J.F. Drake State,200329,"GREAT WESTERN, LLC",Jun,15,2010,Materials and Supplies,TITLE III,$779.00
48,J.F. Drake State,200330,DR. MOHAMMED R. KARIM,Jun,15,2010,Other Contractual Services,NAT'L SCIENCE FOUNDATION,"$4,875.00"
48,J.F. Drake State,200331,GENUINE PARTS COMPANY-,Jun,15,2010,Materials and Supplies,TITLE III,$36.56
48,J.F. Drake State,200283,ACCSPRA,Jun,11,2010,In-State Travel,TITLE III,$200.00
48,J.F. Drake State,200284,ALABAMA CARD SYSTEMS,Jun,11,2010,Materials and Supplies,TITLE III,"$1,133.00"
48,J.F. Drake State,200285,ANDERSON'S EVENTS,Jun,11,2010,Materials and Supplies,TITLE III,$486.68
48,J.F. Drake State,200286,CAROLINA BIOLOGICAL,Jun,11,2010,Materials and Supplies,NAT'L SCIENCE FOUNDATION,"$5,911.40"
48,J.F. Drake State,200287,CDW-G,Jun,11,2010,Materials and Supplies,TITLE III,$73.53
48,J.F. Drake State,200288,CLAITOR'S LAW BOOKS & PUB,Jun,11,2010,Books,TITLE III,$46.95
48,J.F. Drake State,200289,ACCSPA,Jun,11,2010,In-State Travel,TITLE III,$300.00
48,J.F. Drake State,200290,"HENRY, DEXTER",Jun,11,2010,In-State Travel,TITLE III,$90.39
48,J.F. Drake State,200291,INSIGHT MEDIA,Jun,11,2010,Materials and Supplies,ALLIED HEALTH,"$7,580.06"
48,J.F. Drake State,200292,LRP PUBLICATIONS,Jun,11,2010,Materials and Supplies,TITLE III,$171.40
48,J.F. Drake State,200293,GENUINE PARTS COMPANY-,Jun,11,2010,Materials and Supplies,TITLE III,$621.85
48,J.F. Drake State,200294,"OFFICE DEPOT, INC.",Jun,11,2010,Materials and Supplies,NAT'L SCIENCE FOUNDATION,$123.99
48,J.F. Drake State,200294,"OFFICE DEPOT, INC.",Jun,11,2010,Materials and Supplies,TITLE III CARRYOVER,"$1,773.09"
48,J.F. Drake State,200294,"OFFICE DEPOT, INC.",Jun,11,2010,Materials and Supplies,CAREER COACHES,$110.98
48,J.F. Drake State,200294,"OFFICE DEPOT, INC.",Jun,11,2010,Materials and Supplies,TITLE III,$310.63
48,J.F. Drake State,200295,PASCO,Jun,11,2010,Materials and Supplies,NAT'L SCIENCE FOUNDATION,"$1,038.00"
48,J.F. Drake State,200296,SCIENCE KIT BOREAL LAB,Jun,11,2010,Materials and Supplies,TITLE III CARRYOVER,$36.29
48,J.F. Drake State,200297,SEIGLE DISPLAYS,Jun,11,2010,Materials and Supplies,TITLE III,$216.64
48,J.F. Drake State,200298,WOODBURN PRESS,Jun,11,2010,Materials and Supplies,NAT'L SCIENCE FOUNDATION,$382.25
48,J.F. Drake State,100381,NAKESHA BURKS,Jun,10,2010,Other Contractual Services,UNRESTRICTED,$147.00
48,J.F. Drake State,100382,CHRIS CALHOUN,Jun,10,2010,Other Contractual Services,UNRESTRICTED,"$2,000.00"
48,J.F. Drake State,100383,CHRIS CALHOUN,Jun,10,2010,Other Contractual Services,UNRESTRICTED,"$2,000.00"
48,J.F. Drake State,100384,NAKESHA BURKS,Jun,10,2010,Other Contractual Services,UNRESTRICTED,$147.00
48,J.F. Drake State,200281,ACCSISA,Jun,10,2010,Memberships,TITLE III,$200.00
48,J.F. Drake State,200282,ACCSPA,Jun,10,2010,In-State Travel,TITLE III,$300.00
48,J.F. Drake State,100385,NAKESHA BURKS,Jun,10,2010,Other Contractual Services,UNRESTRICTED,"$1,602.30"
48,J.F. Drake State,100380,DEPT OF POSTSECONDARY,Jun,8,2010,Legal Services,UNRESTRICTED,"$11,405.00"
48,J.F. Drake State,100375,CHEVRON CARD SERVICES,Jun,7,2010,Gasoline and Oil - Motor Vehic,UNRESTRICTED,"$1,030.31"
48,J.F. Drake State,100376,"DYNAMIC SECURITY, INC.",Jun,7,2010,Other Contractual Services,UNRESTRICTED,"$11,004.63"
48,J.F. Drake State,100377,RANDALL A SCHRIMSHER,Jun,7,2010,Rent - Facilities,UNRESTRICTED,"$6,250.00"
48,J.F. Drake State,100378,VERIZON WIRELESS,Jun,7,2010,Communications,UNRESTRICTED,$806.29
48,J.F. Drake State,100379,WASTE MANAGEMENT OF NORTH,Jun,7,2010,Other Contractual Services,UNRESTRICTED,$403.39
48,J.F. Drake State,100388,A METRO SECURITY/TELECOM,Jun,7,2010,Other Contractual Services,UNRESTRICTED,$240.00
48,J.F. Drake State,100389,ALAPCAE,Jun,7,2010,In-State Travel,ADULT ED,$825.00
48,J.F. Drake State,100390,AMERICAN TECH. PUBLISHERS,Jun,7,2010,Purchases for Resale,UNRESTRICTED,"$1,081.11"
48,J.F. Drake State,100391,AT&T LONG DISTANCE SERV.,Jun,7,2010,Communications,UNRESTRICTED,$140.30
48,J.F. Drake State,100392,BARNES & NOBLE,Jun,7,2010,In-State Travel,UNRESTRICTED,$479.80
48,J.F. Drake State,100393,BROOKS LOCK & KEY,Jun,7,2010,Materials and Supplies,UNRESTRICTED,$86.50
48,J.F. Drake State,100394,"BURMAX, INC.",Jun,7,2010,Purchases for Resale,UNRESTRICTED,"$1,049.00"
48,J.F. Drake State,100395,C & C BUILDING SERVICES,Jun,7,2010,Maintenance and Repairs,PLANT FUNDS,"$12,144.00"
48,J.F. Drake State,100396,CDW-G,Jun,7,2010,Institutional Use,UNRESTRICTED,"$1,806.99"
48,J.F. Drake State,100397,CENGAGE LEARNING,Jun,7,2010,Purchases for Resale,UNRESTRICTED,"$55,238.38"
48,J.F. Drake State,100398,COLONIAL GRAPHICS GROUP,Jun,7,2010,Materials and Supplies,UNRESTRICTED,$27.00
48,J.F. Drake State,100398,COLONIAL GRAPHICS GROUP,Jun,7,2010,Institutional Use,UNRESTRICTED,"$1,289.00"
48,J.F. Drake State,100399,CONSTANT CONTACT,Jun,7,2010,Advertising and Promotions,UNRESTRICTED,$135.00
48,J.F. Drake State,100400,COUNCIL ON OCCUP. EDUC.,Jun,7,2010,Memberships,UNRESTRICTED,"$3,680.00"
48,J.F. Drake State,100401,"DYNAMIC SECURITY, INC.",Jun,7,2010,Other Contractual Services,UNRESTRICTED,"$5,476.38"
48,J.F. Drake State,100403,GAIL FISCH,Jun,7,2010,Out-of-State Travel,ADULT ED,$226.05
48,J.F. Drake State,100404,GOODHEART-WILCOX COMPANY,Jun,7,2010,Purchases for Resale,UNRESTRICTED,$7.40
48,J.F. Drake State,100405,IN10SITY INTERACTIVE,Jun,7,2010,Other Contractual Services,UNRESTRICTED,"$1,575.00"
48,J.F. Drake State,100406,IT'S COMPANY,Jun,7,2010,Purchases for Resale,UNRESTRICTED,"$1,295.90"
48,J.F. Drake State,100407,J. A. MAJORS COMPANY,Jun,7,2010,Purchases for Resale,UNRESTRICTED,"$6,810.24"
48,J.F. Drake State,100408,THE LAMAR COMPANIES,Jun,7,2010,Advertising and Promotions,UNRESTRICTED,"$1,500.00"
48,J.F. Drake State,100409,"LANIER,FORD,SHAVER &",Jun,7,2010,Legal Services,UNRESTRICTED,$247.00
48,J.F. Drake State,100411,MAYHALL WRECKER SERVICE,Jun,7,2010,Maintenance and Repairs,UNRESTRICTED,$75.00
48,J.F. Drake State,100412,"MCALPINE, HELEN",Jun,7,2010,Employee Taxable Per Diem,UNRESTRICTED,$11.25
48,J.F. Drake State,100413,MID CITY SUPPLY CO,Jun,7,2010,Materials and Supplies,UNRESTRICTED,"$2,897.05"
48,J.F. Drake State,100414,MSC INDUSTRIAL SUPPLY,Jun,7,2010,Purchases for Resale,UNRESTRICTED,$796.46
48,J.F. Drake State,100414,MSC INDUSTRIAL SUPPLY,Jun,7,2010,Materials and Supplies,UNRESTRICTED,"$3,156.15"
48,J.F. Drake State,100415,OAK HALL CAP & GOWN CO,Jun,7,2010,Institutional Use,UNRESTRICTED,"$1,252.07"
48,J.F. Drake State,100416,PEARSON,Jun,7,2010,Purchases for Resale,UNRESTRICTED,"$4,794.85"
48,J.F. Drake State,100417,PRO-AIR SERVICES,Jun,7,2010,Maintenance and Repairs,PLANT FUNDS,"$3,775.00"
48,J.F. Drake State,100418,"QUALITY COUNTS, INC",Jun,7,2010,Purchases for Resale,AUXILIARY,$33.00
48,J.F. Drake State,100419,RANDALL A SCHRIMSHER,Jun,7,2010,Rent - Facilities,,"$6,250.00"
48,J.F. Drake State,100420,SIRIUS SATELLITE RADIO,Jun,7,2010,Materials and Supplies,UNRESTRICTED,$404.39
48,J.F. Drake State,100421,"SMITH, RYAN",Jun,7,2010,Out-of-State Travel,ADULT ED,$41.02
48,J.F. Drake State,100422,STUART B. CONSULTANTS INC,Jun,7,2010,Other Contractual Services,UNRESTRICTED,"$6,669.00"
48,J.F. Drake State,100423,SUCCESS MARKETING,Jun,7,2010,Advertising and Promotions,UNRESTRICTED,"$8,617.00"
48,J.F. Drake State,100424,"JOHN WILEY & SONS, INC.",Jun,7,2010,Purchases for Resale,UNRESTRICTED,"$2,397.59"
48,J.F. Drake State,200271,AMERICAN EXPRESS,Jun,3,2010,Out-of-State Travel,TITLE III,$197.40
48,J.F. Drake State,200272,CDW-G,Jun,3,2010,Materials and Supplies,TITLE III CARRYOVER,$402.51
48,J.F. Drake State,200273,KEMBA CHAMBERS,Jun,3,2010,Out-of-State Travel,TITLE III,$33.47
48,J.F. Drake State,200274,"DAVIS, CHRISTINE",Jun,3,2010,Out-of-State Travel,TITLE III,$410.56
48,J.F. Drake State,200275,"HUGHES, PATRICIA",Jun,3,2010,Out-of-State Travel,TITLE III,"$1,136.21"
48,J.F. Drake State,200276,PREMA A MONTEIRO,Jun,3,2010,In-State Travel,TITLE III,$225.00
48,J.F. Drake State,200277,PBL/FBLA HOUSING BUREAU,Jun,3,2010,Out-of-State Travel,CARL PERKINS FUNDS,"$2,619.90"
48,J.F. Drake State,200277,PBL/FBLA HOUSING BUREAU,Jun,3,2010,Out-of-State Travel,TITLE III,"$1,746.60"
48,J.F. Drake State,200278,PRAVEENA KOMMIDI,Jun,3,2010,In-State Travel,TITLE III,$564.00
48,J.F. Drake State,200279,"SIMS, PATRICIA G.",Jun,3,2010,Out-of-State Travel,TITLE III,$42.89
48,J.F. Drake State,200280,GIL TURLEY,Jun,3,2010,In-State Travel,TITLE III,$43.23
48,J.F. Drake State,200270,DAVIS SHERRI,Jun,1,2010,Institutional Use,TITLE III,"$4,600.00"
48,J.F. Drake State,300167,WILLIAM WAYNE DUNLAP,May,31,2010,Instructional Salaries - Tempo,UNRESTRICTED,$675.00
48,J.F. Drake State,300168,AVA D FARR,May,31,2010,Instructional Salaries - Tempo,UNRESTRICTED,$321.00
48,J.F. Drake State,300169,KELLY LA GONZALEZ,May,31,2010,Instructional Salaries - Tempo,UNRESTRICTED,$562.50
48,J.F. Drake State,300170,ROBERT N GRISSIM,May,31,2010,Instructional Salaries - Tempo,UNRESTRICTED,"$1,076.25"
48,J.F. Drake State,300171,HENRY C HAWKINS,May,31,2010,Instructional Salaries - Tempo,UNRESTRICTED,"$1,267.50"
48,J.F. Drake State,300171,HENRY C HAWKINS,May,31,2010,Support Personnel Salaries - S,UNRESTRICTED,$401.25
48,J.F. Drake State,300172,LARAKESHA C HENLEY,May,31,2010,Other Contractual Services,TITLE III,$734.38
48,J.F. Drake State,300173,JOHN DAVID HILLENBERG,May,31,2010,Other Contractual Services,TITLE III,$706.25
48,J.F. Drake State,300174,TOBY R HOLLOWAY,May,31,2010,Instructional Salaries - Tempo,UNRESTRICTED,"$1,276.86"
48,J.F. Drake State,300175,CANDICE HOWELL,May,31,2010,Instructional Salaries - Tempo,UNRESTRICTED,$200.61
48,J.F. Drake State,300176,NEOKA JANE IVEY,May,31,2010,Other Contractual Services,TITLE III,$975.00
48,J.F. Drake State,300177,STEPHANIE JONES BOUNDS,May,31,2010,Instructional Salaries - Regul,UNRESTRICTED,"$3,478.42"
48,J.F. Drake State,300178,JAIRUS JOVUN MORROW,May,31,2010,Other Contractual Services,TITLE III,$359.38
48,J.F. Drake State,300179,RICHARD H NEWTON,May,31,2010,Other Contractual Services,TITLE III,$712.50
48,J.F. Drake State,300180,DOROTHY J NOBLE,May,31,2010,Instructional Salaries - Tempo,UNRESTRICTED,$775.32
48,J.F. Drake State,300181,LYNEVE JOY POMPEY,May,31,2010,Other Contractual Services,TITLE III,$812.50
48,J.F. Drake State,300182,DYANTHA E TOLBERT,May,31,2010,Support Personnel Salaries - S,UNRESTRICTED,"$1,787.60"
48,J.F. Drake State,300183,MELINDA WEST,May,31,2010,Instructional Salaries - Tempo,UNRESTRICTED,$401.25
48,J.F. Drake State,300184,LYNNELL MARIE WOODS,May,31,2010,Other Contractual Services,TITLE III,$700.00
48,J.F. Drake State,90013025,ROBBIE LEE AKINS,May,31,2010,Support Personnel Salaries - S,UNRESTRICTED,"$1,920.00"
48,J.F. Drake State,90013026,LYSA AUGUSTIN,May,31,2010,Instructional Salaries - Tempo,UNRESTRICTED,$627.00
48,J.F. Drake State,90013027,CAROLYN AVRITTE,May,31,2010,Instructional Salaries - Tempo,UNRESTRICTED,$882.75
48,J.F. Drake State,90013028,NELSON E BARNES,May,31,2010,Instructional Salaries - Tempo,UNRESTRICTED,$975.93
48,J.F. Drake State,90013029,JADA M BARRETT,May,31,2010,Instructional Salaries - Tempo,UNRESTRICTED,$975.93
48,J.F. Drake State,90013030,BEN BATTLE,May,31,2010,Instructional Salaries - Regul,UNRESTRICTED,"$5,306.36"
48,J.F. Drake State,90013032,HAROLD E BATTS,May,31,2010,Other Professional Salaries -,UNRESTRICTED,"$8,649.00"
48,J.F. Drake State,90013034,ANGELA NICOLE BELL,May,31,2010,Instructional Salaries - Regul,UNRESTRICTED,"$5,223.76"
48,J.F. Drake State,90013036,JACQUELINE T BOOKER,May,31,2010,Support Personnel Salaries - S,NAT'L SCIENCE FOUNDATION,"$2,180.00"
48,J.F. Drake State,90013037,LINDA BURRUSS,May,31,2010,Instructional Salaries - Tempo,UNRESTRICTED,$562.50
48,J.F. Drake State,90013038,DONALD A BURTON JR,May,31,2010,Support Personnel Salaries - S,CAREER COACHES,"$2,484.00"
48,J.F. Drake State,90013039,KHALILAH BURTON,May,31,2010,Instructional Salaries - Tempo,UNRESTRICTED,$675.00
48,J.F. Drake State,90013039,KHALILAH BURTON,May,31,2010,Instructional Salaries - Regul,NAT'L SCIENCE FOUNDATION,$904.46
48,J.F. Drake State,90013039,KHALILAH BURTON,May,31,2010,Instructional Salaries - Regul,ARRA STIMULUS FUNDS,"$2,713.38"
48,J.F. Drake State,90013040,TROY M CAMPBELL,May,31,2010,Instructional Salaries - Tempo,UNRESTRICTED,$775.32
48,J.F. Drake State,90013041,KEMBA CHAMBERS,May,31,2010,Other Professional Salaries -,UNRESTRICTED,"$7,360.42"
48,J.F. Drake State,90013042,JOSHUA CHAMPION,May,31,2010,Support Personnel Salaries - S,UNRESTRICTED,$820.00
48,J.F. Drake State,90013043,ROGER CHEN,May,31,2010,Instructional Salaries - Tempo,UNRESTRICTED,$300.93
48,J.F. Drake State,90013043,ROGER CHEN,May,31,2010,Other Contractual Services,NAT'L SCIENCE FOUNDATION,"$1,340.00"
48,J.F. Drake State,90013044,ADAM CLARK,May,31,2010,Instructional Salaries - Regul,UNRESTRICTED,"$4,786.12"
48,J.F. Drake State,90013044,ADAM CLARK,May,31,2010,Instructional Salaries - Tempo,UNRESTRICTED,$975.93
48,J.F. Drake State,90013045,APRIL CLEMENT,May,31,2010,Support Personnel Salaries - S,TECH PREP FUNDS,$769.96
48,J.F. Drake State,90013045,APRIL CLEMENT,May,31,2010,Support Personnel Salaries - S,NAT'L SCIENCE FOUNDATION,"$2,309.88"
48,J.F. Drake State,90013046,CHRISTINE H DAVIS,May,31,2010,Instructional Salaries - Regul,UNRESTRICTED,"$5,306.36"
48,J.F. Drake State,90013047,MATTIE D DAVIS,May,31,2010,Instructional Salaries - Regul,UNRESTRICTED,"$5,527.36"
48,J.F. Drake State,90013048,MARLO DRAKE,May,31,2010,Support Personnel Salaries - S,ARRA STIMULUS FUNDS,"$2,309.88"
48,J.F. Drake State,90013048,MARLO DRAKE,May,31,2010,Support Personnel Salaries - S,TITLE III,$769.96
48,J.F. Drake State,90013049,MARTHA W DUBEY,May,31,2010,Support Personnel Salaries - S,UNRESTRICTED,"$4,500.00"
48,J.F. Drake State,90013050,CHRISTIANA A OPARA EGBUJO,May,31,2010,Instructional Salaries - Tempo,UNRESTRICTED,$802.50
48,J.F. Drake State,90013051,GAIL E FISCH,May,31,2010,Instructional Salaries - Regul,UNRESTRICTED,"$2,562.50"
48,J.F. Drake State,90013052,MARY D FISHER,May,31,2010,Instructional Salaries - Tempo,UNRESTRICTED,$975.93
48,J.F. Drake State,90013053,EDWIN T FORBES,May,31,2010,Instructional Salaries - Regul,UNRESTRICTED,"$3,951.42"
48,J.F. Drake State,90013053,EDWIN T FORBES,May,31,2010,Instructional Salaries - Tempo,UNRESTRICTED,$337.50
48,J.F. Drake State,90013054,MATTIE B FREEMAN,May,31,2010,Instructional Salaries - Tempo,UNRESTRICTED,"$1,926.00"
48,J.F. Drake State,90013055,BONNIE GARRETT,May,31,2010,Instructional Salaries - Tempo,UNRESTRICTED,"$1,076.25"
48,J.F. Drake State,90013056,LARDELL GOODLOE JR,May,31,2010,Instructional Salaries - Tempo,UNRESTRICTED,"$1,802.82"
48,J.F. Drake State,90013056,LARDELL GOODLOE JR,May,31,2010,Support Personnel Salaries - S,UNRESTRICTED,$401.25
48,J.F. Drake State,90013057,CHARLES GROSS,May,31,2010,Instructional Salaries - Tempo,UNRESTRICTED,$675.00
48,J.F. Drake State,90013058,MANELZA CRAWFORD HAMBRICK,May,31,2010,Support Personnel Salaries - S,UNRESTRICTED,"$2,411.00"
48,J.F. Drake State,90013059,AUNDREA D HANSON,May,31,2010,Instructional Salaries - Tempo,UNRESTRICTED,$337.50
48,J.F. Drake State,90013060,ISAIAH HARRIS,May,31,2010,Other Contractual Services,TITLE III,$725.00
48,J.F. Drake State,90013061,ALIREZA HASSANZADEH,May,31,2010,Other Contractual Services,NAT'L SCIENCE FOUNDATION,$390.00
48,J.F. Drake State,90013062,CAROLYN HENDERSON,May,31,2010,Instructional Salaries - Tempo,UNRESTRICTED,$337.50
48,J.F. Drake State,90013062,CAROLYN HENDERSON,May,31,2010,Instructional Salaries - Regul,NAT'L SCIENCE FOUNDATION,"$1,317.13"
48,J.F. Drake State,90013062,CAROLYN HENDERSON,May,31,2010,Instructional Salaries - Regul,ARRA STIMULUS FUNDS,"$3,951.39"
48,J.F. Drake State,90013063,DEXTER R HENRY,May,31,2010,Instructional Salaries - Regul,UNRESTRICTED,"$6,416.88"
48,J.F. Drake State,90013063,DEXTER R HENRY,May,31,2010,Instructional Salaries - Tempo,UNRESTRICTED,$562.50
48,J.F. Drake State,90013064,KARL W HENRY SR,May,31,2010,Instructional Salaries - Regul,UNRESTRICTED,"$5,435.11"
48,J.F. Drake State,90013064,KARL W HENRY SR,May,31,2010,Instructional Salaries - Regul,NAT'L SCIENCE FOUNDATION,"$1,678.37"
48,J.F. Drake State,90013065,DORIS HINTON,May,31,2010,Instructional Salaries - Regul,UNRESTRICTED,"$5,416.76"
48,J.F. Drake State,90013066,TERESA HOOPER,May,31,2010,Instructional Salaries - Tempo,UNRESTRICTED,$214.00
48,J.F. Drake State,90013067,PATRICIA HUGHES,May,31,2010,Instructional Salaries - Tempo,UNRESTRICTED,$337.50
48,J.F. Drake State,90013067,PATRICIA HUGHES,May,31,2010,Administrative Salaries- Sched,UNRESTRICTED,"$7,747.58"
48,J.F. Drake State,90013069,JERRY M HUMPHERY,May,31,2010,Instructional Salaries - Tempo,UNRESTRICTED,$975.93
48,J.F. Drake State,90013070,PAMELA MICHELLE HUMPHREY,May,31,2010,Instructional Salaries - Tempo,UNRESTRICTED,"$1,276.86"
48,J.F. Drake State,90013071,CHRISTINE H HUNT,May,31,2010,Instructional Salaries - Tempo,UNRESTRICTED,$675.00
48,J.F. Drake State,90013072,JAN J HYMAN,May,31,2010,Support Personnel Salaries - S,UNRESTRICTED,"$2,262.09"
48,J.F. Drake State,90013074,SARAH J JAMAR,May,31,2010,Instructional Salaries - Tempo,UNRESTRICTED,$337.50
48,J.F. Drake State,90013074,SARAH J JAMAR,May,31,2010,Other Contractual Services,NAT'L SCIENCE FOUNDATION,"$1,420.00"
48,J.F. Drake State,90013075,DETRIC R JAMES,May,31,2010,Support Personnel Salaries - S,ARRA STIMULUS FUNDS,$974.50
48,J.F. Drake State,90013075,DETRIC R JAMES,May,31,2010,Support Personnel Salaries - S,TITLE III,"$2,923.50"
48,J.F. Drake State,90013076,DEMARIS JENKINS,May,31,2010,Instructional Salaries - Tempo,UNRESTRICTED,$675.00
48,J.F. Drake State,90013077,DONYALE D JONES,May,31,2010,Support Personnel Salaries - S,TITLE III,"$3,303.42"
48,J.F. Drake State,90013078,PETURA M JONES,May,31,2010,Instructional Salaries - Tempo,UNRESTRICTED,$562.50
48,J.F. Drake State,90013079,ROBERT LEE JONES,May,31,2010,Instructional Salaries - Tempo,UNRESTRICTED,"$1,276.86"
48,J.F. Drake State,90013080,RUTH D JONES,May,31,2010,Instructional Salaries - Tempo,UNRESTRICTED,$562.50
48,J.F. Drake State,90013081,CHERYL P KEMP,May,31,2010,Instructional Salaries - Tempo,UNRESTRICTED,"$2,140.00"
48,J.F. Drake State,90013082,ANNIE R KNIGHT,May,31,2010,Instructional Salaries - Tempo,UNRESTRICTED,$675.00
48,J.F. Drake State,90013083,PRAVEENA KOMMIDI,May,31,2010,Instructional Salaries - Regul,UNRESTRICTED,"$5,638.00"
48,J.F. Drake State,90013083,PRAVEENA KOMMIDI,May,31,2010,Instructional Salaries - Tempo,UNRESTRICTED,$437.82
48,J.F. Drake State,90013084,NICHOLAS PAUL KSEPKA,May,31,2010,Hourly Wages,UNRESTRICTED,"$1,725.00"
48,J.F. Drake State,90013085,HONG THUYDUC LAM,May,31,2010,Instructional Salaries - Regul,UNRESTRICTED,"$5,675.64"
48,J.F. Drake State,90013086,JOYCE P LAMAR,May,31,2010,Hourly Wages,UNRESTRICTED,"$3,952.50"
48,J.F. Drake State,90013087,KRISTEN K LECROIX,May,31,2010,Instructional Salaries - Tempo,UNRESTRICTED,$337.50
48,J.F. Drake State,90013088,JOEL M LINER,May,31,2010,Instructional Salaries - Tempo,UNRESTRICTED,$675.00
48,J.F. Drake State,90013089,ROBERT W MARTIN III,May,31,2010,Instructional Salaries - Tempo,UNRESTRICTED,$975.93
48,J.F. Drake State,90013090,MICHEAL V MAXTON,May,31,2010,Instructional Salaries - Tempo,UNRESTRICTED,$337.50
48,J.F. Drake State,90013091,HELEN T MCALPINE,May,31,2010,Administrative Salaries- Sched,UNRESTRICTED,"$14,266.45"
48,J.F. Drake State,90013091,HELEN T MCALPINE,May,31,2010,President's Expense Allowance,UNRESTRICTED,$200.00
48,J.F. Drake State,90013091,HELEN T MCALPINE,May,31,2010,Housing Allowance,UNRESTRICTED,"$1,000.00"
48,J.F. Drake State,90013092,DEMETIUS L MCCARTY,May,31,2010,Support Personnel Salaries - S,UNRESTRICTED,"$2,124.00"
48,J.F. Drake State,90013094,JERRY L MCCAULLEY,May,31,2010,Instructional Salaries - Tempo,UNRESTRICTED,"$1,076.25"
48,J.F. Drake State,90013095,BOBBY F MCDONALD,May,31,2010,Instructional Salaries - Tempo,UNRESTRICTED,$675.00
48,J.F. Drake State,90013096,SCOTTY MCLAUGHLIN,May,31,2010,Instructional Salaries - Regul,UNRESTRICTED,"$7,016.48"
48,J.F. Drake State,90013097,PAMELA F MCTILLER,May,31,2010,Instructional Salaries - Tempo,UNRESTRICTED,$975.93
48,J.F. Drake State,90013098,DEBORAH A MILLING,May,31,2010,Instructional Salaries - Regul,UNRESTRICTED,"$4,962.33"
48,J.F. Drake State,90013099,SAMMY J MILTON,May,31,2010,Support Personnel Salaries - S,UNRESTRICTED,"$3,452.83"
48,J.F. Drake State,90013100,PREMA A MONTEIRO,May,31,2010,Instructional Salaries - Regul,UNRESTRICTED,"$4,675.52"
48,J.F. Drake State,90013101,DANA MOORE,May,31,2010,Other Professional Salaries -,TITLE III,"$8,649.00"
48,J.F. Drake State,90013102,MARY JO MORAN,May,31,2010,Instructional Salaries - Tempo,UNRESTRICTED,"$2,126.63"
48,J.F. Drake State,90013103,BRUCE D MORRISON,May,31,2010,Support Personnel Salaries - S,UNRESTRICTED,"$4,047.25"
48,J.F. Drake State,90013104,KATHRYN B NEAL,May,31,2010,Other Professional Salaries -,UNRESTRICTED,"$7,905.25"
48,J.F. Drake State,90013106,KAREN NEIR,May,31,2010,Instructional Salaries - Tempo,UNRESTRICTED,"$2,407.50"
48,J.F. Drake State,90013107,JENNIFER O'LINGER,May,31,2010,Support Personnel Salaries - S,UNRESTRICTED,"$3,154.25"
48,J.F. Drake State,90013108,DONALD ORR,May,31,2010,Support Personnel Salaries - S,UNRESTRICTED,"$3,601.25"
48,J.F. Drake State,90013109,JARROD PATTERSON,May,31,2010,Instructional Salaries - Tempo,UNRESTRICTED,$200.61
48,J.F. Drake State,90013110,JENNIFER E PATTERSON,May,31,2010,Instructional Salaries - Tempo,UNRESTRICTED,$975.93
48,J.F. Drake State,90013110,JENNIFER E PATTERSON,May,31,2010,Other Contractual Services,TITLE III,$930.00
48,J.F. Drake State,90013111,WILLIE C PATTON,May,31,2010,Instructional Salaries - Tempo,UNRESTRICTED,"$1,076.25"
48,J.F. Drake State,90013112,ALBERT B PETERSON II,May,31,2010,Instructional Salaries - Tempo,UNRESTRICTED,$364.00
48,J.F. Drake State,90013113,JAMES ANTHONY PLENTY,May,31,2010,Instructional Salaries - Tempo,UNRESTRICTED,"$1,076.25"
48,J.F. Drake State,90013114,GWENDOLYN D POPE,May,31,2010,Instructional Salaries - Regul,UNRESTRICTED,"$5,651.75"
48,J.F. Drake State,90013114,GWENDOLYN D POPE,May,31,2010,Instructional Salaries - Tempo,UNRESTRICTED,$675.00
48,J.F. Drake State,90013115,KARRIE PRATT,May,31,2010,Instructional Salaries - Tempo,UNRESTRICTED,$53.50
48,J.F. Drake State,90013116,FREDRICK O PRUITT,May,31,2010,Instructional Salaries - Regul,UNRESTRICTED,"$4,823.76"
48,J.F. Drake State,90013116,FREDRICK O PRUITT,May,31,2010,Instructional Salaries - Tempo,UNRESTRICTED,"$1,577.82"
48,J.F. Drake State,90013117,MICHAEL RADDEN,May,31,2010,Instructional Salaries - Tempo,UNRESTRICTED,$337.50
48,J.F. Drake State,90013118,LORAINE RAGIN,May,31,2010,Instructional Salaries - Tempo,UNRESTRICTED,"$1,577.82"
48,J.F. Drake State,90013119,WELDON RAGLAND,May,31,2010,Instructional Salaries - Tempo,UNRESTRICTED,$975.93
48,J.F. Drake State,90013120,VIKERRIA A RANKINS,May,31,2010,Instructional Salaries - Tempo,UNRESTRICTED,$562.50
48,J.F. Drake State,90013121,ALICE G RAYMOND,May,31,2010,Instructional Salaries - Regul,UNRESTRICTED,"$8,079.64"
48,J.F. Drake State,90013122,JOYCE L RENTZ,May,31,2010,Instructional Salaries - Regul,UNRESTRICTED,"$6,706.36"
48,J.F. Drake State,90013122,JOYCE L RENTZ,May,31,2010,Instructional Salaries - Tempo,UNRESTRICTED,$675.00
48,J.F. Drake State,90013123,JOHN REUTTER III,May,31,2010,Instructional Salaries - Tempo,UNRESTRICTED,$675.00
48,J.F. Drake State,90013123,JOHN REUTTER III,May,31,2010,Other Professional Salaries -,NAT'L SCIENCE FOUNDATION,"$6,616.75"
48,J.F. Drake State,90013124,MARTHA J ROBERTS,May,31,2010,Support Personnel Salaries - S,UNRESTRICTED,"$4,940.33"
48,J.F. Drake State,90013125,LASHUN D SALES,May,31,2010,Other Contractual Services,TITLE III,$950.00
48,J.F. Drake State,90013126,JACKIE D SANDERS,May,31,2010,Instructional Salaries - Tempo,UNRESTRICTED,$975.93
48,J.F. Drake State,90013127,CHRISTINA R SCISSUM,May,31,2010,Other Professional Salaries -,TITLE III,"$4,012.50"
48,J.F. Drake State,90013128,JANET MAHAFFEY SHAFER,May,31,2010,Instructional Salaries - Tempo,UNRESTRICTED,$975.93
48,J.F. Drake State,90013129,BARRY E SHELTON,May,31,2010,Instructional Salaries - Tempo,UNRESTRICTED,"$1,123.50"
48,J.F. Drake State,90013130,JACQUELINE M SHIVERS,May,31,2010,Instructional Salaries - Tempo,UNRESTRICTED,"$1,312.50"
48,J.F. Drake State,90013131,LESLEY SHOTTS,May,31,2010,Instructional Salaries - Regul,UNRESTRICTED,"$4,190.50"
48,J.F. Drake State,90013132,PATRICIA GORDON SIMS,May,31,2010,Administrative Salaries- Sched,UNRESTRICTED,"$9,245.09"
48,J.F. Drake State,90013133,RYAN E SMITH,May,31,2010,Other Professional Salaries -,UNRESTRICTED,"$4,000.00"
48,J.F. Drake State,90013134,DELORIS A SMOTHERS,May,31,2010,Instructional Salaries - Regul,UNRESTRICTED,"$6,713.48"
48,J.F. Drake State,90013134,DELORIS A SMOTHERS,May,31,2010,Instructional Salaries - Tempo,UNRESTRICTED,$675.00
48,J.F. Drake State,90013135,JULIE P SPURGEON,May,31,2010,Support Personnel Salaries - S,ARRA STIMULUS FUNDS,"$1,889.83"
48,J.F. Drake State,90013136,VERLINDSEY B STEWART,May,31,2010,Instructional Salaries - Regul,UNRESTRICTED,"$6,616.48"
48,J.F. Drake State,90013136,VERLINDSEY B STEWART,May,31,2010,Instructional Salaries - Tempo,UNRESTRICTED,$100.32
48,J.F. Drake State,90013137,BRETT ALLEN STRAUSER,May,31,2010,Other Contractual Services,TITLE III,$787.50
48,J.F. Drake State,90013138,MONICA SUDEALL-HAWKINS,May,31,2010,Instructional Salaries - Tempo,UNRESTRICTED,$975.93
48,J.F. Drake State,90013138,MONICA SUDEALL-HAWKINS,May,31,2010,Other Professional Salaries -,UNRESTRICTED,"$4,993.33"
48,J.F. Drake State,90013139,SHANNON SUMMERS,May,31,2010,Instructional Salaries - Tempo,UNRESTRICTED,$726.00
48,J.F. Drake State,90013140,RICHARD M SWAIM,May,31,2010,Instructional Salaries - Tempo,UNRESTRICTED,$562.50
48,J.F. Drake State,90013141,DOCQUINN N TAYLOR,May,31,2010,Instructional Salaries - Tempo,UNRESTRICTED,$200.61
48,J.F. Drake State,90013142,JOY D TORNQUIST,May,31,2010,Instructional Salaries - Tempo,UNRESTRICTED,"$2,273.75"
48,J.F. Drake State,90013143,KRISTIN TREADWAY,May,31,2010,Support Personnel Salaries - S,ALLIED HEALTH,"$2,707.83"
48,J.F. Drake State,90013144,JOYLYN ERNA TROTMAN,May,31,2010,Other Professional Salaries -,UNRESTRICTED,"$4,465.83"
48,J.F. Drake State,90013145,ELIZABETH A TUGGLE,May,31,2010,Instructional Salaries - Tempo,UNRESTRICTED,"$1,690.00"
48,J.F. Drake State,90013146,GILBERT T TURLEY,May,31,2010,Other Professional Salaries -,UNRESTRICTED,"$6,450.08"
48,J.F. Drake State,90013147,LETITIA E WALKER,May,31,2010,Support Personnel Salaries - S,UNRESTRICTED,"$3,229.42"
48,J.F. Drake State,90013148,THEO NATHAN WALSTON,May,31,2010,Support Personnel Salaries - S,ARRA STIMULUS FUNDS,"$3,020.91"
48,J.F. Drake State,90013149,KATINA L WALTON,May,31,2010,Instructional Salaries - Tempo,UNRESTRICTED,$882.00
48,J.F. Drake State,90013150,MICHELLE L WATKINS,May,31,2010,Instructional Salaries - Tempo,UNRESTRICTED,$675.00
48,J.F. Drake State,90013151,MIRIE WESTBROOK III,May,31,2010,Instructional Salaries - Tempo,UNRESTRICTED,$675.00
48,J.F. Drake State,90013152,DWAYNIA WILKERSON,May,31,2010,Other Contractual Services,TITLE III,$540.00
48,J.F. Drake State,90013153,KRISHALON WILKERSON,May,31,2010,Instructional Salaries - Tempo,UNRESTRICTED,$975.93
48,J.F. Drake State,90013154,SANOYIA L WILLIAMS,May,31,2010,Instructional Salaries - Tempo,UNRESTRICTED,$675.00
48,J.F. Drake State,90013155,DAWN WILLIAMSON-ASHLEY,May,31,2010,Instructional Salaries - Tempo,UNRESTRICTED,$100.32
48,J.F. Drake State,90013156,RICKY WILLINGHAM,May,31,2010,Other Professional Salaries -,TITLE III,"$5,416.67"
48,J.F. Drake State,90013157,INA M WILSON,May,31,2010,Other Professional Salaries -,TITLE III,"$4,166.67"
48,J.F. Drake State,90013158,GEORGE R WINN,May,31,2010,Instructional Salaries - Regul,UNRESTRICTED,"$5,527.36"
48,J.F. Drake State,90013158,GEORGE R WINN,May,31,2010,Instructional Salaries - Tempo,UNRESTRICTED,$337.50
48,J.F. Drake State,90013159,JOHNIKA WORD,May,31,2010,Support Personnel Salaries - S,UNRESTRICTED,"$2,125.20"
48,J.F. Drake State,90013160,ANDRAIN YELDELL,May,31,2010,Instructional Salaries - Tempo,UNRESTRICTED,$100.32
48,J.F. Drake State,300195,MIRIAM B FRANK,May,26,2010,Instructional Salaries - Regul,UNRESTRICTED,"$19,363.64"
48,J.F. Drake State,100371,LAUREL STANDLEY PEFFER,May,25,2010,Other Contractual Services,UNRESTRICTED,$582.00
48,J.F. Drake State,100372,"NATIONAL SEMINARS, INC.",May,25,2010,In-State Travel,UNRESTRICTED,$199.00
48,J.F. Drake State,100373,RUTHANNE SZENASI,May,25,2010,Other Contractual Services,UNRESTRICTED,$160.45
48,J.F. Drake State,100374,TAMMY NOBLITT,May,25,2010,Other Contractual Services,UNRESTRICTED,$376.40
48,J.F. Drake State,200244,ACCSFMA,May,25,2010,In-State Travel,TITLE III,$50.00
48,J.F. Drake State,200245,AMERICAN EXPRESS,May,25,2010,Out-of-State Travel,TITLE III,"$1,619.70"
48,J.F. Drake State,200246,"BATTS, HAROLD",May,25,2010,In-State Travel,TITLE III,$330.70
48,J.F. Drake State,200247,NICOLE BELL,May,25,2010,Out-of-State Travel,TITLE III,$125.17
48,J.F. Drake State,200248,BERNEY OFFICE SOLUTIONS,May,25,2010,Materials and Supplies,ALLIED HEALTH,$110.00
48,J.F. Drake State,200248,BERNEY OFFICE SOLUTIONS,May,25,2010,Materials and Supplies,TITLE III,$25.52
48,J.F. Drake State,200249,BRODART SUPPLIES & FURNIS,May,25,2010,Materials and Supplies,TITLE III,$865.43
48,J.F. Drake State,200250,DONALD BURTON,May,25,2010,In-State Travel,CAREER COACHES,$63.35
48,J.F. Drake State,200251,CAESARS ATLANTIC CITY,May,25,2010,Out-of-State Travel,TITLE III,$654.46
48,J.F. Drake State,200252,CDW-G,May,25,2010,Materials and Supplies,ALLIED HEALTH CARRYOVER,"$27,743.40"
48,J.F. Drake State,200252,CDW-G,May,25,2010,Materials and Supplies,TITLE III,"$41,615.10"
48,J.F. Drake State,200253,KEMBA CHAMBERS,May,25,2010,Out-of-State Travel,TITLE III,$100.00
48,J.F. Drake State,200254,APRIL CLEMENT,May,25,2010,In-State Travel,CAREER COACHES,$69.45
48,J.F. Drake State,200255,COPELAND CLEANERS,May,25,2010,Materials and Supplies,TITLE III,$65.92
48,J.F. Drake State,200256,COUNCIL ON OCCUP. EDUC.,May,25,2010,Out-of-State Travel,TITLE III,$900.00
48,J.F. Drake State,200257,CRI,May,25,2010,Other Contractual Services,TITLE III,$98.50
48,J.F. Drake State,200258,DI ASSOCIATES,May,25,2010,Out-of-State Travel,ALLIED HEALTH CARRYOVER,"$3,076.00"
48,J.F. Drake State,200259,FOLLET SOFTWARE COMPANY,May,25,2010,Materials and Supplies,TITLE III,$564.00
48,J.F. Drake State,200260,GRAND HYATT TAMPA BAY,May,25,2010,Out-of-State Travel,TITLE III,$997.92
48,J.F. Drake State,200261,"HENRY, DEXTER",May,25,2010,In-State Travel,TITLE III,$555.00
48,J.F. Drake State,200262,LOWE'S,May,25,2010,Materials and Supplies,TITLE III,"$1,234.83"
48,J.F. Drake State,200263,"OFFICE DEPOT, INC.",May,25,2010,Materials and Supplies,TITLE III CARRYOVER,$806.59
48,J.F. Drake State,200263,"OFFICE DEPOT, INC.",May,25,2010,Materials and Supplies,ALLIED HEALTH,$486.97
48,J.F. Drake State,200263,"OFFICE DEPOT, INC.",May,25,2010,Materials and Supplies,TITLE III,$536.29
48,J.F. Drake State,200264,OFFICE FURNITURE OUTLET,May,25,2010,Materials and Supplies,TITLE III,"$1,350.00"
48,J.F. Drake State,200265,DELORIS SMOTHERS,May,25,2010,Out-of-State Travel,TITLE III,"$1,620.00"
48,J.F. Drake State,200266,THE NATIONAL ASSOC OF,May,25,2010,Out-of-State Travel,TITLE III,$375.00
48,J.F. Drake State,200267,WALLACE STATE COLLEGE,May,25,2010,In-State Travel,TITLE III,$80.00
48,J.F. Drake State,4201002,AT&T,May,20,2010,Communications,UNRESTRICTED,"$4,512.20"
48,J.F. Drake State,4201004,COMCAST,May,20,2010,Communications,UNRESTRICTED,$79.18
48,J.F. Drake State,4201005,COOK'S PEST CONTROL,May,20,2010,Communications,UNRESTRICTED,$316.00
48,J.F. Drake State,4201006,HUNTSVILLE UTILITIES,May,20,2010,Water and Sewer,UNRESTRICTED,"$3,011.32"
48,J.F. Drake State,4201006,HUNTSVILLE UTILITIES,May,20,2010,Electricity,UNRESTRICTED,"$13,600.32"
48,J.F. Drake State,4201006,HUNTSVILLE UTILITIES,May,20,2010,Gas and Heating Fuel,UNRESTRICTED,"$4,234.97"
48,J.F. Drake State,4201006,HUNTSVILLE UTILITIES,May,20,2010,Electricity,ARMY GRANT,"$2,871.49"
48,J.F. Drake State,4201006,HUNTSVILLE UTILITIES,May,20,2010,Gas and Heating Fuel,ARMY GRANT,$645.20
48,J.F. Drake State,4201006,HUNTSVILLE UTILITIES,May,20,2010,Electricity,PLANT FUNDS,$675.43
48,J.F. Drake State,4201007,WOW! BUSINESS,May,20,2010,Communications,UNRESTRICTED,$104.58
48,J.F. Drake State,4201008,PITNEY BOWES,May,20,2010,Postage,UNRESTRICTED,"$1,200.00"
48,J.F. Drake State,5201002,AT&T,May,20,2010,Communications,UNRESTRICTED,$131.46
48,J.F. Drake State,5201004,COMCAST,May,20,2010,Communications,UNRESTRICTED,$79.18
48,J.F. Drake State,5201005,COOK'S PEST CONTROL,May,20,2010,Communications,UNRESTRICTED,$316.00
48,J.F. Drake State,5201006,HUNTSVILLE UTILITIES,May,20,2010,Water and Sewer,UNRESTRICTED,"$2,365.56"
48,J.F. Drake State,5201006,HUNTSVILLE UTILITIES,May,20,2010,Electricity,UNRESTRICTED,"$12,845.79"
48,J.F. Drake State,5201006,HUNTSVILLE UTILITIES,May,20,2010,Gas and Heating Fuel,UNRESTRICTED,$794.89
48,J.F. Drake State,5201006,HUNTSVILLE UTILITIES,May,20,2010,Electricity,ARMY GRANT,"$2,836.38"
48,J.F. Drake State,5201006,HUNTSVILLE UTILITIES,May,20,2010,Gas and Heating Fuel,ARMY GRANT,$83.94
48,J.F. Drake State,5201006,HUNTSVILLE UTILITIES,May,20,2010,Electricity,PLANT FUNDS,$624.38
48,J.F. Drake State,5201007,WOW! BUSINESS,May,20,2010,Communications,UNRESTRICTED,$104.68
48,J.F. Drake State,5201008,PITNEY BOWES,May,20,2010,Postage,UNRESTRICTED,"$1,200.00"
48,J.F. Drake State,3201001,AT&T,May,20,2010,Communications,UNRESTRICTED,"$4,385.37"
48,J.F. Drake State,100316,CHRIS CALHOUN,May,19,2010,Other Contractual Services,UNRESTRICTED,"$3,000.00"
48,J.F. Drake State,100317,ACROSS THE POND,May,18,2010,Materials and Supplies,UNRESTRICTED,$744.40
48,J.F. Drake State,100318,AT&T LONG DISTANCE SERV.,May,18,2010,Communications,UNRESTRICTED,"$8,959.35"
48,J.F. Drake State,100319,AVNET ELECTRONICS,May,18,2010,Purchases for Resale,UNRESTRICTED,"$2,789.68"
48,J.F. Drake State,100320,AVO COMMUNICATIONS,May,18,2010,Institutional Use,UNRESTRICTED,"$1,500.00"
48,J.F. Drake State,100321,"BURMAX, INC.",May,18,2010,Purchases for Resale,UNRESTRICTED,"$6,350.37"
48,J.F. Drake State,100322,"CLEAN AIR AMERICA, INC",May,18,2010,Furniture and Equipment,WELDING GRANT,"$18,180.00"
48,J.F. Drake State,100323,SCOTTSBORO DAILY SENTINEL,May,18,2010,Advertising and Promotions,UNRESTRICTED,$842.50
48,J.F. Drake State,100324,DECATUR MORGAN COUNTY,May,18,2010,Memberships,UNRESTRICTED,$720.00
48,J.F. Drake State,100325,"DYNAMIC SECURITY, INC.",May,18,2010,Other Contractual Services,UNRESTRICTED,"$10,952.76"
48,J.F. Drake State,100326,ELSEVIER/HESI,May,18,2010,Purchases for Resale,UNRESTRICTED,"$8,076.68"
48,J.F. Drake State,100327,GOODHEART-WILCOX COMPANY,May,18,2010,Purchases for Resale,UNRESTRICTED,"$1,948.69"
48,J.F. Drake State,100328,GLIDDEN PROFESSIONAL PAI,May,18,2010,Materials and Supplies,UNRESTRICTED,"$2,263.67"
48,J.F. Drake State,100329,IN10SITY INTERACTIVE,May,18,2010,Other Contractual Services,UNRESTRICTED,"$2,625.00"
48,J.F. Drake State,100330,KELLY TRUCK TIRE SERVICE,May,18,2010,Maintenance and Repairs,UNRESTRICTED,$96.20
48,J.F. Drake State,100331,KENCO TOYOTA LIFT,May,18,2010,Maintenance and Repairs,UNRESTRICTED,$131.94
48,J.F. Drake State,100332,LOWE'S,May,18,2010,Maintenance and Repairs,PLANT FUNDS,$319.72
48,J.F. Drake State,100332,LOWE'S,May,18,2010,Materials and Supplies,UNRESTRICTED,"$1,463.54"
48,J.F. Drake State,100333,LOWE'S,May,18,2010,Maintenance and Repairs,PLANT FUNDS,$222.45
48,J.F. Drake State,100334,LOWE'S,May,18,2010,Materials and Supplies,UNRESTRICTED,$549.66
48,J.F. Drake State,100335,LOWE'S,May,18,2010,Materials and Supplies,ARMY GRANT,"$1,851.27"
48,J.F. Drake State,100336,"MCALPINE, HELEN",May,18,2010,Employee Taxable Per Diem,UNRESTRICTED,$11.25
48,J.F. Drake State,100337,MCGRAW HILL EDUCATION,May,18,2010,Purchases for Resale,UNRESTRICTED,"$42,574.12"
48,J.F. Drake State,100337,MCGRAW HILL EDUCATION,May,18,2010,Materials and Supplies,UNRESTRICTED,$908.63
48,J.F. Drake State,100338,MEADOWS MEDICAL SUPPLY IN,May,18,2010,Purchases for Resale,UNRESTRICTED,"$2,359.57"
48,J.F. Drake State,100339,MICROCHIP DIRECT,May,18,2010,Purchases for Resale,UNRESTRICTED,$277.02
48,J.F. Drake State,100340,MID CITY SUPPLY CO,May,18,2010,Materials and Supplies,UNRESTRICTED,"$3,307.86"
48,J.F. Drake State,100341,MID CITY SUPPLY CO,May,18,2010,Materials and Supplies,UNRESTRICTED,"$4,086.01"
48,J.F. Drake State,100342,MID CITY SUPPLY CO,May,18,2010,Materials and Supplies,UNRESTRICTED,$532.48
48,J.F. Drake State,100343,MULLINS FIVE POINTS RENTA,May,18,2010,Materials and Supplies,UNRESTRICTED,$258.49
48,J.F. Drake State,100343,MULLINS FIVE POINTS RENTA,May,18,2010,Maintenance and Repairs,UNRESTRICTED,"$1,091.50"
48,J.F. Drake State,100344,NAPA AUTO PARTS/GENUINE P,May,18,2010,Maintenance and Repairs,UNRESTRICTED,$69.99
48,J.F. Drake State,100345,"OFFICE DEPOT, INC.",May,18,2010,Materials and Supplies,UNRESTRICTED,$34.84
48,J.F. Drake State,100346,OVERHEAD DOOR,May,18,2010,Maintenance and Repairs,PLANT FUNDS,$436.00
48,J.F. Drake State,100347,PARKWAY SCRUBS,May,18,2010,Purchases for Resale,UNRESTRICTED,$13.45
48,J.F. Drake State,100348,PEARSON,May,18,2010,Purchases for Resale,UNRESTRICTED,"$60,936.94"
48,J.F. Drake State,100349,SCHOOLCRAFT PUB,May,18,2010,Purchases for Resale,UNRESTRICTED,"$1,608.35"
48,J.F. Drake State,100350,SCHROFF DEVELOPMENT CORP,May,18,2010,Purchases for Resale,UNRESTRICTED,"$1,509.00"
48,J.F. Drake State,100351,SEXTON WELDING SUPPLY,May,18,2010,Purchases for Resale,UNRESTRICTED,"$4,040.00"
48,J.F. Drake State,100352,SIGNS BY TOMORROW,May,18,2010,Advertising and Promotions,UNRESTRICTED,$152.00
48,J.F. Drake State,100353,"SMITH, RYAN",May,18,2010,In-State Travel,UNRESTRICTED,$44.64
48,J.F. Drake State,100354,SOUTHERNLINC WIRELESS,May,18,2010,Communications,UNRESTRICTED,$15.90
48,J.F. Drake State,100355,TCI,May,18,2010,Maintenance and Repairs,UNRESTRICTED,$131.94
48,J.F. Drake State,100356,THEO WALSTON,May,18,2010,In-State Travel,UNRESTRICTED,$56.60
48,J.F. Drake State,100357,WASTE MANAGEMENT OF NORTH,May,18,2010,Other Contractual Services,UNRESTRICTED,"$2,768.15"
48,J.F. Drake State,200193,AMERICAN EXPRESS,May,14,2010,Out-of-State Travel,TITLE III,"$3,904.00"
48,J.F. Drake State,200194,COUNTRY INN & SUITES,May,14,2010,Out-of-State Travel,CARL PERKINS FUNDS,$100.78
48,J.F. Drake State,200194,COUNTRY INN & SUITES,May,14,2010,Out-of-State Travel,TITLE III,$201.56
48,J.F. Drake State,200195,"DAVIS, MATTIE",May,14,2010,In-State Travel,TITLE III,$61.00
48,J.F. Drake State,200195,"DAVIS, MATTIE",May,14,2010,Employee Taxable Per Diem,TITLE III,$11.25
48,J.F. Drake State,200196,FBLA-PBL,May,14,2010,Out-of-State Travel,CARL PERKINS FUNDS,"$1,284.00"
48,J.F. Drake State,200197,ISCET,May,14,2010,Materials and Supplies,TITLE III CARRYOVER,$821.60
48,J.F. Drake State,200198,"LAMAR, JOYCE",May,14,2010,In-State Travel,TITLE III,$588.00
48,J.F. Drake State,200199,LEADERSHIP ALABAMA,May,14,2010,In-State Travel,TITLE III,$75.00
48,J.F. Drake State,200200,LEADERSHIP ALABAMA,May,14,2010,In-State Travel,TITLE III,$75.00
48,J.F. Drake State,200201,"MCLAUGHLIN, SCOTTY",May,14,2010,Out-of-State Travel,CARL PERKINS FUNDS,$300.00
48,J.F. Drake State,200202,"MCLAUGHLIN, SCOTTY",May,14,2010,Out-of-State Travel,CARL PERKINS FUNDS,$280.00
48,J.F. Drake State,200203,"MILLING, DEBORAH",May,14,2010,In-State Travel,ALLIED HEALTH CARRYOVER,$194.00
48,J.F. Drake State,200203,"MILLING, DEBORAH",May,14,2010,Employee Taxable Per Diem,ALLIED HEALTH CARRYOVER,$11.25
48,J.F. Drake State,200204,"OFFICE DEPOT, INC.",May,14,2010,Materials and Supplies,TITLE III,$419.10
48,J.F. Drake State,200205,"OFFICE DEPOT, INC.",May,14,2010,Materials and Supplies,TITLE III CARRYOVER,$463.50
48,J.F. Drake State,200206,"OFFICE DEPOT, INC.",May,14,2010,Materials and Supplies,TITLE III,$139.51
48,J.F. Drake State,200207,"PRUITT, FREDERICK",May,14,2010,In-State Travel,TITLE III,$333.59
48,J.F. Drake State,200208,"RAYMOND, ALICE",May,14,2010,In-State Travel,ALLIED HEALTH CARRYOVER,$458.00
48,J.F. Drake State,200209,"SIMS, PATRICIA G.",May,14,2010,Out-of-State Travel,TITLE III,$200.00
48,J.F. Drake State,200210,"SIMS, PATRICIA G.",May,14,2010,Out-of-State Travel,TITLE III,$200.00
48,J.F. Drake State,200211,SKILLS ALABAMA,May,14,2010,Out-of-State Travel,CARL PERKINS FUNDS,$650.00
48,J.F. Drake State,200212,SKILLS ALABAMA,May,14,2010,Out-of-State Travel,TITLE III,"$1,300.00"
48,J.F. Drake State,200213,SKILLS ALABAMA,May,14,2010,Out-of-State Travel,TITLE III,$300.00
48,J.F. Drake State,200214,SKILLS ALABAMA,May,14,2010,Out-of-State Travel,CARL PERKINS FUNDS,$300.00
48,J.F. Drake State,200215,SKILLSUSA STORE,May,14,2010,Materials and Supplies,CARL PERKINS FUNDS,$34.67
48,J.F. Drake State,200216,"STEWART, VERLINDSEY B.",May,14,2010,Out-of-State Travel,TITLE III,"$1,620.00"
48,J.F. Drake State,200217,TAMPA MARRIOTT WATERSIDE,May,14,2010,Out-of-State Travel,TITLE III,"$2,002.56"
48,J.F. Drake State,200218,THOMAS EDISON ST COLLEGE,May,14,2010,Out-of-State Travel,TITLE III,$700.00
48,J.F. Drake State,200219,GIL TURLEY,May,14,2010,In-State Travel,TITLE III,$188.41
48,J.F. Drake State,200219,GIL TURLEY,May,14,2010,Employee Taxable Per Diem,TITLE III,$30.00
48,J.F. Drake State,200220,TUSCALOOSA LIBRARY BINDER,May,14,2010,Books,TITLE III CARRYOVER,$844.95
48,J.F. Drake State,100306,ALBERT'S FLOWERS,May,11,2010,Institutional Use,UNRESTRICTED,$500.00
48,J.F. Drake State,100307,C & C BUILDING SERVICES,May,11,2010,Maintenance and Repairs,PLANT FUNDS,"$11,638.00"
48,J.F. Drake State,100308,C & C BUILDING SERVICES,May,11,2010,Maintenance and Repairs,PLANT FUNDS,"$3,795.00"
48,J.F. Drake State,100309,CROWN TROPHY,May,11,2010,Institutional Use,UNRESTRICTED,$555.00
48,J.F. Drake State,100310,CALVIN DRAKE,May,11,2010,Institutional Use,UNRESTRICTED,$200.00
48,J.F. Drake State,100312,PEREVA ADRIANA,May,11,2010,Institutional Use,UNRESTRICTED,$200.00
48,J.F. Drake State,100314,SAM'S CLUB/WALMART,May,11,2010,Institutional Use,UNRESTRICTED,$100.00
48,J.F. Drake State,100315,3D VINCI,May,11,2010,Purchases for Resale,UNRESTRICTED,"$1,445.93"
48,J.F. Drake State,200178,MARLO M. DRAKE,May,10,2010,In-State Travel,TITLE III,$123.96
48,J.F. Drake State,200178,MARLO M. DRAKE,May,10,2010,Employee Taxable Per Diem,TITLE III,$30.00
48,J.F. Drake State,200188,ALABAMA CARD SYSTEMS,May,10,2010,Materials and Supplies,TITLE III,"$5,612.50"
48,J.F. Drake State,200189,MOORE MEDICAL CORP,May,10,2010,Materials and Supplies,ALLIED HEALTH,$136.87
48,J.F. Drake State,200190,"OFFICE DEPOT, INC.",May,10,2010,Materials and Supplies,TITLE III CARRYOVER,"$1,304.42"
48,J.F. Drake State,200190,"OFFICE DEPOT, INC.",May,10,2010,Materials and Supplies,TITLE III,"$1,341.18"
48,J.F. Drake State,200191,"OFFICE DEPOT, INC.",May,10,2010,Materials and Supplies,ALLIED HEALTH,"$1,749.99"
48,J.F. Drake State,200192,"OFFICE DEPOT, INC.",May,10,2010,Materials and Supplies,TITLE III,$86.09
48,J.F. Drake State,200174,APRIL CLEMENT,May,7,2010,In-State Travel,CAREER COACHES,$181.10
48,J.F. Drake State,200175,INA WILSON,May,7,2010,Out-of-State Travel,TITLE III,$944.91
48,J.F. Drake State,200175,INA WILSON,May,7,2010,In-State Travel,TITLE III,$240.00
48,J.F. Drake State,200175,INA WILSON,May,7,2010,Employee Taxable Per Diem,TITLE III,$11.25
48,J.F. Drake State,200176,"NEAL, KATHRYN B.",May,7,2010,In-State Travel,TITLE III,$84.00
48,J.F. Drake State,200177,"POPE, GWENDOLYN M.",May,7,2010,In-State Travel,TITLE III,$170.00
48,J.F. Drake State,200179,CRI,May,7,2010,Other Contractual Services,TITLE III,"$5,796.00"
48,J.F. Drake State,200180,DEMCO,May,7,2010,Materials and Supplies,TITLE III,$257.15
48,J.F. Drake State,200181,ENTERPRISE RENT-A-CAR,May,7,2010,In-State Travel,CARL PERKINS FUNDS,$201.76
48,J.F. Drake State,200182,KUDER,May,7,2010,Materials and Supplies,NAT'L SCIENCE FOUNDATION,"$1,200.00"
48,J.F. Drake State,200182,KUDER,May,7,2010,Other Contractual Services,NAT'L SCIENCE FOUNDATION,"$2,000.00"
48,J.F. Drake State,200183,LOWE'S,May,7,2010,Materials and Supplies,TITLE III,"$2,138.01"
48,J.F. Drake State,200184,"SHOTTS, LESLEY",May,7,2010,In-State Travel,TITLE III,$50.00
48,J.F. Drake State,200185,DELORIS SMOTHERS,May,7,2010,In-State Travel,TITLE III,$274.00
48,J.F. Drake State,200186,"STEWART, VERLINDSEY B.",May,7,2010,In-State Travel,TITLE III,$314.00
48,J.F. Drake State,200187,ULINE SHIPPING SUPPLY,May,7,2010,Materials and Supplies,TITLE III CARRYOVER,$100.21
48,J.F. Drake State,200187,ULINE SHIPPING SUPPLY,May,7,2010,Materials and Supplies,TITLE III,$112.74
48,J.F. Drake State,100292,ACT,May,5,2010,Materials and Supplies,UNRESTRICTED,$595.00
48,J.F. Drake State,100293,AT&T LONG DISTANCE SERV.,May,5,2010,Communications,UNRESTRICTED,$207.77
48,J.F. Drake State,100294,CHEVRON CARD SERVICES,May,5,2010,Gasoline and Oil - Motor Vehic,UNRESTRICTED,$860.79
48,J.F. Drake State,100295,COLONIAL GRAPHICS GROUP,May,5,2010,Advertising and Promotions,UNRESTRICTED,"$3,030.00"
48,J.F. Drake State,100296,COOK'S PEST CONTROL,May,5,2010,Other Contractual Services,ARMY GRANT,$70.00
48,J.F. Drake State,100297,EVOLVE REACH,May,5,2010,Purchases for Resale,AUXILIARY,$145.34
48,J.F. Drake State,100298,CHAMBER OF COMMERCE,May,5,2010,Advertising and Promotions,UNRESTRICTED,"$3,525.00"
48,J.F. Drake State,100299,THE LAMAR COMPANIES,May,5,2010,Advertising and Promotions,UNRESTRICTED,"$1,500.00"
48,J.F. Drake State,100300,LOWE'S,May,5,2010,Maintenance and Repairs,UNRESTRICTED,$250.62
48,J.F. Drake State,100301,NORTH AL SICKLE CELL,May,5,2010,Advertising and Promotions,UNRESTRICTED,$250.00
48,J.F. Drake State,100302,PARADIGM PUBLISHING,May,5,2010,Purchases for Resale,UNRESTRICTED,$700.28
48,J.F. Drake State,100303,RANDALL A SCHRIMSHER,May,5,2010,Rent - Facilities,,"$6,250.00"
48,J.F. Drake State,100304,VERIZON WIRELESS,May,5,2010,Communications,UNRESTRICTED,$957.33
48,J.F. Drake State,100305,WASTE MANAGEMENT OF NORTH,May,5,2010,Other Contractual Services,UNRESTRICTED,$351.13
48,J.F. Drake State,100290,ROCKHURST UNIVER CONT ED,May,3,2010,In-State Travel,ADULT ED,$139.00
48,J.F. Drake State,100291,ROCKHURST UNIVER CONT ED,May,3,2010,In-State Travel,ADULT ED,$99.50
48,J.F. Drake State,200168,BEST WESTERN INN SUITES,May,3,2010,Out-of-State Travel,TITLE III,$353.92
48,J.F. Drake State,300131,WILLIAM HAMPTON,May,3,2010,Support Personnel Salaries - S,ARRA STIMULUS FUNDS,"$1,056.00"
48,J.F. Drake State,300132,CANDICE HOWELL,May,3,2010,Instructional Salaries - Tempo,UNRESTRICTED,$200.63
48,J.F. Drake State,300103,MOSTAFA DOKHANIAN,Apr,30,2010,Other Contractual Services,NAT'L SCIENCE FOUNDATION,"$1,625.00"
48,J.F. Drake State,300104,WILLIAM WAYNE DUNLAP,Apr,30,2010,Instructional Salaries - Tempo,UNRESTRICTED,$675.00
48,J.F. Drake State,300105,KELLY LA GONZALEZ,Apr,30,2010,Instructional Salaries - Tempo,UNRESTRICTED,$562.50
48,J.F. Drake State,300106,ROBERT N GRISSIM,Apr,30,2010,Instructional Salaries - Tempo,UNRESTRICTED,"$1,076.25"
48,J.F. Drake State,300107,LARAKESHA C HENLEY,Apr,30,2010,Other Contractual Services,TITLE III,$417.88
48,J.F. Drake State,300108,JOHN DAVID HILLENBERG,Apr,30,2010,Other Contractual Services,TITLE III,"$1,487.50"
48,J.F. Drake State,300109,TOBY R HOLLOWAY,Apr,30,2010,Instructional Salaries - Tempo,UNRESTRICTED,"$1,276.88"
48,J.F. Drake State,300110,NEOKA JANE IVEY,Apr,30,2010,Other Contractual Services,TITLE III,$950.00
48,J.F. Drake State,300111,STEPHANIE JONES BOUNDS,Apr,30,2010,Instructional Salaries - Regul,UNRESTRICTED,"$3,478.42"
48,J.F. Drake State,300112,DOROTHY J NOBLE,Apr,30,2010,Instructional Salaries - Tempo,UNRESTRICTED,$775.31
48,J.F. Drake State,300113,LYNEVE JOY POMPEY,Apr,30,2010,Other Contractual Services,TITLE III,$768.75
48,J.F. Drake State,300114,DYANTHA E TOLBERT,Apr,30,2010,Support Personnel Salaries - S,UNRESTRICTED,"$1,787.60"
48,J.F. Drake State,300115,MELINDA WEST,Apr,30,2010,Instructional Salaries - Tempo,UNRESTRICTED,$508.25
48,J.F. Drake State,300116,LYNNELL MARIE WOODS,Apr,30,2010,Other Contractual Services,TITLE III,$562.50
48,J.F. Drake State,90012882,ROBBIE LEE AKINS,Apr,30,2010,Support Personnel Salaries - S,UNRESTRICTED,"$2,076.00"
48,J.F. Drake State,90012883,LYSA AUGUSTIN,Apr,30,2010,Instructional Salaries - Tempo,UNRESTRICTED,$770.00
48,J.F. Drake State,90012884,CAROLYN AVRITTE,Apr,30,2010,Instructional Salaries - Tempo,UNRESTRICTED,$802.50
48,J.F. Drake State,90012885,NELSON E BARNES,Apr,30,2010,Instructional Salaries - Tempo,UNRESTRICTED,$975.94
48,J.F. Drake State,90012886,JADA M BARRETT,Apr,30,2010,Instructional Salaries - Tempo,UNRESTRICTED,$975.94
48,J.F. Drake State,90012887,BEN BATTLE,Apr,30,2010,Instructional Salaries - Regul,UNRESTRICTED,"$5,306.33"
48,J.F. Drake State,90012889,HAROLD E BATTS,Apr,30,2010,Other Professional Salaries -,UNRESTRICTED,"$8,649.00"
48,J.F. Drake State,90012891,ANGELA NICOLE BELL,Apr,30,2010,Instructional Salaries - Regul,UNRESTRICTED,"$5,223.78"
48,J.F. Drake State,90012893,DEAVIANCE FOWLKS BLEVINS,Apr,30,2010,Other Contractual Services,ALLIED HEALTH,"$1,100.00"
48,J.F. Drake State,90012894,JACQUELINE T BOOKER,Apr,30,2010,Support Personnel Salaries - S,NAT'L SCIENCE FOUNDATION,"$1,918.40"
48,J.F. Drake State,90012895,LINDA BURRUSS,Apr,30,2010,Instructional Salaries - Tempo,UNRESTRICTED,$562.50
48,J.F. Drake State,90012896,DONALD A BURTON JR,Apr,30,2010,Support Personnel Salaries - S,CAREER COACHES,"$2,484.00"
48,J.F. Drake State,90012897,KHALILAH BURTON,Apr,30,2010,Instructional Salaries - Tempo,UNRESTRICTED,$675.00
48,J.F. Drake State,90012897,KHALILAH BURTON,Apr,30,2010,Instructional Salaries - Regul,NAT'L SCIENCE FOUNDATION,$904.46
48,J.F. Drake State,90012897,KHALILAH BURTON,Apr,30,2010,Instructional Salaries - Regul,ARRA STIMULUS FUNDS,"$2,713.38"
48,J.F. Drake State,90012898,TROY M CAMPBELL,Apr,30,2010,Instructional Salaries - Tempo,UNRESTRICTED,$775.31
48,J.F. Drake State,90012899,KEMBA CHAMBERS,Apr,30,2010,Other Professional Salaries -,UNRESTRICTED,"$7,360.42"
48,J.F. Drake State,90012900,JOSHUA CHAMPION,Apr,30,2010,Support Personnel Salaries - S,UNRESTRICTED,$790.00
48,J.F. Drake State,90012901,ROGER CHEN,Apr,30,2010,Instructional Salaries - Tempo,UNRESTRICTED,$300.94
48,J.F. Drake State,90012901,ROGER CHEN,Apr,30,2010,Other Contractual Services,NAT'L SCIENCE FOUNDATION,"$1,890.00"
48,J.F. Drake State,90012902,ADAM CLARK,Apr,30,2010,Instructional Salaries - Regul,UNRESTRICTED,"$4,786.11"
48,J.F. Drake State,90012902,ADAM CLARK,Apr,30,2010,Instructional Salaries - Tempo,UNRESTRICTED,$975.94
48,J.F. Drake State,90012903,APRIL CLEMENT,Apr,30,2010,Support Personnel Salaries - S,TECH PREP FUNDS,$769.96
48,J.F. Drake State,90012903,APRIL CLEMENT,Apr,30,2010,Support Personnel Salaries - S,NAT'L SCIENCE FOUNDATION,"$2,309.88"
48,J.F. Drake State,90012904,CHRISTINE H DAVIS,Apr,30,2010,Instructional Salaries - Regul,UNRESTRICTED,"$5,306.33"
48,J.F. Drake State,90012905,MATTIE D DAVIS,Apr,30,2010,Instructional Salaries - Regul,UNRESTRICTED,"$5,527.33"
48,J.F. Drake State,90012906,MARLO DRAKE,Apr,30,2010,Support Personnel Salaries - S,ARRA STIMULUS FUNDS,"$2,309.88"
48,J.F. Drake State,90012906,MARLO DRAKE,Apr,30,2010,Support Personnel Salaries - S,TITLE III,$769.96
48,J.F. Drake State,90012907,MARTHA W DUBEY,Apr,30,2010,Support Personnel Salaries - S,UNRESTRICTED,"$4,500.00"
48,J.F. Drake State,90012908,CHRISTIANA A OPARA EGBUJO,Apr,30,2010,Instructional Salaries - Tempo,UNRESTRICTED,$642.00
48,J.F. Drake State,90012909,GAIL E FISCH,Apr,30,2010,Instructional Salaries - Regul,UNRESTRICTED,"$2,562.50"
48,J.F. Drake State,90012910,MARY D FISHER,Apr,30,2010,Instructional Salaries - Tempo,UNRESTRICTED,$975.94
48,J.F. Drake State,90012911,EDWIN T FORBES,Apr,30,2010,Instructional Salaries - Regul,UNRESTRICTED,"$3,951.42"
48,J.F. Drake State,90012911,EDWIN T FORBES,Apr,30,2010,Instructional Salaries - Tempo,UNRESTRICTED,$337.50
48,J.F. Drake State,90012912,MIRIAM B FRANK,Apr,30,2010,Instructional Salaries - Regul,UNRESTRICTED,"$4,840.92"
48,J.F. Drake State,90012913,MATTIE B FREEMAN,Apr,30,2010,Instructional Salaries - Tempo,UNRESTRICTED,"$2,193.50"
48,J.F. Drake State,90012914,BONNIE GARRETT,Apr,30,2010,Instructional Salaries - Tempo,UNRESTRICTED,"$1,076.25"
48,J.F. Drake State,90012915,LARDELL GOODLOE JR,Apr,30,2010,Instructional Salaries - Tempo,UNRESTRICTED,"$1,802.81"
48,J.F. Drake State,90012915,LARDELL GOODLOE JR,Apr,30,2010,Support Personnel Salaries - S,UNRESTRICTED,$401.25
48,J.F. Drake State,90012916,CHARLES GROSS,Apr,30,2010,Instructional Salaries - Tempo,UNRESTRICTED,$675.00
48,J.F. Drake State,90012917,MANELZA CRAWFORD HAMBRICK,Apr,30,2010,Support Personnel Salaries - S,UNRESTRICTED,"$2,411.00"
48,J.F. Drake State,90012918,AUNDREA D HANSON,Apr,30,2010,Instructional Salaries - Tempo,UNRESTRICTED,$337.50
48,J.F. Drake State,90012919,ISAIAH HARRIS,Apr,30,2010,Other Contractual Services,TITLE III,$862.50
48,J.F. Drake State,90012920,ALIREZA HASSANZADEH,Apr,30,2010,Other Contractual Services,NAT'L SCIENCE FOUNDATION,$660.00
48,J.F. Drake State,90012921,HENRY C HAWKINS,Apr,30,2010,Instructional Salaries - Tempo,UNRESTRICTED,"$1,267.50"
48,J.F. Drake State,90012921,HENRY C HAWKINS,Apr,30,2010,Support Personnel Salaries - S,UNRESTRICTED,$401.25
48,J.F. Drake State,90012922,CAROLYN HENDERSON,Apr,30,2010,Instructional Salaries - Tempo,UNRESTRICTED,$337.50
48,J.F. Drake State,90012922,CAROLYN HENDERSON,Apr,30,2010,Instructional Salaries - Regul,NAT'L SCIENCE FOUNDATION,"$1,317.14"
48,J.F. Drake State,90012922,CAROLYN HENDERSON,Apr,30,2010,Instructional Salaries - Regul,ARRA STIMULUS FUNDS,"$3,951.42"
48,J.F. Drake State,90012923,DEXTER R HENRY,Apr,30,2010,Instructional Salaries - Regul,UNRESTRICTED,"$6,416.89"
48,J.F. Drake State,90012923,DEXTER R HENRY,Apr,30,2010,Instructional Salaries - Tempo,UNRESTRICTED,$562.50
48,J.F. Drake State,90012924,KARL W HENRY SR,Apr,30,2010,Instructional Salaries - Regul,UNRESTRICTED,"$5,435.08"
48,J.F. Drake State,90012924,KARL W HENRY SR,Apr,30,2010,Instructional Salaries - Regul,NAT'L SCIENCE FOUNDATION,"$1,678.36"
48,J.F. Drake State,90012925,DORIS HINTON,Apr,30,2010,Instructional Salaries - Regul,UNRESTRICTED,"$5,416.78"
48,J.F. Drake State,90012926,TERESA HOOPER,Apr,30,2010,Instructional Salaries - Tempo,UNRESTRICTED,$347.75
48,J.F. Drake State,90012927,PATRICIA HUGHES,Apr,30,2010,Instructional Salaries - Tempo,UNRESTRICTED,$337.50
48,J.F. Drake State,90012927,PATRICIA HUGHES,Apr,30,2010,Administrative Salaries- Sched,UNRESTRICTED,"$7,747.58"
48,J.F. Drake State,90012929,JERRY M HUMPHERY,Apr,30,2010,Instructional Salaries - Tempo,UNRESTRICTED,$975.94
48,J.F. Drake State,90012930,PAMELA MICHELLE HUMPHREY,Apr,30,2010,Instructional Salaries - Tempo,UNRESTRICTED,"$1,276.88"
48,J.F. Drake State,90012931,CHRISTINE H HUNT,Apr,30,2010,Instructional Salaries - Tempo,UNRESTRICTED,$675.00
48,J.F. Drake State,90012932,JAN J HYMAN,Apr,30,2010,Support Personnel Salaries - S,UNRESTRICTED,"$2,262.09"
48,J.F. Drake State,90012934,SARAH J JAMAR,Apr,30,2010,Instructional Salaries - Tempo,UNRESTRICTED,$337.50
48,J.F. Drake State,90012934,SARAH J JAMAR,Apr,30,2010,Other Contractual Services,NAT'L SCIENCE FOUNDATION,"$1,600.00"
48,J.F. Drake State,90012935,DETRIC R JAMES,Apr,30,2010,Support Personnel Salaries - S,ARRA STIMULUS FUNDS,$974.50
48,J.F. Drake State,90012935,DETRIC R JAMES,Apr,30,2010,Support Personnel Salaries - S,TITLE III,"$2,923.50"
48,J.F. Drake State,90012936,DEMARIS JENKINS,Apr,30,2010,Instructional Salaries - Tempo,UNRESTRICTED,$675.00
48,J.F. Drake State,90012937,DONYALE D JONES,Apr,30,2010,Support Personnel Salaries - S,TITLE III,"$3,303.42"
48,J.F. Drake State,90012938,PETURA M JONES,Apr,30,2010,Instructional Salaries - Tempo,UNRESTRICTED,$562.50
48,J.F. Drake State,90012939,ROBERT LEE JONES,Apr,30,2010,Instructional Salaries - Tempo,UNRESTRICTED,"$1,276.88"
48,J.F. Drake State,90012940,RUTH D JONES,Apr,30,2010,Instructional Salaries - Tempo,UNRESTRICTED,$562.50
48,J.F. Drake State,90012941,CHERYL P KEMP,Apr,30,2010,Instructional Salaries - Tempo,UNRESTRICTED,"$2,140.00"
48,J.F. Drake State,90012942,ANNIE R KNIGHT,Apr,30,2010,Instructional Salaries - Tempo,UNRESTRICTED,$675.00
48,J.F. Drake State,90012943,PRAVEENA KOMMIDI,Apr,30,2010,Instructional Salaries - Regul,UNRESTRICTED,"$5,638.00"
48,J.F. Drake State,90012943,PRAVEENA KOMMIDI,Apr,30,2010,Instructional Salaries - Tempo,UNRESTRICTED,$437.81
48,J.F. Drake State,90012944,NICHOLAS PAUL KSEPKA,Apr,30,2010,Hourly Wages,UNRESTRICTED,"$1,710.00"
48,J.F. Drake State,90012944,NICHOLAS PAUL KSEPKA,Apr,30,2010,Other Contractual Services,TITLE III,$262.50
48,J.F. Drake State,90012945,HONG THUYDUC LAM,Apr,30,2010,Instructional Salaries - Regul,UNRESTRICTED,"$5,675.67"
48,J.F. Drake State,90012946,JOYCE P LAMAR,Apr,30,2010,Hourly Wages,UNRESTRICTED,"$4,041.75"
48,J.F. Drake State,90012947,KRISTEN K LECROIX,Apr,30,2010,Instructional Salaries - Tempo,UNRESTRICTED,$337.50
48,J.F. Drake State,90012948,JOEL M LINER,Apr,30,2010,Instructional Salaries - Tempo,UNRESTRICTED,$675.00
48,J.F. Drake State,90012949,ROBERT W MARTIN III,Apr,30,2010,Instructional Salaries - Tempo,UNRESTRICTED,$975.94
48,J.F. Drake State,90012950,MICHEAL V MAXTON,Apr,30,2010,Instructional Salaries - Tempo,UNRESTRICTED,$337.50
48,J.F. Drake State,90012951,HELEN T MCALPINE,Apr,30,2010,Administrative Salaries- Sched,UNRESTRICTED,"$14,266.45"
48,J.F. Drake State,90012951,HELEN T MCALPINE,Apr,30,2010,President's Expense Allowance,UNRESTRICTED,$200.00
48,J.F. Drake State,90012951,HELEN T MCALPINE,Apr,30,2010,Housing Allowance,UNRESTRICTED,"$1,000.00"
48,J.F. Drake State,90012952,DEMETIUS L MCCARTY,Apr,30,2010,Support Personnel Salaries - S,UNRESTRICTED,"$2,028.00"
48,J.F. Drake State,90012954,JERRY L MCCAULLEY,Apr,30,2010,Instructional Salaries - Tempo,UNRESTRICTED,"$1,076.25"
48,J.F. Drake State,90012955,BOBBY F MCDONALD,Apr,30,2010,Instructional Salaries - Tempo,UNRESTRICTED,$675.00
48,J.F. Drake State,90012956,SCOTTY MCLAUGHLIN,Apr,30,2010,Instructional Salaries - Regul,UNRESTRICTED,"$7,016.44"
48,J.F. Drake State,90012957,PAMELA F MCTILLER,Apr,30,2010,Instructional Salaries - Tempo,UNRESTRICTED,$975.94
48,J.F. Drake State,90012958,DEBORAH A MILLING,Apr,30,2010,Instructional Salaries - Regul,UNRESTRICTED,"$4,962.33"
48,J.F. Drake State,90012959,SAMMY J MILTON,Apr,30,2010,Support Personnel Salaries - S,UNRESTRICTED,"$3,452.83"
48,J.F. Drake State,90012960,PREMA A MONTEIRO,Apr,30,2010,Instructional Salaries - Regul,UNRESTRICTED,"$4,675.56"
48,J.F. Drake State,90012961,DANA MOORE,Apr,30,2010,Other Professional Salaries -,TITLE III,"$8,649.00"
48,J.F. Drake State,90012962,MARY JO MORAN,Apr,30,2010,Instructional Salaries - Tempo,UNRESTRICTED,"$1,471.25"
